Workbook

Sheet Notes
A1: EhlersUltimateSmoother.xlsm; Traders Tip spreadsheet created for the April 2024 Issue
A2: Coded beginning 2024-February-4 by Ronald McAllister (rpmac_xltt@sprynet.com)
A4: This Workbook demonstrates an EXCEL version of the ideas presented
A5: by John F. Ehlers in an article titled "The Ultimate Smoother",
A6: which originally appeared in the April 2024 issue of
A7: "Technical Analysis of Stocks and Commodities" magazine.
A9: 2024Feb04 - Added "TallChart" Check Box and supporting functionality that allows the user to expand the charting area to use all of the vertical are that is "visible" on the worksheet.
A10: I found this to be a usefull toggle when the numer of user selected indicator subcharts scrunches them so tightly into the normal vertical space that much of the visual detail is lost.
A11: Note: "Visible" vertical space is sensitive to the level of "zoom" you choose for the worksheet (Slider at the bottom right of the sheet display)
A16: Just a note:
A17: All previous T-Tip spreadsheets were built using EXCEL 2010.
A18: November 2023 was the first T-Tip built using EXCEL 365. Specifically:
A19: Microsoft® Excel® for Microsoft 365 MSO (Version 2308 Build 16.0.16731.20052) 64-bit

Sheet InputPriceData
A1: Antero Resources Corporation (AR) -NYSE (Daily)
M2: To retrieve data for symbols traded on non US Exchanges, | IJ2: 241.79
A3: Request Online Yahoo History for: | F3: Market State == > | G3: At close: | H3: 16:01:00 | I3: EST | M3: you will need to append the dot-suffix for the exchange to the symbol.
A4: Symbol | B4: AR | D4: Valid | I4: =OFFSET(I4,-2,0,1,1) -> 0 | M4: The following links provide a description of how to use the exchange suffix
A5: From | B5: =EDATE(HistReqEndDate,-360) -> 1994-02-16 | D5: Data | M5: along with a list of suffixes for the major world exchanges. | AD5: Trailing 12 Div return (Cur Close)
A6: To | B6: =NOW() -> 2024-02-16T12:12:19.630 | D6: Types | E6: =VLOOKUP(B7,D7:E10,2,FALSE) -> d | M6: https://help.yahoo.com/kb/finance/SLN2310.html
A7: Data Type | B7: Daily | D7: Daily | E7: d | M7: And
A8: Crumb | D8: Weekly | E8: w | M8: https://www.stockmarketeye.com/users-guide/ticker-symbols-and-data-providers/data-providers.html
A9: Available Data | D9: Monthly | E9: m
A10: Bar Count: | B10: 2605 | M10: You may search on “exchange suffixes” for additional discussions | AD10: =OFFSET(AC15,1,0,1,1)/OFFSET(N15,1,0,1,1) -> 0
A11: From: | B11: =IF(B10<=0,"",OFFSET(B15,B10,IF(HistReqDataType="v",1,0),1,1)) -> 2013-10-10 | W11: Trailing 12 Month Dividend Returns
A12: To: | B12: =IF(B10<=0,"",IF(HistReqDataType="v",OFFSET(B15,2,1,1,1),OFFSET(B15,1,0,1,1))) -> 2024-02-15 | W12: Raw Close price on Dividend date | X12: Div Year and Month | Y12: Looking for year ago Div Year and Month | Z12: Year ago Div Date we found | AA12: row offset to year ago div Date | AB12: Same month flag | AC12: Trailing 12 Div Total | AD12: Trailing 12 Div return
Q13: Split History | S13: 0 | T13: Running | U13: Dividend History
B14: Raw Data Values | H14: Adjusted | I14: Price Adjust | J14: Vol Adjust | K14: Adjusted Values | P14: Last | Q14: Effective | R14: Shares | T14: Vol Adjust | V14: 0
A15: RelRow | B15: Date | C15: Open | D15: High | E15: Low | F15: Close | G15: Volume | H15: Close | I15: Factor | J15: Factor | K15: Open | L15: High | M15: Low | N15: Close | O15: Volume | P15: Trade | Q15: 45338 | R15: New | S15: Old | T15: 1 | U15: Date | V15: $ / Share
A16: 1 | B16: 2024-02-15 | C16: 22.68 | D16: 23.780001 | E16: 22.01 | F16: 23.52 | G16: 13104147 | H16: 23.52 | I16: =IF(F16=0,1,H16/F16) -> 1 | J16: =INDEX(OFFSET($T$15,0,0,$S$13+1,1),MATCH(B16,OFFSET($Q$15,0,0,$S$13+1,1),-1)) -> 1 | K16: =ROUND($I16*C16,2) -> 22.68 | L16: =ROUND($I16*D16,2) -> 23.78 | M16: 22.01 | N16: 23.52 | O16: =G16*J16 -> 13104147
A17: 2 | B17: 2024-02-14 | C17: 20.889999 | D17: 21.33 | E17: 20.559999 | F17: 21.209999 | G17: 9348800 | H17: 21.209999 | I17: =IF(F17=0,1,H17/F17) -> 1 | J17: =INDEX(OFFSET($T$15,0,0,$S$13+1,1),MATCH(B17,OFFSET($Q$15,0,0,$S$13+1,1),-1)) -> 1 | K17: =ROUND($I17*C17,2) -> 20.89 | L17: =ROUND($I17*D17,2) -> 21.33 | M17: =ROUND($I17*E17,2) -> 20.56 | N17: =ROUND($I17*F17,2) -> 21.21 | O17: =G17*J17 -> 9348800
A18: 3 | B18: 2024-02-13 | C18: 21.16 | D18: 21.280001 | E18: 20.77 | F18: 21 | G18: 6271000 | H18: 21 | I18: 1 | J18: 1 | K18: 21.16 | L18: 21.28 | M18: 20.77 | N18: 21 | O18: 6271000
A19: 4 | B19: 2024-02-12 | C19: 21.200001 | D19: 22.01 | E19: 21.15 | F19: 21.5 | G19: 5174800 | H19: 21.5 | I19: 1 | J19: 1 | K19: 21.2 | L19: 22.01 | M19: 21.15 | N19: 21.5 | O19: 5174800
A20: 5 | B20: 2024-02-09 | C20: 21.5 | D20: 21.700001 | E20: 20.959999 | F20: 21.139999 | G20: 5457700 | H20: 21.139999 | I20: 1 | J20: 1 | K20: 21.5 | L20: 21.7 | M20: 20.96 | N20: 21.14 | O20: 5457700
A21: 6 | B21: 2024-02-08 | C21: 21.17 | D21: 21.790001 | E21: 21.16 | F21: 21.629999 | G21: 5237500 | H21: 21.629999 | I21: 1 | J21: 1 | K21: 21.17 | L21: 21.79 | M21: 21.16 | N21: 21.63 | O21: 5237500
A22: 7 | B22: 2024-02-07 | C22: 21.66 | D22: 21.74 | E22: 21.23 | F22: 21.360001 | G22: 3066400 | H22: 21.360001 | I22: 1 | J22: 1 | K22: 21.66 | L22: 21.74 | M22: 21.23 | N22: 21.36 | O22: 3066400
A23: 8 | B23: 2024-02-06 | C23: 21.129999 | D23: 21.879999 | E23: 21.02 | F23: 21.540001 | G23: 3288500 | H23: 21.540001 | I23: 1 | J23: 1 | K23: 21.13 | L23: 21.88 | M23: 21.02 | N23: 21.54 | O23: 3288500
A24: 9 | B24: 2024-02-05 | C24: 21.709999 | D24: 21.709999 | E24: 21.110001 | F24: 21.120001 | G24: 3341900 | H24: 21.120001 | I24: 1 | J24: 1 | K24: 21.71 | L24: 21.71 | M24: 21.11 | N24: 21.12 | O24: 3341900
A25: 10 | B25: 2024-02-02 | C25: 22.09 | D25: 22.200001 | E25: 21.66 | F25: 21.889999 | G25: 2749600 | H25: 21.889999 | I25: 1 | J25: 1 | K25: 22.09 | L25: 22.2 | M25: 21.66 | N25: 21.89 | O25: 2749600
A26: 11 | B26: 2024-02-01 | C26: 22.48 | D26: 22.610001 | E26: 21.84 | F26: 22.16 | G26: 3679300 | H26: 22.16 | I26: 1 | J26: 1 | K26: 22.48 | L26: 22.61 | M26: 21.84 | N26: 22.16 | O26: 3679300
A27: 12 | B27: 2024-01-31 | C27: 22.9 | D27: 23.01 | E27: 22.34 | F27: 22.34 | G27: 3926000 | H27: 22.34 | I27: 1 | J27: 1 | K27: 22.9 | L27: 23.01 | M27: 22.34 | N27: 22.34 | O27: 3926000
A28: 13 | B28: 2024-01-30 | C28: 22.309999 | D28: 23.15 | E28: 22.23 | F28: 22.93 | G28: 3931300 | H28: 22.93 | I28: 1 | J28: 1 | K28: 22.31 | L28: 23.15 | M28: 22.23 | N28: 22.93 | O28: 3931300
A29: 14 | B29: 2024-01-29 | C29: 22.58 | D29: 22.629999 | E29: 22.059999 | F29: 22.58 | G29: 4025200 | H29: 22.58 | I29: 1 | J29: 1 | K29: 22.58 | L29: 22.63 | M29: 22.06 | N29: 22.58 | O29: 4025200
A30: 15 | B30: 2024-01-26 | C30: 22.790001 | D30: 22.879999 | E30: 22.280001 | F30: 22.68 | G30: 5238400 | H30: 22.68 | I30: 1 | J30: 1 | K30: 22.79 | L30: 22.88 | M30: 22.28 | N30: 22.68 | O30: 5238400
A31: 16 | B31: 2024-01-25 | C31: 22.799999 | D31: 22.879999 | E31: 22.200001 | F31: 22.799999 | G31: 5081600 | H31: 22.799999 | I31: 1 | J31: 1 | K31: 22.8 | L31: 22.88 | M31: 22.2 | N31: 22.8 | O31: 5081600
A32: 17 | B32: 2024-01-24 | C32: 22.23 | D32: 22.709999 | E32: 22.15 | F32: 22.540001 | G32: 2918600 | H32: 22.540001 | I32: 1 | J32: 1 | K32: 22.23 | L32: 22.71 | M32: 22.15 | N32: 22.54 | O32: 2918600
A33: 18 | B33: 2024-01-23 | C33: 21.74 | D33: 22.07 | E33: 21.58 | F33: 21.92 | G33: 3245500 | H33: 21.92 | I33: 1 | J33: 1 | K33: 21.74 | L33: 22.07 | M33: 21.58 | N33: 21.92 | O33: 3245500
A34: 19 | B34: 2024-01-22 | C34: 21.559999 | D34: 21.91 | E34: 21.42 | F34: 21.639999 | G34: 4527600 | H34: 21.639999 | I34: 1 | J34: 1 | K34: 21.56 | L34: 21.91 | M34: 21.42 | N34: 21.64 | O34: 4527600
A35: 20 | B35: 2024-01-19 | C35: 21.629999 | D35: 21.950001 | E35: 21.32 | F35: 21.9 | G35: 4939200 | H35: 21.9 | I35: 1 | J35: 1 | K35: 21.63 | L35: 21.95 | M35: 21.32 | N35: 21.9 | O35: 4939200
A36: 21 | B36: 2024-01-18 | C36: 22.24 | D36: 22.34 | E36: 21.65 | F36: 21.9 | G36: 4637300 | H36: 21.9 | I36: 1 | J36: 1 | K36: 22.24 | L36: 22.34 | M36: 21.65 | N36: 21.9 | O36: 4637300
A37: 22 | B37: 2024-01-17 | C37: 21.75 | D37: 22.450001 | E37: 21.65 | F37: 22.110001 | G37: 4608300 | H37: 22.110001 | I37: 1 | J37: 1 | K37: 21.75 | L37: 22.45 | M37: 21.65 | N37: 22.11 | O37: 4608300
A38: 23 | B38: 2024-01-16 | C38: 22.85 | D38: 23.309999 | E38: 22 | F38: 22.02 | G38: 5495300 | H38: 22.02 | I38: 1 | J38: 1 | K38: 22.85 | L38: 23.31 | M38: 22 | N38: 22.02 | O38: 5495300
A39: 24 | B39: 2024-01-12 | C39: 23.35 | D39: 23.700001 | E39: 22.91 | F39: 23.450001 | G39: 4952800 | H39: 23.450001 | I39: 1 | J39: 1 | K39: 23.35 | L39: 23.7 | M39: 22.91 | N39: 23.45 | O39: 4952800
A40: 25 | B40: 2024-01-11 | C40: 22.99 | D40: 23.530001 | E40: 22.66 | F40: 22.75 | G40: 5602600 | H40: 22.75 | I40: 1 | J40: 1 | K40: 22.99 | L40: 23.53 | M40: 22.66 | N40: 22.75 | O40: 5602600
A41: 26 | B41: 2024-01-10 | C41: 22.940001 | D41: 23 | E41: 22.469999 | F41: 22.889999 | G41: 5539900 | H41: 22.889999 | I41: 1 | J41: 1 | K41: 22.94 | L41: 23 | M41: 22.47 | N41: 22.89 | O41: 5539900
A42: 27 | B42: 2024-01-09 | C42: 23.309999 | D42: 23.76 | E42: 22.82 | F42: 23.440001 | G42: 6214200 | H42: 23.440001 | I42: 1 | J42: 1 | K42: 23.31 | L42: 23.76 | M42: 22.82 | N42: 23.44 | O42: 6214200
A43: 28 | B43: 2024-01-08 | C43: 22.459999 | D43: 23.26 | E43: 22.049999 | F43: 23.01 | G43: 7462400 | H43: 23.01 | I43: 1 | J43: 1 | K43: 22.46 | L43: 23.26 | M43: 22.05 | N43: 23.01 | O43: 7462400
A44: 29 | B44: 2024-01-05 | C44: 22.379999 | D44: 23.25 | E44: 22.219999 | F44: 23.25 | G44: 9297200 | H44: 23.25 | I44: 1 | J44: 1 | K44: 22.38 | L44: 23.25 | M44: 22.22 | N44: 23.25 | O44: 9297200
A45: 30 | B45: 2024-01-04 | C45: 23.27 | D45: 23.280001 | E45: 22.33 | F45: 22.389999 | G45: 6270700 | H45: 22.389999 | I45: 1 | J45: 1 | K45: 23.27 | L45: 23.28 | M45: 22.33 | N45: 22.39 | O45: 6270700
A46: 31 | B46: 2024-01-03 | C46: 22.24 | D46: 23.059999 | E46: 22.17 | F46: 22.77 | G46: 5567900 | H46: 22.77 | I46: 1 | J46: 1 | K46: 22.24 | L46: 23.06 | M46: 22.17 | N46: 22.77 | O46: 5567900
A47: 32 | B47: 2024-01-02 | C47: 23 | D47: 23.120001 | E47: 22.49 | F47: 22.620001 | G47: 3299500 | H47: 22.620001 | I47: 1 | J47: 1 | K47: 23 | L47: 23.12 | M47: 22.49 | N47: 22.62 | O47: 3299500
A48: 33 | B48: 2023-12-29 | C48: 22.870001 | D48: 23.040001 | E48: 22.610001 | F48: 22.68 | G48: 3968300 | H48: 22.68 | I48: 1 | J48: 1 | K48: 22.87 | L48: 23.04 | M48: 22.61 | N48: 22.68 | O48: 3968300
A49: 34 | B49: 2023-12-28 | C49: 22.799999 | D49: 23.18 | E49: 22.690001 | F49: 22.93 | G49: 3685600 | H49: 22.93 | I49: 1 | J49: 1 | K49: 22.8 | L49: 23.18 | M49: 22.69 | N49: 22.93 | O49: 3685600
A50: 35 | B50: 2023-12-27 | C50: 23.190001 | D50: 23.26 | E50: 22.639999 | F50: 22.75 | G50: 4049400 | H50: 22.75 | I50: 1 | J50: 1 | K50: 23.19 | L50: 23.26 | M50: 22.64 | N50: 22.75 | O50: 4049400
A51: 36 | B51: 2023-12-26 | C51: 22.780001 | D51: 23.120001 | E51: 22.629999 | F51: 22.940001 | G51: 5142600 | H51: 22.940001 | I51: 1 | J51: 1 | K51: 22.78 | L51: 23.12 | M51: 22.63 | N51: 22.94 | O51: 5142600
A52: 37 | B52: 2023-12-22 | C52: 22.790001 | D52: 23.02 | E52: 22.620001 | F52: 22.780001 | G52: 3937500 | H52: 22.780001 | I52: 1 | J52: 1 | K52: 22.79 | L52: 23.02 | M52: 22.62 | N52: 22.78 | O52: 3937500
A53: 38 | B53: 2023-12-21 | C53: 22.01 | D53: 22.77 | E53: 21.950001 | F53: 22.76 | G53: 4404600 | H53: 22.76 | I53: 1 | J53: 1 | K53: 22.01 | L53: 22.77 | M53: 21.95 | N53: 22.76 | O53: 4404600
A54: 39 | B54: 2023-12-20 | C54: 22.530001 | D54: 22.67 | E54: 21.700001 | F54: 21.709999 | G54: 3487800 | H54: 21.709999 | I54: 1 | J54: 1 | K54: 22.53 | L54: 22.67 | M54: 21.7 | N54: 21.71 | O54: 3487800
A55: 40 | B55: 2023-12-19 | C55: 22.33 | D55: 22.51 | E55: 21.809999 | F55: 22.5 | G55: 4108200 | H55: 22.5 | I55: 1 | J55: 1 | K55: 22.33 | L55: 22.51 | M55: 21.81 | N55: 22.5 | O55: 4108200
A56: 41 | B56: 2023-12-18 | C56: 22.459999 | D56: 22.82 | E56: 22.18 | F56: 22.370001 | G56: 5305500 | H56: 22.370001 | I56: 1 | J56: 1 | K56: 22.46 | L56: 22.82 | M56: 22.18 | N56: 22.37 | O56: 5305500
A57: 42 | B57: 2023-12-15 | C57: 21.93 | D57: 22.219999 | E57: 21.48 | F57: 21.99 | G57: 14949300 | H57: 21.99 | I57: 1 | J57: 1 | K57: 21.93 | L57: 22.22 | M57: 21.48 | N57: 21.99 | O57: 14949300
A58: 43 | B58: 2023-12-14 | C58: 21.68 | D58: 22.280001 | E58: 21.290001 | F58: 21.870001 | G58: 7863800 | H58: 21.870001 | I58: 1 | J58: 1 | K58: 21.68 | L58: 22.28 | M58: 21.29 | N58: 21.87 | O58: 7863800
A59: 44 | B59: 2023-12-13 | C59: 20.41 | D59: 21.09 | E59: 20.34 | F59: 21.049999 | G59: 6708300 | H59: 21.049999 | I59: 1 | J59: 1 | K59: 20.41 | L59: 21.09 | M59: 20.34 | N59: 21.05 | O59: 6708300
A60: 45 | B60: 2023-12-12 | C60: 20.57 | D60: 20.700001 | E60: 20.1 | F60: 20.370001 | G60: 7138200 | H60: 20.370001 | I60: 1 | J60: 1 | K60: 20.57 | L60: 20.7 | M60: 20.1 | N60: 20.37 | O60: 7138200
A61: 46 | B61: 2023-12-11 | C61: 20.15 | D61: 21.280001 | E61: 20.129999 | F61: 21.190001 | G61: 6918200 | H61: 21.190001 | I61: 1 | J61: 1 | K61: 20.15 | L61: 21.28 | M61: 20.13 | N61: 21.19 | O61: 6918200
A62: 47 | B62: 2023-12-08 | C62: 21.1 | D62: 21.18 | E62: 20.700001 | F62: 20.92 | G62: 5919500 | H62: 20.92 | I62: 1 | J62: 1 | K62: 21.1 | L62: 21.18 | M62: 20.7 | N62: 20.92 | O62: 5919500
A63: 48 | B63: 2023-12-07 | C63: 21.709999 | D63: 21.92 | E63: 20.879999 | F63: 21 | G63: 7922600 | H63: 21 | I63: 1 | J63: 1 | K63: 21.71 | L63: 21.92 | M63: 20.88 | N63: 21 | O63: 7922600
A64: 49 | B64: 2023-12-06 | C64: 22.370001 | D64: 22.860001 | E64: 21.73 | F64: 21.77 | G64: 6731100 | H64: 21.77 | I64: 1 | J64: 1 | K64: 22.37 | L64: 22.86 | M64: 21.73 | N64: 21.77 | O64: 6731100
A65: 50 | B65: 2023-12-05 | C65: 23.190001 | D65: 23.42 | E65: 22.530001 | F65: 22.540001 | G65: 4788900 | H65: 22.540001 | I65: 1 | J65: 1 | K65: 23.19 | L65: 23.42 | M65: 22.53 | N65: 22.54 | O65: 4788900
A66: 51 | B66: 2023-12-04 | C66: 23.040001 | D66: 23.48 | E66: 22.91 | F66: 23.030001 | G66: 4889300 | H66: 23.030001 | I66: 1 | J66: 1 | K66: 23.04 | L66: 23.48 | M66: 22.91 | N66: 23.03 | O66: 4889300
A67: 52 | B67: 2023-12-01 | C67: 23.52 | D67: 24.48 | E67: 23.370001 | F67: 23.879999 | G67: 3315400 | H67: 23.879999 | I67: 1 | J67: 1 | K67: 23.52 | L67: 24.48 | M67: 23.37 | N67: 23.88 | O67: 3315400
A68: 53 | B68: 2023-11-30 | C68: 24.030001 | D68: 24.530001 | E68: 23.309999 | F68: 23.629999 | G68: 6402200 | H68: 23.629999 | I68: 1 | J68: 1 | K68: 24.03 | L68: 24.53 | M68: 23.31 | N68: 23.63 | O68: 6402200
A69: 54 | B69: 2023-11-29 | C69: 24.15 | D69: 24.27 | E69: 23.639999 | F69: 23.66 | G69: 4337900 | H69: 23.66 | I69: 1 | J69: 1 | K69: 24.15 | L69: 24.27 | M69: 23.64 | N69: 23.66 | O69: 4337900
A70: 55 | B70: 2023-11-28 | C70: 24.25 | D70: 24.370001 | E70: 23.9 | F70: 24.030001 | G70: 3239800 | H70: 24.030001 | I70: 1 | J70: 1 | K70: 24.25 | L70: 24.37 | M70: 23.9 | N70: 24.03 | O70: 3239800
A71: 56 | B71: 2023-11-27 | C71: 24.799999 | D71: 24.870001 | E71: 24.08 | F71: 24.32 | G71: 4762500 | H71: 24.32 | I71: 1 | J71: 1 | K71: 24.8 | L71: 24.87 | M71: 24.08 | N71: 24.32 | O71: 4762500
A72: 57 | B72: 2023-11-24 | C72: 24.709999 | D72: 25.219999 | E72: 24.66 | F72: 25.129999 | G72: 1320300 | H72: 25.129999 | I72: 1 | J72: 1 | K72: 24.71 | L72: 25.22 | M72: 24.66 | N72: 25.13 | O72: 1320300
A73: 58 | B73: 2023-11-22 | C73: 24.42 | D73: 25.16 | E73: 24.280001 | F73: 25.07 | G73: 3028100 | H73: 25.07 | I73: 1 | J73: 1 | K73: 24.42 | L73: 25.16 | M73: 24.28 | N73: 25.07 | O73: 3028100
A74: 59 | B74: 2023-11-21 | C74: 25.059999 | D74: 25.17 | E74: 24.719999 | F74: 24.85 | G74: 3847400 | H74: 24.85 | I74: 1 | J74: 1 | K74: 25.06 | L74: 25.17 | M74: 24.72 | N74: 24.85 | O74: 3847400
A75: 60 | B75: 2023-11-20 | C75: 25.65 | D75: 25.67 | E75: 25.17 | F75: 25.219999 | G75: 5013300 | H75: 25.219999 | I75: 1 | J75: 1 | K75: 25.65 | L75: 25.67 | M75: 25.17 | N75: 25.22 | O75: 5013300
A76: 61 | B76: 2023-11-17 | C76: 25.51 | D76: 25.860001 | E76: 25.26 | F76: 25.620001 | G76: 3688600 | H76: 25.620001 | I76: 1 | J76: 1 | K76: 25.51 | L76: 25.86 | M76: 25.26 | N76: 25.62 | O76: 3688600
A77: 62 | B77: 2023-11-16 | C77: 26.559999 | D77: 26.75 | E77: 25.049999 | F77: 25.52 | G77: 7086700 | H77: 25.52 | I77: 1 | J77: 1 | K77: 26.56 | L77: 26.75 | M77: 25.05 | N77: 25.52 | O77: 7086700
A78: 63 | B78: 2023-11-15 | C78: 26.59 | D78: 27.290001 | E78: 26.49 | F78: 26.85 | G78: 3383400 | H78: 26.85 | I78: 1 | J78: 1 | K78: 26.59 | L78: 27.29 | M78: 26.49 | N78: 26.85 | O78: 3383400
A79: 64 | B79: 2023-11-14 | C79: 26.309999 | D79: 26.950001 | E79: 26.23 | F79: 26.41 | G79: 3532600 | H79: 26.41 | I79: 1 | J79: 1 | K79: 26.31 | L79: 26.95 | M79: 26.23 | N79: 26.41 | O79: 3532600
A80: 65 | B80: 2023-11-13 | C80: 26.07 | D80: 26.67 | E80: 25.74 | F80: 26.32 | G80: 3344800 | H80: 26.32 | I80: 1 | J80: 1 | K80: 26.07 | L80: 26.67 | M80: 25.74 | N80: 26.32 | O80: 3344800
A81: 66 | B81: 2023-11-10 | C81: 26.450001 | D81: 26.49 | E81: 25.68 | F81: 25.73 | G81: 3558400 | H81: 25.73 | I81: =IF(F81=0,1,H81/F81) -> 1 | J81: =INDEX(OFFSET($T$15,0,0,$S$13+1,1),MATCH(B81,OFFSET($Q$15,0,0,$S$13+1,1),-1)) -> 1 | K81: =ROUND($I81*C81,2) -> 26.45 | L81: =ROUND($I81*D81,2) -> 26.49 | M81: =ROUND($I81*E81,2) -> 25.68 | N81: =ROUND($I81*F81,2) -> 25.73 | O81: =G81*J81 -> 3558400
A82: 67 | B82: 2023-11-09 | C82: 26.9 | D82: 26.969999 | E82: 26.09 | F82: 26.190001 | G82: 5483100 | H82: 26.190001 | I82: 1 | J82: 1 | K82: 26.9 | L82: 26.97 | M82: 26.09 | N82: 26.19 | O82: 5483100
A83: 68 | B83: 2023-11-08 | C83: 27.450001 | D83: 27.700001 | E83: 26.469999 | F83: 26.75 | G83: 3902300 | H83: 26.75 | I83: 1 | J83: 1 | K83: 27.45 | L83: 27.7 | M83: 26.47 | N83: 26.75 | O83: 3902300
A84: 69 | B84: 2023-11-07 | C84: 28.42 | D84: 28.49 | E84: 27.43 | F84: 27.74 | G84: 4715600 | H84: 27.74 | I84: 1 | J84: 1 | K84: 28.42 | L84: 28.49 | M84: 27.43 | N84: 27.74 | O84: 4715600
A85: 70 | B85: 2023-11-06 | C85: 30.08 | D85: 30.17 | E85: 28.299999 | F85: 28.959999 | G85: 4911300 | H85: 28.959999 | I85: 1 | J85: 1 | K85: 30.08 | L85: 30.17 | M85: 28.3 | N85: 28.96 | O85: 4911300
A86: 71 | B86: 2023-11-03 | C86: 30.34 | D86: 30.9 | E86: 30.17 | F86: 30.49 | G86: 3233900 | H86: 30.49 | I86: 1 | J86: 1 | K86: 30.34 | L86: 30.9 | M86: 30.17 | N86: 30.49 | O86: 3233900
A87: 72 | B87: 2023-11-02 | C87: 29.780001 | D87: 30.440001 | E87: 29.299999 | F87: 30.43 | G87: 3496200 | H87: 30.43 | I87: 1 | J87: 1 | K87: 29.78 | L87: 30.44 | M87: 29.3 | N87: 30.43 | O87: 3496200
A88: 73 | B88: 2023-11-01 | C88: 28.9 | D88: 30.02 | E88: 28.709999 | F88: 29.780001 | G88: 4101700 | H88: 29.780001 | I88: 1 | J88: 1 | K88: 28.9 | L88: 30.02 | M88: 28.71 | N88: 29.78 | O88: 4101700
A89: 74 | B89: 2023-10-31 | C89: 28.84 | D89: 29.690001 | E89: 28.49 | F89: 29.440001 | G89: 5390900 | H89: 29.440001 | I89: 1 | J89: 1 | K89: 28.84 | L89: 29.69 | M89: 28.49 | N89: 29.44 | O89: 5390900
A90: 75 | B90: 2023-10-30 | C90: 28.620001 | D90: 29.08 | E90: 28.26 | F90: 28.530001 | G90: 5115100 | H90: 28.530001 | I90: 1 | J90: 1 | K90: 28.62 | L90: 29.08 | M90: 28.26 | N90: 28.53 | O90: 5115100
A91: 76 | B91: 2023-10-27 | C91: 29.620001 | D91: 29.74 | E91: 28.51 | F91: 28.889999 | G91: 7586100 | H91: 28.889999 | I91: 1 | J91: 1 | K91: 29.62 | L91: 29.74 | M91: 28.51 | N91: 28.89 | O91: 7586100
A92: 77 | B92: 2023-10-26 | C92: 27.459999 | D92: 30.15 | E92: 26.75 | F92: 29.469999 | G92: 10589400 | H92: 29.469999 | I92: 1 | J92: 1 | K92: 27.46 | L92: 30.15 | M92: 26.75 | N92: 29.47 | O92: 10589400
A93: 78 | B93: 2023-10-25 | C93: 28.110001 | D93: 28.280001 | E93: 27.65 | F93: 28.120001 | G93: 4297900 | H93: 28.120001 | I93: 1 | J93: 1 | K93: 28.11 | L93: 28.28 | M93: 27.65 | N93: 28.12 | O93: 4297900
A94: 79 | B94: 2023-10-24 | C94: 28.129999 | D94: 28.42 | E94: 27.950001 | F94: 28.030001 | G94: 4043900 | H94: 28.030001 | I94: 1 | J94: 1 | K94: 28.13 | L94: 28.42 | M94: 27.95 | N94: 28.03 | O94: 4043900
A95: 80 | B95: 2023-10-23 | C95: 27.65 | D95: 28.200001 | E95: 27.370001 | F95: 27.860001 | G95: 4079900 | H95: 27.860001 | I95: 1 | J95: 1 | K95: 27.65 | L95: 28.2 | M95: 27.37 | N95: 27.86 | O95: 4079900
A96: 81 | B96: 2023-10-20 | C96: 28.15 | D96: 28.360001 | E96: 27.809999 | F96: 27.969999 | G96: 5008300 | H96: 27.969999 | I96: 1 | J96: 1 | K96: 28.15 | L96: 28.36 | M96: 27.81 | N96: 27.97 | O96: 5008300
A97: 82 | B97: 2023-10-19 | C97: 28.41 | D97: 29 | E97: 28.209999 | F97: 28.360001 | G97: 4537500 | H97: 28.360001 | I97: 1 | J97: 1 | K97: 28.41 | L97: 29 | M97: 28.21 | N97: 28.36 | O97: 4537500
A98: 83 | B98: 2023-10-18 | C98: 28.91 | D98: 29.01 | E98: 28.299999 | F98: 28.5 | G98: 3989300 | H98: 28.5 | I98: 1 | J98: 1 | K98: 28.91 | L98: 29.01 | M98: 28.3 | N98: 28.5 | O98: 3989300
A99: 84 | B99: 2023-10-17 | C99: 27.780001 | D99: 28.85 | E99: 27.73 | F99: 28.719999 | G99: 6519900 | H99: 28.719999 | I99: 1 | J99: 1 | K99: 27.78 | L99: 28.85 | M99: 27.73 | N99: 28.72 | O99: 6519900
A100: 85 | B100: 2023-10-16 | C100: 27.84 | D100: 27.950001 | E100: 27.190001 | F100: 27.790001 | G100: 2981900 | H100: 27.790001 | I100: 1 | J100: 1 | K100: 27.84 | L100: 27.95 | M100: 27.19 | N100: 27.79 | O100: 2981900
A101: 86 | B101: 2023-10-13 | C101: 27.780001 | D101: 27.99 | E101: 27.379999 | F101: 27.83 | G101: 4252500 | H101: 27.83 | I101: 1 | J101: 1 | K101: 27.78 | L101: 27.99 | M101: 27.38 | N101: 27.83 | O101: 4252500
A102: 87 | B102: 2023-10-12 | C102: 27.33 | D102: 27.6 | E102: 26.969999 | F102: 27.34 | G102: 4783700 | H102: 27.34 | I102: 1 | J102: 1 | K102: 27.33 | L102: 27.6 | M102: 26.97 | N102: 27.34 | O102: 4783700
A103: 88 | B103: 2023-10-11 | C103: 26.5 | D103: 27.209999 | E103: 26.459999 | F103: 27.15 | G103: 2601600 | H103: 27.15 | I103: 1 | J103: 1 | K103: 26.5 | L103: 27.21 | M103: 26.46 | N103: 27.15 | O103: 2601600
A104: 89 | B104: 2023-10-10 | C104: 27.41 | D104: 27.530001 | E104: 27.040001 | F104: 27.129999 | G104: 3200400 | H104: 27.129999 | I104: 1 | J104: 1 | K104: 27.41 | L104: 27.53 | M104: 27.04 | N104: 27.13 | O104: 3200400
A105: 90 | B105: 2023-10-09 | C105: 26.16 | D105: 27.5 | E105: 26.16 | F105: 27.379999 | G105: 6056000 | H105: 27.379999 | I105: 1 | J105: 1 | K105: 26.16 | L105: 27.5 | M105: 26.16 | N105: 27.38 | O105: 6056000
A106: 91 | B106: 2023-10-06 | C106: 24.82 | D106: 25.99 | E106: 24.67 | F106: 25.65 | G106: 6643400 | H106: 25.65 | I106: 1 | J106: 1 | K106: 24.82 | L106: 25.99 | M106: 24.67 | N106: 25.65 | O106: 6643400
A107: 92 | B107: 2023-10-05 | C107: 23.799999 | D107: 24.67 | E107: 23.77 | F107: 24.559999 | G107: 7250300 | H107: 24.559999 | I107: 1 | J107: 1 | K107: 23.8 | L107: 24.67 | M107: 23.77 | N107: 24.56 | O107: 7250300
A108: 93 | B108: 2023-10-04 | C108: 24.299999 | D108: 24.299999 | E108: 23.58 | F108: 23.9 | G108: 4528000 | H108: 23.9 | I108: 1 | J108: 1 | K108: 24.3 | L108: 24.3 | M108: 23.58 | N108: 23.9 | O108: 4528000
A109: 94 | B109: 2023-10-03 | C109: 24.209999 | D109: 24.35 | E109: 23.74 | F109: 24.27 | G109: 5568600 | H109: 24.27 | I109: 1 | J109: 1 | K109: 24.21 | L109: 24.35 | M109: 23.74 | N109: 24.27 | O109: 5568600
A110: 95 | B110: 2023-10-02 | C110: 25.290001 | D110: 25.33 | E110: 23.860001 | F110: 24.190001 | G110: 4484800 | H110: 24.190001 | I110: 1 | J110: 1 | K110: 25.29 | L110: 25.33 | M110: 23.86 | N110: 24.19 | O110: 4484800
A111: 96 | B111: 2023-09-29 | C111: 25.459999 | D111: 25.76 | E111: 25.219999 | F111: 25.379999 | G111: 4016800 | H111: 25.379999 | I111: 1 | J111: 1 | K111: 25.46 | L111: 25.76 | M111: 25.22 | N111: 25.38 | O111: 4016800
A112: 97 | B112: 2023-09-28 | C112: 24.879999 | D112: 25.74 | E112: 24.58 | F112: 25.450001 | G112: 4823300 | H112: 25.450001 | I112: 1 | J112: 1 | K112: 24.88 | L112: 25.74 | M112: 24.58 | N112: 25.45 | O112: 4823300
A113: 98 | B113: 2023-09-27 | C113: 24.780001 | D113: 25.26 | E113: 24.59 | F113: 24.93 | G113: 4847400 | H113: 24.93 | I113: 1 | J113: 1 | K113: 24.78 | L113: 25.26 | M113: 24.59 | N113: 24.93 | O113: 4847400
A114: 99 | B114: 2023-09-26 | C114: 23.73 | D114: 24.74 | E114: 23.67 | F114: 24.27 | G114: 5393000 | H114: 24.27 | I114: 1 | J114: 1 | K114: 23.73 | L114: 24.74 | M114: 23.67 | N114: 24.27 | O114: 5393000
A115: 100 | B115: 2023-09-25 | C115: 23.73 | D115: 24.190001 | E115: 23.65 | F115: 24.08 | G115: 4151300 | H115: 24.08 | I115: 1 | J115: 1 | K115: 23.73 | L115: 24.19 | M115: 23.65 | N115: 24.08 | O115: 4151300
A116: 101 | B116: 2023-09-22 | C116: 24.18 | D116: 24.459999 | E116: 23.809999 | F116: 23.82 | G116: 2651200 | H116: 23.82 | I116: 1 | J116: 1 | K116: 24.18 | L116: 24.46 | M116: 23.81 | N116: 23.82 | O116: 2651200
A117: 102 | B117: 2023-09-21 | C117: 25.110001 | D117: 25.110001 | E117: 23.92 | F117: 24.049999 | G117: 4869100 | H117: 24.049999 | I117: 1 | J117: 1 | K117: 25.11 | L117: 25.11 | M117: 23.92 | N117: 24.05 | O117: 4869100
A118: 103 | B118: 2023-09-20 | C118: 25.48 | D118: 25.99 | E118: 24.92 | F118: 24.959999 | G118: 5368000 | H118: 24.959999 | I118: 1 | J118: 1 | K118: 25.48 | L118: 25.99 | M118: 24.92 | N118: 24.96 | O118: 5368000
A119: 104 | B119: 2023-09-19 | C119: 26.52 | D119: 26.6 | E119: 25.92 | F119: 25.92 | G119: 3481600 | H119: 25.92 | I119: 1 | J119: 1 | K119: 26.52 | L119: 26.6 | M119: 25.92 | N119: 25.92 | O119: 3481600
A120: 105 | B120: 2023-09-18 | C120: 26.65 | D120: 26.85 | E120: 26.1 | F120: 26.200001 | G120: 3255900 | H120: 26.200001 | I120: 1 | J120: 1 | K120: 26.65 | L120: 26.85 | M120: 26.1 | N120: 26.2 | O120: 3255900
A121: 106 | B121: 2023-09-15 | C121: 26.940001 | D121: 27.280001 | E121: 26.290001 | F121: 26.5 | G121: 9398300 | H121: 26.5 | I121: 1 | J121: 1 | K121: 26.94 | L121: 27.28 | M121: 26.29 | N121: 26.5 | O121: 9398300
A122: 107 | B122: 2023-09-14 | C122: 27.58 | D122: 27.639999 | E122: 26.799999 | F122: 27.34 | G122: 3369300 | H122: 27.34 | I122: 1 | J122: 1 | K122: 27.58 | L122: 27.64 | M122: 26.8 | N122: 27.34 | O122: 3369300
A123: 108 | B123: 2023-09-13 | C123: 27.07 | D123: 27.35 | E123: 26.780001 | F123: 27.1 | G123: 2785300 | H123: 27.1 | I123: 1 | J123: 1 | K123: 27.07 | L123: 27.35 | M123: 26.78 | N123: 27.1 | O123: 2785300
A124: 109 | B124: 2023-09-12 | C124: 26.6 | D124: 27.110001 | E124: 26.35 | F124: 27.049999 | G124: 3493200 | H124: 27.049999 | I124: 1 | J124: 1 | K124: 26.6 | L124: 27.11 | M124: 26.35 | N124: 27.05 | O124: 3493200
A125: 110 | B125: 2023-09-11 | C125: 27.059999 | D125: 27.219999 | E125: 25.879999 | F125: 26.09 | G125: 4563200 | H125: 26.09 | I125: 1 | J125: 1 | K125: 27.06 | L125: 27.22 | M125: 25.88 | N125: 26.09 | O125: 4563200
A126: 111 | B126: 2023-09-08 | C126: 27.01 | D126: 27.48 | E126: 26.780001 | F126: 26.799999 | G126: 3891900 | H126: 26.799999 | I126: 1 | J126: 1 | K126: 27.01 | L126: 27.48 | M126: 26.78 | N126: 26.8 | O126: 3891900
A127: 112 | B127: 2023-09-07 | C127: 26.860001 | D127: 27.18 | E127: 26.52 | F127: 26.67 | G127: 4345200 | H127: 26.67 | I127: 1 | J127: 1 | K127: 26.86 | L127: 27.18 | M127: 26.52 | N127: 26.67 | O127: 4345200
A128: 113 | B128: 2023-09-06 | C128: 26.870001 | D128: 27.280001 | E128: 26.559999 | F128: 26.85 | G128: 3527300 | H128: 26.85 | I128: 1 | J128: 1 | K128: 26.87 | L128: 27.28 | M128: 26.56 | N128: 26.85 | O128: 3527300
A129: 114 | B129: 2023-09-05 | C129: 28 | D129: 28.23 | E129: 27.07 | F129: 27.129999 | G129: 3943400 | H129: 27.129999 | I129: 1 | J129: 1 | K129: 28 | L129: 28.23 | M129: 27.07 | N129: 27.13 | O129: 3943400
A130: 115 | B130: 2023-09-01 | C130: 28.09 | D130: 28.26 | E130: 27.68 | F130: 28.190001 | G130: 3332900 | H130: 28.190001 | I130: 1 | J130: 1 | K130: 28.09 | L130: 28.26 | M130: 27.68 | N130: 28.19 | O130: 3332900
A131: 116 | B131: 2023-08-31 | C131: 27.190001 | D131: 27.889999 | E131: 26.950001 | F131: 27.67 | G131: 4294900 | H131: 27.67 | I131: 1 | J131: 1 | K131: 27.19 | L131: 27.89 | M131: 26.95 | N131: 27.67 | O131: 4294900
A132: 117 | B132: 2023-08-30 | C132: 26.74 | D132: 27.459999 | E132: 26.629999 | F132: 27.18 | G132: 3268400 | H132: 27.18 | I132: 1 | J132: 1 | K132: 26.74 | L132: 27.46 | M132: 26.63 | N132: 27.18 | O132: 3268400
A133: 118 | B133: 2023-08-29 | C133: 26.440001 | D133: 26.75 | E133: 26.129999 | F133: 26.73 | G133: 3582700 | H133: 26.73 | I133: 1 | J133: 1 | K133: 26.44 | L133: 26.75 | M133: 26.13 | N133: 26.73 | O133: 3582700
A134: 119 | B134: 2023-08-28 | C134: 26.879999 | D134: 27.049999 | E134: 26.209999 | F134: 26.450001 | G134: 3080800 | H134: 26.450001 | I134: 1 | J134: 1 | K134: 26.88 | L134: 27.05 | M134: 26.21 | N134: 26.45 | O134: 3080800
A135: 120 | B135: 2023-08-25 | C135: 26.25 | D135: 26.52 | E135: 25.940001 | F135: 26.360001 | G135: 3019800 | H135: 26.360001 | I135: 1 | J135: 1 | K135: 26.25 | L135: 26.52 | M135: 25.94 | N135: 26.36 | O135: 3019800
A136: 121 | B136: 2023-08-24 | C136: 25.58 | D136: 26.51 | E136: 25.5 | F136: 26.110001 | G136: 3577100 | H136: 26.110001 | I136: 1 | J136: 1 | K136: 25.58 | L136: 26.51 | M136: 25.5 | N136: 26.11 | O136: 3577100
A137: 122 | B137: 2023-08-23 | C137: 26.629999 | D137: 26.690001 | E137: 25.790001 | F137: 25.860001 | G137: 5374700 | H137: 25.860001 | I137: 1 | J137: 1 | K137: 26.63 | L137: 26.69 | M137: 25.79 | N137: 25.86 | O137: 5374700
A138: 123 | B138: 2023-08-22 | C138: 27.790001 | D138: 27.870001 | E138: 26.91 | F138: 26.940001 | G138: 3752500 | H138: 26.940001 | I138: 1 | J138: 1 | K138: 27.79 | L138: 27.87 | M138: 26.91 | N138: 26.94 | O138: 3752500
A139: 124 | B139: 2023-08-21 | C139: 27.51 | D139: 27.93 | E139: 27.309999 | F139: 27.780001 | G139: 3802000 | H139: 27.780001 | I139: 1 | J139: 1 | K139: 27.51 | L139: 27.93 | M139: 27.31 | N139: 27.78 | O139: 3802000
A140: 125 | B140: 2023-08-18 | C140: 27.35 | D140: 27.52 | E140: 26.5 | F140: 27.09 | G140: 6291500 | H140: 27.09 | I140: 1 | J140: 1 | K140: 27.35 | L140: 27.52 | M140: 26.5 | N140: 27.09 | O140: 6291500
A141: 126 | B141: 2023-08-17 | C141: 27.74 | D141: 28.16 | E141: 27.440001 | F141: 27.73 | G141: 5015200 | H141: 27.73 | I141: 1 | J141: 1 | K141: 27.74 | L141: 28.16 | M141: 27.44 | N141: 27.73 | O141: 5015200
A142: 127 | B142: 2023-08-16 | C142: 27.35 | D142: 27.58 | E142: 26.85 | F142: 27.1 | G142: 4110000 | H142: 27.1 | I142: 1 | J142: 1 | K142: 27.35 | L142: 27.58 | M142: 26.85 | N142: 27.1 | O142: 4110000
A143: 128 | B143: 2023-08-15 | C143: 27.370001 | D143: 27.48 | E143: 26.93 | F143: 27.379999 | G143: 4889900 | H143: 27.379999 | I143: 1 | J143: 1 | K143: 27.37 | L143: 27.48 | M143: 26.93 | N143: 27.38 | O143: 4889900
A144: 129 | B144: 2023-08-14 | C144: 27.719999 | D144: 27.91 | E144: 27.459999 | F144: 27.799999 | G144: 3671300 | H144: 27.799999 | I144: 1 | J144: 1 | K144: 27.72 | L144: 27.91 | M144: 27.46 | N144: 27.8 | O144: 3671300
A145: 130 | B145: 2023-08-11 | C145: 27.719999 | D145: 28.360001 | E145: 27.67 | F145: 27.780001 | G145: 4116700 | H145: 27.780001 | I145: =IF(F145=0,1,H145/F145) -> 1 | J145: =INDEX(OFFSET($T$15,0,0,$S$13+1,1),MATCH(B145,OFFSET($Q$15,0,0,$S$13+1,1),-1)) -> 1 | K145: =ROUND($I145*C145,2) -> 27.72 | L145: =ROUND($I145*D145,2) -> 28.36 | M145: =ROUND($I145*E145,2) -> 27.67 | N145: =ROUND($I145*F145,2) -> 27.78 | O145: =G145*J145 -> 4116700
A146: 131 | B146: 2023-08-10 | C146: 28.75 | D146: 28.959999 | E146: 27.4 | F146: 27.91 | G146: 6565200 | H146: 27.91 | I146: 1 | J146: 1 | K146: 28.75 | L146: 28.96 | M146: 27.4 | N146: 27.91 | O146: 6565200
A147: 132 | B147: 2023-08-09 | C147: 29.5 | D147: 29.620001 | E147: 28.549999 | F147: 28.799999 | G147: 6235900 | H147: 28.799999 | I147: 1 | J147: 1 | K147: 29.5 | L147: 29.62 | M147: 28.55 | N147: 28.8 | O147: 6235900
A148: 133 | B148: 2023-08-08 | C148: 27.049999 | D148: 28.360001 | E148: 26.93 | F148: 28.24 | G148: 4169200 | H148: 28.24 | I148: 1 | J148: 1 | K148: 27.05 | L148: 28.36 | M148: 26.93 | N148: 28.24 | O148: 4169200
A149: 134 | B149: 2023-08-07 | C149: 27.85 | D149: 28.110001 | E149: 27.48 | F149: 27.67 | G149: 4479300 | H149: 27.67 | I149: 1 | J149: 1 | K149: 27.85 | L149: 28.11 | M149: 27.48 | N149: 27.67 | O149: 4479300
A150: 135 | B150: 2023-08-04 | C150: 27.700001 | D150: 28.299999 | E150: 27.290001 | F150: 27.52 | G150: 4993400 | H150: 27.52 | I150: 1 | J150: 1 | K150: 27.7 | L150: 28.3 | M150: 27.29 | N150: 27.52 | O150: 4993400
A151: 136 | B151: 2023-08-03 | C151: 26.57 | D151: 27.77 | E151: 26.440001 | F151: 27.559999 | G151: 5447600 | H151: 27.559999 | I151: 1 | J151: 1 | K151: 26.57 | L151: 27.77 | M151: 26.44 | N151: 27.56 | O151: 5447600
A152: 137 | B152: 2023-08-02 | C152: 26.719999 | D152: 26.780001 | E152: 26.08 | F152: 26.209999 | G152: 5460500 | H152: 26.209999 | I152: 1 | J152: 1 | K152: 26.72 | L152: 26.78 | M152: 26.08 | N152: 26.21 | O152: 5460500
A153: 138 | B153: 2023-08-01 | C153: 26.360001 | D153: 27.280001 | E153: 26.16 | F153: 27.120001 | G153: 6691000 | H153: 27.120001 | I153: 1 | J153: 1 | K153: 26.36 | L153: 27.28 | M153: 26.16 | N153: 27.12 | O153: 6691000
A154: 139 | B154: 2023-07-31 | C154: 26.719999 | D154: 26.940001 | E154: 26.35 | F154: 26.75 | G154: 6340000 | H154: 26.75 | I154: 1 | J154: 1 | K154: 26.72 | L154: 26.94 | M154: 26.35 | N154: 26.75 | O154: 6340000
A155: 140 | B155: 2023-07-28 | C155: 25.959999 | D155: 27.049999 | E155: 25.790001 | F155: 26.68 | G155: 6691200 | H155: 26.68 | I155: 1 | J155: 1 | K155: 25.96 | L155: 27.05 | M155: 25.79 | N155: 26.68 | O155: 6691200
A156: 141 | B156: 2023-07-27 | C156: 25.379999 | D156: 26.15 | E156: 24.9 | F156: 25.4 | G156: 11082800 | H156: 25.4 | I156: 1 | J156: 1 | K156: 25.38 | L156: 26.15 | M156: 24.9 | N156: 25.4 | O156: 11082800
A157: 142 | B157: 2023-07-26 | C157: 24.09 | D157: 24.65 | E157: 23.82 | F157: 24.530001 | G157: 6838400 | H157: 24.530001 | I157: 1 | J157: 1 | K157: 24.09 | L157: 24.65 | M157: 23.82 | N157: 24.53 | O157: 6838400
A158: 143 | B158: 2023-07-25 | C158: 24.4 | D158: 24.82 | E158: 24.120001 | F158: 24.48 | G158: 4690200 | H158: 24.48 | I158: 1 | J158: 1 | K158: 24.4 | L158: 24.82 | M158: 24.12 | N158: 24.48 | O158: 4690200
A159: 144 | B159: 2023-07-24 | C159: 24.299999 | D159: 24.75 | E159: 24.24 | F159: 24.42 | G159: 5083800 | H159: 24.42 | I159: 1 | J159: 1 | K159: 24.3 | L159: 24.75 | M159: 24.24 | N159: 24.42 | O159: 5083800
A160: 145 | B160: 2023-07-21 | C160: 24.77 | D160: 24.889999 | E160: 24.17 | F160: 24.24 | G160: 4938400 | H160: 24.24 | I160: 1 | J160: 1 | K160: 24.77 | L160: 24.89 | M160: 24.17 | N160: 24.24 | O160: 4938400
A161: 146 | B161: 2023-07-20 | C161: 24.42 | D161: 24.82 | E161: 24.26 | F161: 24.77 | G161: 4861600 | H161: 24.77 | I161: 1 | J161: 1 | K161: 24.42 | L161: 24.82 | M161: 24.26 | N161: 24.77 | O161: 4861600
A162: 147 | B162: 2023-07-19 | C162: 24.34 | D162: 24.719999 | E162: 23.950001 | F162: 24.01 | G162: 4903900 | H162: 24.01 | I162: 1 | J162: 1 | K162: 24.34 | L162: 24.72 | M162: 23.95 | N162: 24.01 | O162: 4903900
A163: 148 | B163: 2023-07-18 | C163: 22.950001 | D163: 24.370001 | E163: 22.73 | F163: 24.17 | G163: 6066700 | H163: 24.17 | I163: 1 | J163: 1 | K163: 22.95 | L163: 24.37 | M163: 22.73 | N163: 24.17 | O163: 6066700
A164: 149 | B164: 2023-07-17 | C164: 22.459999 | D164: 22.950001 | E164: 22.209999 | F164: 22.83 | G164: 3847900 | H164: 22.83 | I164: 1 | J164: 1 | K164: 22.46 | L164: 22.95 | M164: 22.21 | N164: 22.83 | O164: 3847900
A165: 150 | B165: 2023-07-14 | C165: 23.379999 | D165: 23.440001 | E165: 22.51 | F165: 22.59 | G165: 4180900 | H165: 22.59 | I165: 1 | J165: 1 | K165: 23.38 | L165: 23.44 | M165: 22.51 | N165: 22.59 | O165: 4180900
A166: 151 | B166: 2023-07-13 | C166: 23.969999 | D166: 24.469999 | E166: 23.51 | F166: 23.540001 | G166: 5250800 | H166: 23.540001 | I166: 1 | J166: 1 | K166: 23.97 | L166: 24.47 | M166: 23.51 | N166: 23.54 | O166: 5250800
A167: 152 | B167: 2023-07-12 | C167: 23.76 | D167: 24.129999 | E167: 23.66 | F167: 23.85 | G167: 4441900 | H167: 23.85 | I167: 1 | J167: 1 | K167: 23.76 | L167: 24.13 | M167: 23.66 | N167: 23.85 | O167: 4441900
A168: 153 | B168: 2023-07-11 | C168: 23.190001 | D168: 24.07 | E168: 22.92 | F168: 23.790001 | G168: 5382600 | H168: 23.790001 | I168: 1 | J168: 1 | K168: 23.19 | L168: 24.07 | M168: 22.92 | N168: 23.79 | O168: 5382600
A169: 154 | B169: 2023-07-10 | C169: 22.34 | D169: 22.99 | E169: 22.280001 | F169: 22.969999 | G169: 5164700 | H169: 22.969999 | I169: 1 | J169: 1 | K169: 22.34 | L169: 22.99 | M169: 22.28 | N169: 22.97 | O169: 5164700
A170: 155 | B170: 2023-07-07 | C170: 21.77 | D170: 22.99 | E170: 21.77 | F170: 22.450001 | G170: 6667900 | H170: 22.450001 | I170: 1 | J170: 1 | K170: 21.77 | L170: 22.99 | M170: 21.77 | N170: 22.45 | O170: 6667900
A171: 156 | B171: 2023-07-06 | C171: 22.65 | D171: 22.85 | E171: 21.5 | F171: 21.9 | G171: 4729800 | H171: 21.9 | I171: 1 | J171: 1 | K171: 22.65 | L171: 22.85 | M171: 21.5 | N171: 21.9 | O171: 4729800
A172: 157 | B172: 2023-07-05 | C172: 23.299999 | D172: 23.360001 | E172: 22.91 | F172: 22.950001 | G172: 3586000 | H172: 22.950001 | I172: 1 | J172: 1 | K172: 23.3 | L172: 23.36 | M172: 22.91 | N172: 22.95 | O172: 3586000
A173: 158 | B173: 2023-07-03 | C173: 22.92 | D173: 23.41 | E173: 22.85 | F173: 23.120001 | G173: 2384200 | H173: 23.120001 | I173: 1 | J173: 1 | K173: 22.92 | L173: 23.41 | M173: 22.85 | N173: 23.12 | O173: 2384200
A174: 159 | B174: 2023-06-30 | C174: 23.01 | D174: 23.34 | E174: 22.58 | F174: 23.030001 | G174: 5054800 | H174: 23.030001 | I174: 1 | J174: 1 | K174: 23.01 | L174: 23.34 | M174: 22.58 | N174: 23.03 | O174: 5054800
A175: 160 | B175: 2023-06-29 | C175: 22.23 | D175: 22.91 | E175: 21.99 | F175: 22.870001 | G175: 5341400 | H175: 22.870001 | I175: 1 | J175: 1 | K175: 22.23 | L175: 22.91 | M175: 21.99 | N175: 22.87 | O175: 5341400
A176: 161 | B176: 2023-06-28 | C176: 22.620001 | D176: 22.620001 | E176: 21.870001 | F176: 22.120001 | G176: 5438400 | H176: 22.120001 | I176: 1 | J176: 1 | K176: 22.62 | L176: 22.62 | M176: 21.87 | N176: 22.12 | O176: 5438400
A177: 162 | B177: 2023-06-27 | C177: 21.629999 | D177: 22.360001 | E177: 21.209999 | F177: 22.33 | G177: 9554900 | H177: 22.33 | I177: 1 | J177: 1 | K177: 21.63 | L177: 22.36 | M177: 21.21 | N177: 22.33 | O177: 9554900
A178: 163 | B178: 2023-06-26 | C178: 21.49 | D178: 22.59 | E178: 21.42 | F178: 22.1 | G178: 6120800 | H178: 22.1 | I178: 1 | J178: 1 | K178: 21.49 | L178: 22.59 | M178: 21.42 | N178: 22.1 | O178: 6120800
A179: 164 | B179: 2023-06-23 | C179: 21.25 | D179: 21.620001 | E179: 20.99 | F179: 21.26 | G179: 9543900 | H179: 21.26 | I179: 1 | J179: 1 | K179: 21.25 | L179: 21.62 | M179: 20.99 | N179: 21.26 | O179: 9543900
A180: 165 | B180: 2023-06-22 | C180: 21.68 | D180: 22.040001 | E180: 21.469999 | F180: 21.780001 | G180: 4433400 | H180: 21.780001 | I180: 1 | J180: 1 | K180: 21.68 | L180: 22.04 | M180: 21.47 | N180: 21.78 | O180: 4433400
A181: 166 | B181: 2023-06-21 | C181: 21.530001 | D181: 21.950001 | E181: 21.43 | F181: 21.809999 | G181: 3444800 | H181: 21.809999 | I181: 1 | J181: 1 | K181: 21.53 | L181: 21.95 | M181: 21.43 | N181: 21.81 | O181: 3444800
A182: 167 | B182: 2023-06-20 | C182: 22.35 | D182: 22.41 | E182: 21.440001 | F182: 21.549999 | G182: 4889100 | H182: 21.549999 | I182: 1 | J182: 1 | K182: 22.35 | L182: 22.41 | M182: 21.44 | N182: 21.55 | O182: 4889100
A183: 168 | B183: 2023-06-16 | C183: 21.969999 | D183: 22.780001 | E183: 21.77 | F183: 22.459999 | G183: 12427700 | H183: 22.459999 | I183: 1 | J183: 1 | K183: 21.97 | L183: 22.78 | M183: 21.77 | N183: 22.46 | O183: 12427700
A184: 169 | B184: 2023-06-15 | C184: 20.75 | D184: 22.370001 | E184: 20.75 | F184: 21.76 | G184: 7358600 | H184: 21.76 | I184: 1 | J184: 1 | K184: 20.75 | L184: 22.37 | M184: 20.75 | N184: 21.76 | O184: 7358600
A185: 170 | B185: 2023-06-14 | C185: 21.58 | D185: 21.67 | E185: 20.51 | F185: 20.67 | G185: 6282300 | H185: 20.67 | I185: 1 | J185: 1 | K185: 21.58 | L185: 21.67 | M185: 20.51 | N185: 20.67 | O185: 6282300
A186: 171 | B186: 2023-06-13 | C186: 21.129999 | D186: 21.690001 | E186: 21.030001 | F186: 21.33 | G186: 5462000 | H186: 21.33 | I186: 1 | J186: 1 | K186: 21.13 | L186: 21.69 | M186: 21.03 | N186: 21.33 | O186: 5462000
A187: 172 | B187: 2023-06-12 | C187: 21.040001 | D187: 21.25 | E187: 20.549999 | F187: 20.709999 | G187: 4961100 | H187: 20.709999 | I187: 1 | J187: 1 | K187: 21.04 | L187: 21.25 | M187: 20.55 | N187: 20.71 | O187: 4961100
A188: 173 | B188: 2023-06-09 | C188: 21.700001 | D188: 21.9 | E188: 21.190001 | F188: 21.309999 | G188: 5661800 | H188: 21.309999 | I188: 1 | J188: 1 | K188: 21.7 | L188: 21.9 | M188: 21.19 | N188: 21.31 | O188: 5661800
A189: 174 | B189: 2023-06-08 | C189: 22.07 | D189: 22.15 | E189: 21.15 | F189: 21.9 | G189: 6506300 | H189: 21.9 | I189: 1 | J189: 1 | K189: 22.07 | L189: 22.15 | M189: 21.15 | N189: 21.9 | O189: 6506300
A190: 175 | B190: 2023-06-07 | C190: 21.200001 | D190: 22.370001 | E190: 21.15 | F190: 22.219999 | G190: 5633700 | H190: 22.219999 | I190: 1 | J190: 1 | K190: 21.2 | L190: 22.37 | M190: 21.15 | N190: 22.22 | O190: 5633700
A191: 176 | B191: 2023-06-06 | C191: 20.5 | D191: 21.42 | E191: 20.4 | F191: 20.98 | G191: 4796400 | H191: 20.98 | I191: 1 | J191: 1 | K191: 20.5 | L191: 21.42 | M191: 20.4 | N191: 20.98 | O191: 4796400
A192: 177 | B192: 2023-06-05 | C192: 21.99 | D192: 22 | E192: 20.690001 | F192: 20.73 | G192: 4706900 | H192: 20.73 | I192: 1 | J192: 1 | K192: 21.99 | L192: 22 | M192: 20.69 | N192: 20.73 | O192: 4706900
A193: 178 | B193: 2023-06-02 | C193: 20.68 | D193: 21.65 | E193: 20.5 | F193: 21.32 | G193: 4849900 | H193: 21.32 | I193: 1 | J193: 1 | K193: 20.68 | L193: 21.65 | M193: 20.5 | N193: 21.32 | O193: 4849900
A194: 179 | B194: 2023-06-01 | C194: 20.32 | D194: 20.74 | E194: 20.02 | F194: 20.16 | G194: 4480300 | H194: 20.16 | I194: 1 | J194: 1 | K194: 20.32 | L194: 20.74 | M194: 20.02 | N194: 20.16 | O194: 4480300
A195: 180 | B195: 2023-05-31 | C195: 20.58 | D195: 20.77 | E195: 20.129999 | F195: 20.41 | G195: 5155300 | H195: 20.41 | I195: 1 | J195: 1 | K195: 20.58 | L195: 20.77 | M195: 20.13 | N195: 20.41 | O195: 5155300
A196: 181 | B196: 2023-05-30 | C196: 21.049999 | D196: 21.129999 | E196: 19.91 | F196: 20.59 | G196: 9821100 | H196: 20.59 | I196: 1 | J196: 1 | K196: 21.05 | L196: 21.13 | M196: 19.91 | N196: 20.59 | O196: 9821100
A197: 182 | B197: 2023-05-26 | C197: 22.559999 | D197: 22.559999 | E197: 21.549999 | F197: 21.67 | G197: 5768300 | H197: 21.67 | I197: 1 | J197: 1 | K197: 22.56 | L197: 22.56 | M197: 21.55 | N197: 21.67 | O197: 5768300
A198: 183 | B198: 2023-05-25 | C198: 22.76 | D198: 23.059999 | E198: 22.389999 | F198: 22.540001 | G198: 4723800 | H198: 22.540001 | I198: 1 | J198: 1 | K198: 22.76 | L198: 23.06 | M198: 22.39 | N198: 22.54 | O198: 4723800
A199: 184 | B199: 2023-05-24 | C199: 23.51 | D199: 23.559999 | E199: 23.030001 | F199: 23.34 | G199: 4196700 | H199: 23.34 | I199: 1 | J199: 1 | K199: 23.51 | L199: 23.56 | M199: 23.03 | N199: 23.34 | O199: 4196700
A200: 185 | B200: 2023-05-23 | C200: 24.09 | D200: 24.15 | E200: 23.459999 | F200: 23.5 | G200: 4065000 | H200: 23.5 | I200: 1 | J200: 1 | K200: 24.09 | L200: 24.15 | M200: 23.46 | N200: 23.5 | O200: 4065000
... 2420 more rows

Sheet CalculationsAndCharts
A1: EhlersUltimateSmoother.xlsm
A2: =InputPriceData!A1 -> Antero Resources Corporation (AR) -NYSE (Daily)
A4: User Charting Controls | E4: Click to Shift Chart One Bar:
A5: Data Control | C5: FALSE
A6: =InputPriceData!$B$10 -> 2605 | B6: Available Input Data Rows | E6: Earliest: | F6: =OFFSET(InputPriceData!B15,CalculationsAndCharts!A6,0,1,1) -> 2013-10-10
A7: =MAX(A33:A56896) -> 1250 | B7: Available Calculation Rows | E7: Latest: | F7: =OFFSET(InputPriceData!B15,1,0,1,1) -> 2024-02-15
A8: =MIN(AvailableInputRows-DataPanRows,A7) -> 1250 | B8: Logically Available for Calc / Plot | E8: $ Change: | F8: =G33-G34 -> 2.310001
A10: Historical Price Windowing Specifications | F10: Click to Shift
A11: 0 | B11: Input Data Offset (Pan) | F11: Points to Plot
A12: 199 | B12: Data Points to Plot (Zoom)
B13: First: | C13: =OFFSET(B32,A12,0,1,1) -> 2023-05-03
B14: ="Last: " & IF(OFFSET(InputPriceData!P15,1+A11,0,1,1)="","",TEXT(OFFSET(InputPriceData!P15,1+A11,0,1,1),"H:MM AM/PM")) -> Last: | C14: =B33 -> 2024-02-15
A15: User Controls
A16: Length for Super Smoother & EMA | D16: ="alpha = "&F17 & "/Length" -> alpha = 3/Length | E16: 1-alpha | F16: Numerator
A17: 20 | B17: Length | D17: =F17/A17 -> 0.15 | E17: =1-D17 -> 0.85 | F17: 3
A19: BandPass Filter
A20: 30 | B20: LowerPeriod (High Pass)
A21: 15 | B21: UpperPeriod
A23: UltimateSmoother
A24: 20 | B24: Period
A25: Help! I would like to plot data
A26: From | B26: 2022-07-06 | C26: =OFFSET(InputPriceData!$A$15,MATCH(B26,OFFSET(InputPriceData!B15,1,0,InputPriceData!$B$10,1),0),0,1,1)-C27 -> 257 | E26: 95
A27: To | B27: 2023-07-13 | C27: =OFFSET(InputPriceData!$A$15,MATCH(B27,OFFSET(InputPriceData!$B$15,1,0,InputPriceData!$B$10,1),0),0,1,1)-1 -> 150 | E27: =$A$12-$E$26+1 -> 105 | AZ27: marker offset % | BA27: 0.02
H28: Value @ Cursor => | I28: =OFFSET(A32,$E$27,0,1,1)&"(RR)" -> 105(RR) | J28: =OFFSET($B$32,E27,0,1,1) -> 2023-09-18 | K28: =TEXT(OFFSET(D32,$E$27,0,1,1),"#,##0.00")&"(o)" -> 26.65(o) | L28: =TEXT(OFFSET(E32,$E$27,0,1,1),"#,##0.00")&"(h)" -> 26.85(h) | M28: =TEXT(OFFSET(F32,$E$27,0,1,1),"#,##0.00")&"(l)" -> 26.10(l) | N28: =TEXT(OFFSET(G32,$E$27,0,1,1),"#,##0.00")&"(c)" -> 26.20(c) | O28: =TEXT(OFFSET(C32,$E$27,0,1,1),"#,##0.00,,""M""")&"(v)" -> 3.26M(v) | BA28: Cooef
E29: Cursor ==> | BA29: Buy | BB29: Sell | BE29: Work Area For Chart Cursors
B30: =LogicallyAvailableRows -> 1250 | C30: <== Calculation Rel Row Limits ==> | H30: =B30-A17+1 -> 1231 | J30: =B30-4+1 -> 1247 | BA30: =1-BA27 -> 0.98 | BB30: =1+BA27 -> 1.02
A31: Rel Row | I31: ="Super Smoother(" & $A$17 & ")" -> Super Smoother(20) | L31: ="HighPass and BandPass(" & $A$20 &", " &$A$21& ")" -> HighPass and BandPass(30, 15) | R31: ="Ultimate Smoother(" & A24 & ")" -> Ultimate Smoother(20) | BA31: Markers | BC31: Used To Color Vol Bars
B32: Date | C32: Volume | D32: Open | E32: High | F32: Low | G32: Close | H32: ="EMA[""" &$F$17& """ / " & $A$17 & "]" -> EMA["3" / 20] | I32: SS Coefficients | K32: ="SS("& $A$17 & ")" -> SS(20) | L32: =+"HighPass("&$A$20&") Coefficients" -> HighPass(30) Coefficients | N32: ="HighPass("& $A$20 & ")" -> HighPass(30) | O32: =+"BandPass("&$A$21&") Coefficients" -> BandPass(15) Coefficients | Q32: ="BandPass(" & $A$20 & ", " & $A$21 & ")" -> BandPass(30, 15) | R32: Ult S Coefficients | T32: ="US("& $A$24 & ")" -> US(20) | BA32: Buy | BB32: Sell | BC32: Up Vol | BD32: Dn Vol | BE32: Volume Cursor | BF32: =MAX(OFFSET(C33,0,0,A12,1)) -> 14949300 | BG32: Price Chart Cursor | BI32: Indicator01Cursor | BK32: Indicator02Cursor | BM32: Indicator03Cursor | BO32: Indicator04Cursor | BQ32: Indicator05Cursor | BS32: Indicator06Cursor | BU32: Indicator07Cursor | BW32: Indicator08Cursor
A33: 1 | B33: =IF($A33>$A$8,"",OFFSET(InputPriceData!$B$15,$A33+$A$11,0,1,1)) -> 2024-02-15 | C33: =IF($A33>$A$8,"",OFFSET(InputPriceData!$G$15,CalculationsAndCharts!$A33+$A$11,IF($C$5,8,0),1,1)) -> 13104147 | D33: =IF(A33>$A$8,"",OFFSET(InputPriceData!$C$15,CalculationsAndCharts!$A33+$A$11,IF($C$5,8,0),1,1)) -> 22.68 | E33: =IF(A33>$A$8,"",OFFSET(InputPriceData!$D$15,CalculationsAndCharts!$A33+$A$11,IF($C$5,8,0),1,1)) -> 23.780001 | F33: =IF(A33>$A$8,"",OFFSET(InputPriceData!$E$15,CalculationsAndCharts!$A33+$A$11,IF($C$5,8,0),1,1)) -> 22.01 | G33: =IF(A33>$A$8,"",OFFSET(InputPriceData!$F$15,CalculationsAndCharts!$A33+$A$11,IF($C$5,8,0),1,1)) -> 23.52 | H33: =IF(A33>$H$30,NA(),IF(A33=$H$30,AVERAGE(OFFSET(G33,0,0,$A$17,1)),$D$17*(G33-H34)+H34)) -> 21.87090487 | I33: ="a1(" & $A$17 & ") ==>" -> a1(20) ==> | J33: =EXP(-1.414*3.14159/$A$17) -> 0.8008269377 | K33: =IF($A33>$B$30,NA(),IF($A33>$J$30,G33,$J$35*(G33+G34)/2 +$J$36*K34+$J$37*K35)) -> 21.45896482 | L33: ="a1(" & $A$20 & ") ==>" -> a1(30) ==> | M33: =EXP(-1.414*3.14159/$A$20) -> 0.8623676349 | N33: =IF($A33>$B$30,NA(),IF($A33>$J$30,0,$M$35*(G33-2*G34+G35)+M36*N34+M37*N35)) -> 4.347914556 | O33: ="a1(" & $A$21 & ") ==>" -> a1(15) ==> | P33: =EXP(-1.414*3.14159/$A$21) -> 0.7436779377 | Q33: =IF($A33>$B$30,NA(),IF($A33>$J$30,N33,$P$35*(N33+N34)/2 +$P$36*Q34+$P$37*Q35)) -> 0.406245564 | R33: ="a1(" & $A$24& ") ==>" -> a1(20) ==> | S33: =EXP(-1.414*3.14159/$A$24) -> 0.8008269377 | T33: =IF($A33>$B$30,NA(),IF($A33>$J$30,G33,(1-$S$35)*G33+(2*$S$35-$S$36)*G34-($S$35+$S$37)*G35+$S$36*T34+$S$37*T35)) -> 21.47006957 | BA33: =IF(R34,F33*$BA$30,NA()) ->  | BB33: =IF(S34,E33*$BB$30,NA()) -> 24.25560102 | BC33: =IF(G33>=G34,C33,NA()) -> 13104147 | BD33: =IF(G33<G34,C33,NA()) ->  | BE33: =$E$27 -> 105 | BF33: 0 | BG33: =$E$27 -> 105 | BH33: 20.11792533 | BI33: =$E$27 -> 105 | BJ33: -1.836881564 | BK33: =$E$27 -> 105 | BL33: -1 | BM33: =$E$27 -> 105 | BO33: =$E$27 -> 105 | BP33: -1 | BQ33: 105 | BS33: 105 | BT33: 0 | BU33: 105 | BV33: 0 | BW33: 105
A34: 2 | B34: =IF($A34>$A$8,"",OFFSET(InputPriceData!$B$15,$A34+$A$11,0,1,1)) -> 2024-02-14 | C34: =IF($A34>$A$8,"",OFFSET(InputPriceData!$G$15,CalculationsAndCharts!$A34+$A$11,IF($C$5,8,0),1,1)) -> 9348800 | D34: =IF(A34>$A$8,"",OFFSET(InputPriceData!$C$15,CalculationsAndCharts!$A34+$A$11,IF($C$5,8,0),1,1)) -> 20.889999 | E34: =IF(A34>$A$8,"",OFFSET(InputPriceData!$D$15,CalculationsAndCharts!$A34+$A$11,IF($C$5,8,0),1,1)) -> 21.33 | F34: =IF(A34>$A$8,"",OFFSET(InputPriceData!$E$15,CalculationsAndCharts!$A34+$A$11,IF($C$5,8,0),1,1)) -> 20.559999 | G34: =IF(A34>$A$8,"",OFFSET(InputPriceData!$F$15,CalculationsAndCharts!$A34+$A$11,IF($C$5,8,0),1,1)) -> 21.209999 | H34: =IF(A34>$H$30,NA(),IF(A34=$H$30,AVERAGE(OFFSET(G34,0,0,$A$17,1)),$D$17*(G34-H35)+H35)) -> 21.57988809 | I34: ="b1(" & $A$17 & ") ==>" -> b1(20) ==> | J34: =2*J33*COS(RADIANS(1.414*180/$A$17)) -> 1.562308736 | K34: =IF($A34>$B$30,NA(),IF($A34>$J$30,G34,$J$35*(G34+G35)/2 +$J$36*K35+$J$37*K36)) -> 21.45621568 | L34: ="b1(" & $A$20 & ") ==>" -> b1(30) ==> | M34: =2*M33*COS(RADIANS(1.414*180/$A$20)) -> 1.705861666 | N34: =IF($A34>$B$30,NA(),IF($A34>$J$30,0,$M$35*(G34-2*G35+G36)+M37*N35+M38*N36)) -> 1.163842556 | O34: ="b1(" & $A$21 & ") ==>" -> b1(15) ==> | P34: =2*P33*COS(RADIANS(1.414*180/$A$21)) -> 1.422608148 | Q34: =IF($A34>$B$30,NA(),IF($A34>$J$30,N34,$P$35*(N34+N35)/2 +$P$36*Q35+$P$37*Q36)) -> 0.03943418621 | R34: ="b1(" & $A$24 & ") ==>" -> b1(20) ==> | S34: =2*S33*COS(RADIANS(1.414*180/$A$24)) -> 1.562308736 | T34: =IF($A34>$B$30,NA(),IF($A34>$J$30,G34,(1-$S$35)*G34+(2*$S$35-$S$36)*G35-($S$35+$S$37)*G36+$S$36*T35+$S$37*T36)) -> 21.02125505 | BA34: =IF(R35,F34*$BA$30,NA()) ->  | BB34: =IF(S35,E34*$BB$30,NA()) -> 21.7566 | BC34: =IF(G34>=G35,C34,NA()) -> 9348800 | BD34: =IF(G34<G35,C34,NA()) ->  | BE34: =$E$27 -> 105 | BF34: =CEILING(BF32,10^INT(LOG10(BF32))/8) -> 15000000 | BG34: =$E$27 -> 105 | BH34: 30.33256365 | BI34: =$E$27 -> 105 | BJ34: 4.360520465 | BK34: =$E$27 -> 105 | BL34: 1 | BM34: 105 | BN34: 0 | BO34: 105 | BP34: 1.0028993 | BQ34: 105 | BR34: 0 | BS34: 105 | BT34: 0 | BU34: 105 | BV34: 0 | BW34: 105 | BX34: 0
A35: 3 | B35: =IF(A35>$A$8,"",OFFSET(InputPriceData!B$15,$A35+$A$11,0,1,1)) -> 2024-02-13 | C35: =IF(A35>$A$8,"",OFFSET(InputPriceData!G$15,CalculationsAndCharts!$A35+$A$11,IF($C$5,8,0),1,1)) -> 6271000 | D35: =IF(A35>$A$8,"",OFFSET(InputPriceData!C$15,CalculationsAndCharts!$A35+$A$11,IF($C$5,8,0),1,1)) -> 21.16 | E35: =IF(A35>$A$8,"",OFFSET(InputPriceData!D$15,CalculationsAndCharts!$A35+$A$11,IF($C$5,8,0),1,1)) -> 21.280001 | F35: =IF(A35>$A$8,"",OFFSET(InputPriceData!E$15,CalculationsAndCharts!$A35+$A$11,IF($C$5,8,0),1,1)) -> 20.77 | G35: =IF(A35>$A$8,"",OFFSET(InputPriceData!$F$15,CalculationsAndCharts!$A35+$A$11,IF($C$5,8,0),1,1)) -> 21 | H35: 21.64516263 | I35: ="c1(" & $A$17 & ") ==>" -> c1(20) ==> | J35: =1-J36-J37 -> 0.07901504796 | K35: 21.56389677 | L35: ="c1(" & $A$20 & ") ==>" -> c1(30) ==> | M35: =(1+M36-M37)/4 -> 0.8623849009 | N35: -0.7416518771 | O35: ="c1(" & $A$21 & ") ==>" -> c1(15) ==> | P35: =1-P36-P37 -> 0.1304487274 | Q35: 0.01691450086 | R35: ="c1(" & $A$24 & ") ==>" -> c1(20) ==> | S35: =(1+S36-S37)/4 -> 0.8009081301 | T35: 21.11405382 | BB35: 21.70560102 | BD35: 6271000
A36: 4 | B36: =IF(A36>$A$8,"",OFFSET(InputPriceData!B$15,$A36+$A$11,0,1,1)) -> 2024-02-12 | C36: =IF(A36>$A$8,"",OFFSET(InputPriceData!G$15,CalculationsAndCharts!$A36+$A$11,IF($C$5,8,0),1,1)) -> 5174800 | D36: =IF(A36>$A$8,"",OFFSET(InputPriceData!C$15,CalculationsAndCharts!$A36+$A$11,IF($C$5,8,0),1,1)) -> 21.200001 | E36: =IF(A36>$A$8,"",OFFSET(InputPriceData!D$15,CalculationsAndCharts!$A36+$A$11,IF($C$5,8,0),1,1)) -> 22.01 | F36: =IF(A36>$A$8,"",OFFSET(InputPriceData!E$15,CalculationsAndCharts!$A36+$A$11,IF($C$5,8,0),1,1)) -> 21.15 | G36: =IF(A36>$A$8,"",OFFSET(InputPriceData!F$15,CalculationsAndCharts!$A36+$A$11,IF($C$5,8,0),1,1)) -> 21.5 | H36: 21.75901486 | I36: ="c2(" & $A$17 & ") ==>" -> c2(20) ==> | J36: =J34 -> 1.562308736 | K36: 21.67526222 | L36: ="c2(" & $A$20 & ") ==>" -> c2(30) ==> | M36: =M34 -> 1.705861666 | N36: 0.7330280281 | O36: ="c2(" & $A$21 & ") ==>" -> c2(15) ==> | P36: =P34 -> 1.422608148 | Q36: 0.02199708463 | R36: ="c2(" & $A$24 & ") ==>" -> c2(20) ==> | S36: =S34 -> 1.562308736 | T36: 21.18547441 | BB36: 22.4502 | BC36: 5174800
A37: 5 | B37: =IF(A37>$A$8,"",OFFSET(InputPriceData!B$15,$A37+$A$11,0,1,1)) -> 2024-02-09 | C37: =IF(A37>$A$8,"",OFFSET(InputPriceData!G$15,CalculationsAndCharts!$A37+$A$11,IF($C$5,8,0),1,1)) -> 5457700 | D37: =IF(A37>$A$8,"",OFFSET(InputPriceData!C$15,CalculationsAndCharts!$A37+$A$11,IF($C$5,8,0),1,1)) -> 21.5 | E37: =IF(A37>$A$8,"",OFFSET(InputPriceData!D$15,CalculationsAndCharts!$A37+$A$11,IF($C$5,8,0),1,1)) -> 21.700001 | F37: =IF(A37>$A$8,"",OFFSET(InputPriceData!E$15,CalculationsAndCharts!$A37+$A$11,IF($C$5,8,0),1,1)) -> 20.959999 | G37: =IF(A37>$A$8,"",OFFSET(InputPriceData!F$15,CalculationsAndCharts!$A37+$A$11,IF($C$5,8,0),1,1)) -> 21.139999 | H37: 21.80472337 | I37: ="c3(" & $A$17 & ") ==>" -> c3(20) ==> | J37: =-(J33^2) -> -0.6413237842 | K37: 21.79651661 | L37: ="c3(" & $A$20 & ") ==>" -> c3(30) ==> | M37: =-(M33^2) -> -0.7436779377 | N37: -0.6554107999 | O37: ="c3(" & $A$21 & ") ==>" -> c3(15) ==> | P37: =-(P33^2) -> -0.553056875 | Q37: 0.02498160048 | R37: ="c3(" & $A$24 & ") ==>" -> c3(20) ==> | S37: =-(S33^2) -> -0.6413237842 | T37: 21.26995192 | BD37: 5457700
A38: 6 | B38: =IF(A38>$A$8,"",OFFSET(InputPriceData!B$15,$A38+$A$11,0,1,1)) -> 2024-02-08 | C38: =IF(A38>$A$8,"",OFFSET(InputPriceData!G$15,CalculationsAndCharts!$A38+$A$11,IF($C$5,8,0),1,1)) -> 5237500 | D38: =IF(A38>$A$8,"",OFFSET(InputPriceData!C$15,CalculationsAndCharts!$A38+$A$11,IF($C$5,8,0),1,1)) -> 21.17 | E38: =IF(A38>$A$8,"",OFFSET(InputPriceData!D$15,CalculationsAndCharts!$A38+$A$11,IF($C$5,8,0),1,1)) -> 21.790001 | F38: =IF(A38>$A$8,"",OFFSET(InputPriceData!E$15,CalculationsAndCharts!$A38+$A$11,IF($C$5,8,0),1,1)) -> 21.16 | G38: =IF(A38>$A$8,"",OFFSET(InputPriceData!F$15,CalculationsAndCharts!$A38+$A$11,IF($C$5,8,0),1,1)) -> 21.629999 | H38: 21.92202767 | K38: 21.92687569 | N38: 0.3880714806 | Q38: 0.03363935775 | T38: 21.37549332 | BC38: 5237500
A39: 7 | B39: =IF(A39>$A$8,"",OFFSET(InputPriceData!B$15,$A39+$A$11,0,1,1)) -> 2024-02-07 | C39: =IF(A39>$A$8,"",OFFSET(InputPriceData!G$15,CalculationsAndCharts!$A39+$A$11,IF($C$5,8,0),1,1)) -> 3066400 | D39: =IF(A39>$A$8,"",OFFSET(InputPriceData!C$15,CalculationsAndCharts!$A39+$A$11,IF($C$5,8,0),1,1)) -> 21.66 | E39: =IF(A39>$A$8,"",OFFSET(InputPriceData!D$15,CalculationsAndCharts!$A39+$A$11,IF($C$5,8,0),1,1)) -> 21.74 | F39: =IF(A39>$A$8,"",OFFSET(InputPriceData!E$15,CalculationsAndCharts!$A39+$A$11,IF($C$5,8,0),1,1)) -> 21.23 | G39: =IF(A39>$A$8,"",OFFSET(InputPriceData!F$15,CalculationsAndCharts!$A39+$A$11,IF($C$5,8,0),1,1)) -> 21.360001 | H39: 21.97356214 | K39: 22.06337875 | N39: -0.5174309405 | Q39: 0.009830791734 | T39: 21.48648815 | BD39: 3066400
A40: 8 | B40: =IF(A40>$A$8,"",OFFSET(InputPriceData!B$15,$A40+$A$11,0,1,1)) -> 2024-02-06 | C40: =IF(A40>$A$8,"",OFFSET(InputPriceData!G$15,CalculationsAndCharts!$A40+$A$11,IF($C$5,8,0),1,1)) -> 3288500 | D40: =IF(A40>$A$8,"",OFFSET(InputPriceData!C$15,CalculationsAndCharts!$A40+$A$11,IF($C$5,8,0),1,1)) -> 21.129999 | E40: =IF(A40>$A$8,"",OFFSET(InputPriceData!D$15,CalculationsAndCharts!$A40+$A$11,IF($C$5,8,0),1,1)) -> 21.879999 | F40: =IF(A40>$A$8,"",OFFSET(InputPriceData!E$15,CalculationsAndCharts!$A40+$A$11,IF($C$5,8,0),1,1)) -> 21.02 | G40: =IF(A40>$A$8,"",OFFSET(InputPriceData!F$15,CalculationsAndCharts!$A40+$A$11,IF($C$5,8,0),1,1)) -> 21.540001 | H40: 22.08183763 | K40: 22.20619676 | N40: 1.026236307 | Q40: -0.0507929348 | T40: 21.68300302 | BC40: =IF(G40>=G41,C40,NA()) -> 3288500 | BD40: =IF(G40<G41,C40,NA()) -> 
A41: 9 | B41: =IF(A41>$A$8,"",OFFSET(InputPriceData!B$15,$A41+$A$11,0,1,1)) -> 2024-02-05 | C41: =IF(A41>$A$8,"",OFFSET(InputPriceData!G$15,CalculationsAndCharts!$A41+$A$11,IF($C$5,8,0),1,1)) -> 3341900 | D41: =IF(A41>$A$8,"",OFFSET(InputPriceData!C$15,CalculationsAndCharts!$A41+$A$11,IF($C$5,8,0),1,1)) -> 21.709999 | E41: =IF(A41>$A$8,"",OFFSET(InputPriceData!D$15,CalculationsAndCharts!$A41+$A$11,IF($C$5,8,0),1,1)) -> 21.709999 | F41: =IF(A41>$A$8,"",OFFSET(InputPriceData!E$15,CalculationsAndCharts!$A41+$A$11,IF($C$5,8,0),1,1)) -> 21.110001 | G41: =IF(A41>$A$8,"",OFFSET(InputPriceData!F$15,CalculationsAndCharts!$A41+$A$11,IF($C$5,8,0),1,1)) -> 21.120001 | H41: 22.17745586 | K41: 22.3357213 | N41: -0.4311898633 | Q41: -0.08842260272 | T41: 22.02043703 | BD41: 3341900
A42: 10 | B42: =IF(A42>$A$8,"",OFFSET(InputPriceData!B$15,$A42+$A$11,0,1,1)) -> 2024-02-02 | C42: =IF(A42>$A$8,"",OFFSET(InputPriceData!G$15,CalculationsAndCharts!$A42+$A$11,IF($C$5,8,0),1,1)) -> 2749600 | D42: =IF(A42>$A$8,"",OFFSET(InputPriceData!C$15,CalculationsAndCharts!$A42+$A$11,IF($C$5,8,0),1,1)) -> 22.09 | E42: =IF(A42>$A$8,"",OFFSET(InputPriceData!D$15,CalculationsAndCharts!$A42+$A$11,IF($C$5,8,0),1,1)) -> 22.200001 | F42: =IF(A42>$A$8,"",OFFSET(InputPriceData!E$15,CalculationsAndCharts!$A42+$A$11,IF($C$5,8,0),1,1)) -> 21.66 | G42: =IF(A42>$A$8,"",OFFSET(InputPriceData!F$15,CalculationsAndCharts!$A42+$A$11,IF($C$5,8,0),1,1)) -> 21.889999 | H42: 22.36406554 | K42: 22.4137747 | N42: -0.07761550346 | Q42: -0.0654295358 | T42: 22.37443133 | BD42: 2749600
A43: 11 | B43: =IF(A43>$A$8,"",OFFSET(InputPriceData!B$15,$A43+$A$11,0,1,1)) -> 2024-02-01 | C43: =IF(A43>$A$8,"",OFFSET(InputPriceData!G$15,CalculationsAndCharts!$A43+$A$11,IF($C$5,8,0),1,1)) -> 3679300 | D43: =IF(A43>$A$8,"",OFFSET(InputPriceData!C$15,CalculationsAndCharts!$A43+$A$11,IF($C$5,8,0),1,1)) -> 22.48 | E43: =IF(A43>$A$8,"",OFFSET(InputPriceData!D$15,CalculationsAndCharts!$A43+$A$11,IF($C$5,8,0),1,1)) -> 22.610001 | F43: =IF(A43>$A$8,"",OFFSET(InputPriceData!E$15,CalculationsAndCharts!$A43+$A$11,IF($C$5,8,0),1,1)) -> 21.84 | G43: =IF(A43>$A$8,"",OFFSET(InputPriceData!F$15,CalculationsAndCharts!$A43+$A$11,IF($C$5,8,0),1,1)) -> 22.16 | H43: 22.44772435 | K43: 22.42351475 | N43: 0.3535778094 | Q43: -0.06842785254 | T43: 22.56049738 | BD43: 3679300
A44: 12 | B44: =IF(A44>$A$8,"",OFFSET(InputPriceData!B$15,$A44+$A$11,0,1,1)) -> 2024-01-31 | C44: =IF(A44>$A$8,"",OFFSET(InputPriceData!G$15,CalculationsAndCharts!$A44+$A$11,IF($C$5,8,0),1,1)) -> 3926000 | D44: =IF(A44>$A$8,"",OFFSET(InputPriceData!C$15,CalculationsAndCharts!$A44+$A$11,IF($C$5,8,0),1,1)) -> 22.9 | E44: =IF(A44>$A$8,"",OFFSET(InputPriceData!D$15,CalculationsAndCharts!$A44+$A$11,IF($C$5,8,0),1,1)) -> 23.01 | F44: =IF(A44>$A$8,"",OFFSET(InputPriceData!E$15,CalculationsAndCharts!$A44+$A$11,IF($C$5,8,0),1,1)) -> 22.34 | G44: =IF(A44>$A$8,"",OFFSET(InputPriceData!F$15,CalculationsAndCharts!$A44+$A$11,IF($C$5,8,0),1,1)) -> 22.34 | H44: 22.49849923 | K44: 22.38960263 | N44: -0.8106418068 | Q44: -0.02516381148 | T44: 22.67267246 | BD44: 3926000
A45: 13 | B45: =IF(A45>$A$8,"",OFFSET(InputPriceData!B$15,$A45+$A$11,0,1,1)) -> 2024-01-30 | C45: =IF(A45>$A$8,"",OFFSET(InputPriceData!G$15,CalculationsAndCharts!$A45+$A$11,IF($C$5,8,0),1,1)) -> 3931300 | D45: =IF(A45>$A$8,"",OFFSET(InputPriceData!C$15,CalculationsAndCharts!$A45+$A$11,IF($C$5,8,0),1,1)) -> 22.309999 | E45: =IF(A45>$A$8,"",OFFSET(InputPriceData!D$15,CalculationsAndCharts!$A45+$A$11,IF($C$5,8,0),1,1)) -> 23.15 | F45: =IF(A45>$A$8,"",OFFSET(InputPriceData!E$15,CalculationsAndCharts!$A45+$A$11,IF($C$5,8,0),1,1)) -> 22.23 | G45: =IF(A45>$A$8,"",OFFSET(InputPriceData!F$15,CalculationsAndCharts!$A45+$A$11,IF($C$5,8,0),1,1)) -> 22.93 | H45: 22.52646968 | K45: 22.3195244 | N45: 0.3880732054 | Q45: 0.005095137647 | T45: 22.60390477 | BC45: =IF(G45>=G46,C45,NA()) -> 3931300 | BD45: =IF(G45<G46,C45,NA()) -> 
A46: 14 | B46: =IF(A46>$A$8,"",OFFSET(InputPriceData!B$15,$A46+$A$11,0,1,1)) -> 2024-01-29 | C46: =IF(A46>$A$8,"",OFFSET(InputPriceData!G$15,CalculationsAndCharts!$A46+$A$11,IF($C$5,8,0),1,1)) -> 4025200 | D46: =IF(A46>$A$8,"",OFFSET(InputPriceData!C$15,CalculationsAndCharts!$A46+$A$11,IF($C$5,8,0),1,1)) -> 22.58 | E46: =IF(A46>$A$8,"",OFFSET(InputPriceData!D$15,CalculationsAndCharts!$A46+$A$11,IF($C$5,8,0),1,1)) -> 22.629999 | F46: =IF(A46>$A$8,"",OFFSET(InputPriceData!E$15,CalculationsAndCharts!$A46+$A$11,IF($C$5,8,0),1,1)) -> 22.059999 | G46: =IF(A46>$A$8,"",OFFSET(InputPriceData!F$15,CalculationsAndCharts!$A46+$A$11,IF($C$5,8,0),1,1)) -> 22.58 | H46: 22.45525845 | K46: 22.24912173 | N46: 0.01724683563 | Q46: 0.008770214947 | T46: 22.44078757 | BD46: 4025200
A47: 15 | B47: =IF(A47>$A$8,"",OFFSET(InputPriceData!B$15,$A47+$A$11,0,1,1)) -> 2024-01-26 | C47: =IF(A47>$A$8,"",OFFSET(InputPriceData!G$15,CalculationsAndCharts!$A47+$A$11,IF($C$5,8,0),1,1)) -> 5238400 | D47: =IF(A47>$A$8,"",OFFSET(InputPriceData!C$15,CalculationsAndCharts!$A47+$A$11,IF($C$5,8,0),1,1)) -> 22.790001 | E47: =IF(A47>$A$8,"",OFFSET(InputPriceData!D$15,CalculationsAndCharts!$A47+$A$11,IF($C$5,8,0),1,1)) -> 22.879999 | F47: =IF(A47>$A$8,"",OFFSET(InputPriceData!E$15,CalculationsAndCharts!$A47+$A$11,IF($C$5,8,0),1,1)) -> 22.280001 | G47: =IF(A47>$A$8,"",OFFSET(InputPriceData!F$15,CalculationsAndCharts!$A47+$A$11,IF($C$5,8,0),1,1)) -> 22.68 | H47: 22.43324524 | K47: 22.20167195 | N47: -0.3277036752 | Q47: 0.06114774969 | T47: 22.28736491 | BD47: 5238400
A48: 16 | B48: =IF(A48>$A$8,"",OFFSET(InputPriceData!B$15,$A48+$A$11,0,1,1)) -> 2024-01-25 | C48: =IF(A48>$A$8,"",OFFSET(InputPriceData!G$15,CalculationsAndCharts!$A48+$A$11,IF($C$5,8,0),1,1)) -> 5081600 | D48: =IF(A48>$A$8,"",OFFSET(InputPriceData!C$15,CalculationsAndCharts!$A48+$A$11,IF($C$5,8,0),1,1)) -> 22.799999 | E48: =IF(A48>$A$8,"",OFFSET(InputPriceData!D$15,CalculationsAndCharts!$A48+$A$11,IF($C$5,8,0),1,1)) -> 22.879999 | F48: =IF(A48>$A$8,"",OFFSET(InputPriceData!E$15,CalculationsAndCharts!$A48+$A$11,IF($C$5,8,0),1,1)) -> 22.200001 | G48: =IF(A48>$A$8,"",OFFSET(InputPriceData!F$15,CalculationsAndCharts!$A48+$A$11,IF($C$5,8,0),1,1)) -> 22.799999 | H48: 22.38970028 | K48: 22.18045735 | N48: -0.3104611515 | Q48: 0.1048169271 | T48: 22.03560794 | BC48: 5081600
A49: 17 | B49: =IF(A49>$A$8,"",OFFSET(InputPriceData!B$15,$A49+$A$11,0,1,1)) -> 2024-01-24 | C49: =IF(A49>$A$8,"",OFFSET(InputPriceData!G$15,CalculationsAndCharts!$A49+$A$11,IF($C$5,8,0),1,1)) -> 2918600 | D49: =IF(A49>$A$8,"",OFFSET(InputPriceData!C$15,CalculationsAndCharts!$A49+$A$11,IF($C$5,8,0),1,1)) -> 22.23 | E49: =IF(A49>$A$8,"",OFFSET(InputPriceData!D$15,CalculationsAndCharts!$A49+$A$11,IF($C$5,8,0),1,1)) -> 22.709999 | F49: =IF(A49>$A$8,"",OFFSET(InputPriceData!E$15,CalculationsAndCharts!$A49+$A$11,IF($C$5,8,0),1,1)) -> 22.15 | G49: =IF(A49>$A$8,"",OFFSET(InputPriceData!F$15,CalculationsAndCharts!$A49+$A$11,IF($C$5,8,0),1,1)) -> 22.540001 | H49: 22.31729462 | K49: 22.21631702 | N49: 0.2932108663 | Q49: 0.08379205142 | T49: 21.76467181 | BC49: 2918600
A50: 18 | B50: =IF(A50>$A$8,"",OFFSET(InputPriceData!B$15,$A50+$A$11,0,1,1)) -> 2024-01-23 | C50: =IF(A50>$A$8,"",OFFSET(InputPriceData!G$15,CalculationsAndCharts!$A50+$A$11,IF($C$5,8,0),1,1)) -> 3245500 | D50: =IF(A50>$A$8,"",OFFSET(InputPriceData!C$15,CalculationsAndCharts!$A50+$A$11,IF($C$5,8,0),1,1)) -> 21.74 | E50: =IF(A50>$A$8,"",OFFSET(InputPriceData!D$15,CalculationsAndCharts!$A50+$A$11,IF($C$5,8,0),1,1)) -> 22.07 | F50: =IF(A50>$A$8,"",OFFSET(InputPriceData!E$15,CalculationsAndCharts!$A50+$A$11,IF($C$5,8,0),1,1)) -> 21.58 | G50: =IF(A50>$A$8,"",OFFSET(InputPriceData!F$15,CalculationsAndCharts!$A50+$A$11,IF($C$5,8,0),1,1)) -> 21.92 | H50: 22.27799349 | K50: 22.32812864 | N50: 0.4656895712 | Q50: 0.02397798429 | T50: 21.67272526 | BC50: 3245500
A51: 19 | B51: =IF(A51>$A$8,"",OFFSET(InputPriceData!B$15,$A51+$A$11,0,1,1)) -> 2024-01-22 | C51: =IF(A51>$A$8,"",OFFSET(InputPriceData!G$15,CalculationsAndCharts!$A51+$A$11,IF($C$5,8,0),1,1)) -> 4527600 | D51: =IF(A51>$A$8,"",OFFSET(InputPriceData!C$15,CalculationsAndCharts!$A51+$A$11,IF($C$5,8,0),1,1)) -> 21.559999 | E51: =IF(A51>$A$8,"",OFFSET(InputPriceData!D$15,CalculationsAndCharts!$A51+$A$11,IF($C$5,8,0),1,1)) -> 21.91 | F51: =IF(A51>$A$8,"",OFFSET(InputPriceData!E$15,CalculationsAndCharts!$A51+$A$11,IF($C$5,8,0),1,1)) -> 21.42 | G51: =IF(A51>$A$8,"",OFFSET(InputPriceData!F$15,CalculationsAndCharts!$A51+$A$11,IF($C$5,8,0),1,1)) -> 21.639999 | H51: 22.34116882 | K51: 22.49038368 | N51: -0.2242209366 | Q51: -0.0003290393503 | T51: 21.82196782 | BD51: 4527600
A52: 20 | B52: =IF(A52>$A$8,"",OFFSET(InputPriceData!B$15,$A52+$A$11,0,1,1)) -> 2024-01-19 | C52: =IF(A52>$A$8,"",OFFSET(InputPriceData!G$15,CalculationsAndCharts!$A52+$A$11,IF($C$5,8,0),1,1)) -> 4939200 | D52: =IF(A52>$A$8,"",OFFSET(InputPriceData!C$15,CalculationsAndCharts!$A52+$A$11,IF($C$5,8,0),1,1)) -> 21.629999 | E52: =IF(A52>$A$8,"",OFFSET(InputPriceData!D$15,CalculationsAndCharts!$A52+$A$11,IF($C$5,8,0),1,1)) -> 21.950001 | F52: =IF(A52>$A$8,"",OFFSET(InputPriceData!E$15,CalculationsAndCharts!$A52+$A$11,IF($C$5,8,0),1,1)) -> 21.32 | G52: =IF(A52>$A$8,"",OFFSET(InputPriceData!F$15,CalculationsAndCharts!$A52+$A$11,IF($C$5,8,0),1,1)) -> 21.9 | H52: 22.46490467 | K52: 22.65586016 | N52: 0.1811016916 | Q52: -0.01572431462 | T52: 22.05448393 | BC52: 4939200
A53: 21 | B53: =IF(A53>$A$8,"",OFFSET(InputPriceData!B$15,$A53+$A$11,0,1,1)) -> 2024-01-18 | C53: =IF(A53>$A$8,"",OFFSET(InputPriceData!G$15,CalculationsAndCharts!$A53+$A$11,IF($C$5,8,0),1,1)) -> 4637300 | D53: =IF(A53>$A$8,"",OFFSET(InputPriceData!C$15,CalculationsAndCharts!$A53+$A$11,IF($C$5,8,0),1,1)) -> 22.24 | E53: =IF(A53>$A$8,"",OFFSET(InputPriceData!D$15,CalculationsAndCharts!$A53+$A$11,IF($C$5,8,0),1,1)) -> 22.34 | F53: =IF(A53>$A$8,"",OFFSET(InputPriceData!E$15,CalculationsAndCharts!$A53+$A$11,IF($C$5,8,0),1,1)) -> 21.65 | G53: =IF(A53>$A$8,"",OFFSET(InputPriceData!F$15,CalculationsAndCharts!$A53+$A$11,IF($C$5,8,0),1,1)) -> 21.9 | H53: 22.56459372 | K53: 22.80473996 | N53: -0.258717195 | Q53: -0.04493737477 | T53: 22.31729265 | BD53: 4637300
A54: 22 | B54: =IF(A54>$A$8,"",OFFSET(InputPriceData!B$15,$A54+$A$11,0,1,1)) -> 2024-01-17 | C54: =IF(A54>$A$8,"",OFFSET(InputPriceData!G$15,CalculationsAndCharts!$A54+$A$11,IF($C$5,8,0),1,1)) -> 4608300 | D54: =IF(A54>$A$8,"",OFFSET(InputPriceData!C$15,CalculationsAndCharts!$A54+$A$11,IF($C$5,8,0),1,1)) -> 21.75 | E54: =IF(A54>$A$8,"",OFFSET(InputPriceData!D$15,CalculationsAndCharts!$A54+$A$11,IF($C$5,8,0),1,1)) -> 22.450001 | F54: =IF(A54>$A$8,"",OFFSET(InputPriceData!E$15,CalculationsAndCharts!$A54+$A$11,IF($C$5,8,0),1,1)) -> 21.65 | G54: =IF(A54>$A$8,"",OFFSET(InputPriceData!F$15,CalculationsAndCharts!$A54+$A$11,IF($C$5,8,0),1,1)) -> 22.110001 | H54: 22.68187497 | K54: 22.92541493 | N54: 1.310826774 | Q54: -0.09631266711 | T54: 22.62341484 | BC54: 4608300
A55: 23 | B55: =IF(A55>$A$8,"",OFFSET(InputPriceData!B$15,$A55+$A$11,0,1,1)) -> 2024-01-16 | C55: =IF(A55>$A$8,"",OFFSET(InputPriceData!G$15,CalculationsAndCharts!$A55+$A$11,IF($C$5,8,0),1,1)) -> 5495300 | D55: =IF(A55>$A$8,"",OFFSET(InputPriceData!C$15,CalculationsAndCharts!$A55+$A$11,IF($C$5,8,0),1,1)) -> 22.85 | E55: =IF(A55>$A$8,"",OFFSET(InputPriceData!D$15,CalculationsAndCharts!$A55+$A$11,IF($C$5,8,0),1,1)) -> 23.309999 | F55: =IF(A55>$A$8,"",OFFSET(InputPriceData!E$15,CalculationsAndCharts!$A55+$A$11,IF($C$5,8,0),1,1)) -> 22 | G55: =IF(A55>$A$8,"",OFFSET(InputPriceData!F$15,CalculationsAndCharts!$A55+$A$11,IF($C$5,8,0),1,1)) -> 22.02 | H55: 22.78279391 | K55: 23.00017963 | N55: -1.836881564 | Q55: -0.04240907838 | T55: 22.99469068 | BD55: 5495300
A56: 24 | B56: =IF(A56>$A$8,"",OFFSET(InputPriceData!B$15,$A56+$A$11,0,1,1)) -> 2024-01-12 | C56: =IF(A56>$A$8,"",OFFSET(InputPriceData!G$15,CalculationsAndCharts!$A56+$A$11,IF($C$5,8,0),1,1)) -> 4952800 | D56: =IF(A56>$A$8,"",OFFSET(InputPriceData!C$15,CalculationsAndCharts!$A56+$A$11,IF($C$5,8,0),1,1)) -> 23.35 | E56: =IF(A56>$A$8,"",OFFSET(InputPriceData!D$15,CalculationsAndCharts!$A56+$A$11,IF($C$5,8,0),1,1)) -> 23.700001 | F56: =IF(A56>$A$8,"",OFFSET(InputPriceData!E$15,CalculationsAndCharts!$A56+$A$11,IF($C$5,8,0),1,1)) -> 22.91 | G56: =IF(A56>$A$8,"",OFFSET(InputPriceData!F$15,CalculationsAndCharts!$A56+$A$11,IF($C$5,8,0),1,1)) -> 23.450001 | H56: 22.91740459 | K56: 23.0015385 | N56: 0.7244033167 | Q56: 0.003018817484 | T56: 23.12562814 | BC56: 4952800
A57: 25 | B57: =IF(A57>$A$8,"",OFFSET(InputPriceData!B$15,$A57+$A$11,0,1,1)) -> 2024-01-11 | C57: =IF(A57>$A$8,"",OFFSET(InputPriceData!G$15,CalculationsAndCharts!$A57+$A$11,IF($C$5,8,0),1,1)) -> 5602600 | D57: =IF(A57>$A$8,"",OFFSET(InputPriceData!C$15,CalculationsAndCharts!$A57+$A$11,IF($C$5,8,0),1,1)) -> 22.99 | E57: =IF(A57>$A$8,"",OFFSET(InputPriceData!D$15,CalculationsAndCharts!$A57+$A$11,IF($C$5,8,0),1,1)) -> 23.530001 | F57: =IF(A57>$A$8,"",OFFSET(InputPriceData!E$15,CalculationsAndCharts!$A57+$A$11,IF($C$5,8,0),1,1)) -> 22.66 | G57: =IF(A57>$A$8,"",OFFSET(InputPriceData!F$15,CalculationsAndCharts!$A57+$A$11,IF($C$5,8,0),1,1)) -> 22.75 | H57: 22.82341699 | K57: 22.97081823 | N57: 0.3535803965 | Q57: -0.04675290047 | T57: 23.10001772 | BD57: 5602600
A58: 26 | B58: =IF(A58>$A$8,"",OFFSET(InputPriceData!B$15,$A58+$A$11,0,1,1)) -> 2024-01-10 | C58: =IF(A58>$A$8,"",OFFSET(InputPriceData!G$15,CalculationsAndCharts!$A58+$A$11,IF($C$5,8,0),1,1)) -> 5539900 | D58: =IF(A58>$A$8,"",OFFSET(InputPriceData!C$15,CalculationsAndCharts!$A58+$A$11,IF($C$5,8,0),1,1)) -> 22.940001 | E58: =IF(A58>$A$8,"",OFFSET(InputPriceData!D$15,CalculationsAndCharts!$A58+$A$11,IF($C$5,8,0),1,1)) -> 23 | F58: =IF(A58>$A$8,"",OFFSET(InputPriceData!E$15,CalculationsAndCharts!$A58+$A$11,IF($C$5,8,0),1,1)) -> 22.469999 | G58: =IF(A58>$A$8,"",OFFSET(InputPriceData!F$15,CalculationsAndCharts!$A58+$A$11,IF($C$5,8,0),1,1)) -> 22.889999 | H58: 22.83637293 | K58: 22.93883294 | N58: -0.84513979 | Q58: 0.001412019572 | T58: 23.19943048 | BD58: 5539900
A59: 27 | B59: =IF(A59>$A$8,"",OFFSET(InputPriceData!B$15,$A59+$A$11,0,1,1)) -> 2024-01-09 | C59: =IF(A59>$A$8,"",OFFSET(InputPriceData!G$15,CalculationsAndCharts!$A59+$A$11,IF($C$5,8,0),1,1)) -> 6214200 | D59: =IF(A59>$A$8,"",OFFSET(InputPriceData!C$15,CalculationsAndCharts!$A59+$A$11,IF($C$5,8,0),1,1)) -> 23.309999 | E59: =IF(A59>$A$8,"",OFFSET(InputPriceData!D$15,CalculationsAndCharts!$A59+$A$11,IF($C$5,8,0),1,1)) -> 23.76 | F59: =IF(A59>$A$8,"",OFFSET(InputPriceData!E$15,CalculationsAndCharts!$A59+$A$11,IF($C$5,8,0),1,1)) -> 22.82 | G59: =IF(A59>$A$8,"",OFFSET(InputPriceData!F$15,CalculationsAndCharts!$A59+$A$11,IF($C$5,8,0),1,1)) -> 23.440001 | H59: 22.82690951 | K59: 22.87431807 | N59: 0.577798746 | Q59: 0.03019581371 | T59: 23.13599707 | BC59: 6214200
A60: 28 | B60: =IF(A60>$A$8,"",OFFSET(InputPriceData!B$15,$A60+$A$11,0,1,1)) -> 2024-01-08 | C60: =IF(A60>$A$8,"",OFFSET(InputPriceData!G$15,CalculationsAndCharts!$A60+$A$11,IF($C$5,8,0),1,1)) -> 7462400 | D60: =IF(A60>$A$8,"",OFFSET(InputPriceData!C$15,CalculationsAndCharts!$A60+$A$11,IF($C$5,8,0),1,1)) -> 22.459999 | E60: =IF(A60>$A$8,"",OFFSET(InputPriceData!D$15,CalculationsAndCharts!$A60+$A$11,IF($C$5,8,0),1,1)) -> 23.26 | F60: =IF(A60>$A$8,"",OFFSET(InputPriceData!E$15,CalculationsAndCharts!$A60+$A$11,IF($C$5,8,0),1,1)) -> 22.049999 | G60: =IF(A60>$A$8,"",OFFSET(InputPriceData!F$15,CalculationsAndCharts!$A60+$A$11,IF($C$5,8,0),1,1)) -> 23.01 | H60: 22.71871689 | K60: 22.80953547 | N60: -0.9486242534 | Q60: 0.0435898054 | T60: 23.01079975 | BD60: 7462400
A61: 29 | B61: =IF(A61>$A$8,"",OFFSET(InputPriceData!B$15,$A61+$A$11,0,1,1)) -> 2024-01-05 | C61: =IF(A61>$A$8,"",OFFSET(InputPriceData!G$15,CalculationsAndCharts!$A61+$A$11,IF($C$5,8,0),1,1)) -> 9297200 | D61: =IF(A61>$A$8,"",OFFSET(InputPriceData!C$15,CalculationsAndCharts!$A61+$A$11,IF($C$5,8,0),1,1)) -> 22.379999 | E61: =IF(A61>$A$8,"",OFFSET(InputPriceData!D$15,CalculationsAndCharts!$A61+$A$11,IF($C$5,8,0),1,1)) -> 23.25 | F61: =IF(A61>$A$8,"",OFFSET(InputPriceData!E$15,CalculationsAndCharts!$A61+$A$11,IF($C$5,8,0),1,1)) -> 22.219999 | G61: =IF(A61>$A$8,"",OFFSET(InputPriceData!F$15,CalculationsAndCharts!$A61+$A$11,IF($C$5,8,0),1,1)) -> 23.25 | H61: 22.66731399 | K61: 22.75970944 | N61: 1.069359002 | Q61: 0.01379341112 | T61: 22.88925264 | BC61: 9297200
A62: 30 | B62: =IF(A62>$A$8,"",OFFSET(InputPriceData!B$15,$A62+$A$11,0,1,1)) -> 2024-01-04 | C62: =IF(A62>$A$8,"",OFFSET(InputPriceData!G$15,CalculationsAndCharts!$A62+$A$11,IF($C$5,8,0),1,1)) -> 6270700 | D62: =IF(A62>$A$8,"",OFFSET(InputPriceData!C$15,CalculationsAndCharts!$A62+$A$11,IF($C$5,8,0),1,1)) -> 23.27 | E62: =IF(A62>$A$8,"",OFFSET(InputPriceData!D$15,CalculationsAndCharts!$A62+$A$11,IF($C$5,8,0),1,1)) -> 23.280001 | F62: =IF(A62>$A$8,"",OFFSET(InputPriceData!E$15,CalculationsAndCharts!$A62+$A$11,IF($C$5,8,0),1,1)) -> 22.33 | G62: =IF(A62>$A$8,"",OFFSET(InputPriceData!F$15,CalculationsAndCharts!$A62+$A$11,IF($C$5,8,0),1,1)) -> 22.389999 | H62: 22.56448705 | K62: 22.72763906 | N62: -0.4570639975 | Q62: -0.02909707833 | T62: 22.88366732 | BD62: 6270700
A63: 31 | B63: =IF(A63>$A$8,"",OFFSET(InputPriceData!B$15,$A63+$A$11,0,1,1)) -> 2024-01-03 | C63: =IF(A63>$A$8,"",OFFSET(InputPriceData!G$15,CalculationsAndCharts!$A63+$A$11,IF($C$5,8,0),1,1)) -> 5567900 | D63: =IF(A63>$A$8,"",OFFSET(InputPriceData!C$15,CalculationsAndCharts!$A63+$A$11,IF($C$5,8,0),1,1)) -> 22.24 | E63: =IF(A63>$A$8,"",OFFSET(InputPriceData!D$15,CalculationsAndCharts!$A63+$A$11,IF($C$5,8,0),1,1)) -> 23.059999 | F63: =IF(A63>$A$8,"",OFFSET(InputPriceData!E$15,CalculationsAndCharts!$A63+$A$11,IF($C$5,8,0),1,1)) -> 22.17 | G63: =IF(A63>$A$8,"",OFFSET(InputPriceData!F$15,CalculationsAndCharts!$A63+$A$11,IF($C$5,8,0),1,1)) -> 22.77 | H63: 22.59527906 | K63: 22.6890119 | N63: 0.1810991044 | Q63: -0.02757510208 | T63: 22.98655521 | BC63: 5567900
A64: 32 | B64: =IF(A64>$A$8,"",OFFSET(InputPriceData!B$15,$A64+$A$11,0,1,1)) -> 2024-01-02 | C64: =IF(A64>$A$8,"",OFFSET(InputPriceData!G$15,CalculationsAndCharts!$A64+$A$11,IF($C$5,8,0),1,1)) -> 3299500 | D64: =IF(A64>$A$8,"",OFFSET(InputPriceData!C$15,CalculationsAndCharts!$A64+$A$11,IF($C$5,8,0),1,1)) -> 23 | E64: =IF(A64>$A$8,"",OFFSET(InputPriceData!D$15,CalculationsAndCharts!$A64+$A$11,IF($C$5,8,0),1,1)) -> 23.120001 | F64: =IF(A64>$A$8,"",OFFSET(InputPriceData!E$15,CalculationsAndCharts!$A64+$A$11,IF($C$5,8,0),1,1)) -> 22.49 | G64: =IF(A64>$A$8,"",OFFSET(InputPriceData!F$15,CalculationsAndCharts!$A64+$A$11,IF($C$5,8,0),1,1)) -> 22.620001 | H64: 22.56444595 | K64: 22.61535054 | N64: 0.1638539936 | Q64: -0.05086478872 | T64: 23.0396628 | BD64: 3299500
A65: 33 | B65: =IF(A65>$A$8,"",OFFSET(InputPriceData!B$15,$A65+$A$11,0,1,1)) -> 2023-12-29 | C65: =IF(A65>$A$8,"",OFFSET(InputPriceData!G$15,CalculationsAndCharts!$A65+$A$11,IF($C$5,8,0),1,1)) -> 3968300 | D65: =IF(A65>$A$8,"",OFFSET(InputPriceData!C$15,CalculationsAndCharts!$A65+$A$11,IF($C$5,8,0),1,1)) -> 22.870001 | E65: =IF(A65>$A$8,"",OFFSET(InputPriceData!D$15,CalculationsAndCharts!$A65+$A$11,IF($C$5,8,0),1,1)) -> 23.040001 | F65: =IF(A65>$A$8,"",OFFSET(InputPriceData!E$15,CalculationsAndCharts!$A65+$A$11,IF($C$5,8,0),1,1)) -> 22.610001 | G65: =IF(A65>$A$8,"",OFFSET(InputPriceData!F$15,CalculationsAndCharts!$A65+$A$11,IF($C$5,8,0),1,1)) -> 22.68 | H65: 22.55464212 | K65: 22.51030561 | N65: -0.3708255074 | Q65: -0.04029642426 | T65: 23.10240281 | BD65: 3968300
A66: 34 | B66: =IF(A66>$A$8,"",OFFSET(InputPriceData!B$15,$A66+$A$11,0,1,1)) -> 2023-12-28 | C66: =IF(A66>$A$8,"",OFFSET(InputPriceData!G$15,CalculationsAndCharts!$A66+$A$11,IF($C$5,8,0),1,1)) -> 3685600 | D66: =IF(A66>$A$8,"",OFFSET(InputPriceData!C$15,CalculationsAndCharts!$A66+$A$11,IF($C$5,8,0),1,1)) -> 22.799999 | E66: =IF(A66>$A$8,"",OFFSET(InputPriceData!D$15,CalculationsAndCharts!$A66+$A$11,IF($C$5,8,0),1,1)) -> 23.18 | F66: =IF(A66>$A$8,"",OFFSET(InputPriceData!E$15,CalculationsAndCharts!$A66+$A$11,IF($C$5,8,0),1,1)) -> 22.690001 | G66: =IF(A66>$A$8,"",OFFSET(InputPriceData!F$15,CalculationsAndCharts!$A66+$A$11,IF($C$5,8,0),1,1)) -> 22.93 | H66: 22.53252014 | K66: 22.36372297 | N66: 0.3190832757 | Q66: -0.03609179986 | T66: 23.06735412 | BC66: 3685600
A67: 35 | B67: =IF(A67>$A$8,"",OFFSET(InputPriceData!B$15,$A67+$A$11,0,1,1)) -> 2023-12-27 | C67: =IF(A67>$A$8,"",OFFSET(InputPriceData!G$15,CalculationsAndCharts!$A67+$A$11,IF($C$5,8,0),1,1)) -> 4049400 | D67: =IF(A67>$A$8,"",OFFSET(InputPriceData!C$15,CalculationsAndCharts!$A67+$A$11,IF($C$5,8,0),1,1)) -> 23.190001 | E67: =IF(A67>$A$8,"",OFFSET(InputPriceData!D$15,CalculationsAndCharts!$A67+$A$11,IF($C$5,8,0),1,1)) -> 23.26 | F67: =IF(A67>$A$8,"",OFFSET(InputPriceData!E$15,CalculationsAndCharts!$A67+$A$11,IF($C$5,8,0),1,1)) -> 22.639999 | G67: =IF(A67>$A$8,"",OFFSET(InputPriceData!F$15,CalculationsAndCharts!$A67+$A$11,IF($C$5,8,0),1,1)) -> 22.75 | H67: 22.46237664 | K67: 22.18952841 | N67: -0.3018355777 | Q67: -0.02607854466 | T67: 22.96296142 | BD67: 4049400
A68: 36 | B68: =IF(A68>$A$8,"",OFFSET(InputPriceData!B$15,$A68+$A$11,0,1,1)) -> 2023-12-26 | C68: =IF(A68>$A$8,"",OFFSET(InputPriceData!G$15,CalculationsAndCharts!$A68+$A$11,IF($C$5,8,0),1,1)) -> 5142600 | D68: =IF(A68>$A$8,"",OFFSET(InputPriceData!C$15,CalculationsAndCharts!$A68+$A$11,IF($C$5,8,0),1,1)) -> 22.780001 | E68: =IF(A68>$A$8,"",OFFSET(InputPriceData!D$15,CalculationsAndCharts!$A68+$A$11,IF($C$5,8,0),1,1)) -> 23.120001 | F68: =IF(A68>$A$8,"",OFFSET(InputPriceData!E$15,CalculationsAndCharts!$A68+$A$11,IF($C$5,8,0),1,1)) -> 22.629999 | G68: =IF(A68>$A$8,"",OFFSET(InputPriceData!F$15,CalculationsAndCharts!$A68+$A$11,IF($C$5,8,0),1,1)) -> 22.940001 | H68: 22.41161958 | K68: 21.99805335 | N68: 0.1207330237 | Q68: 0.0002119490484 | T68: 22.78254631 | BC68: 5142600
A69: 37 | B69: =IF(A69>$A$8,"",OFFSET(InputPriceData!B$15,$A69+$A$11,0,1,1)) -> 2023-12-22 | C69: =IF(A69>$A$8,"",OFFSET(InputPriceData!G$15,CalculationsAndCharts!$A69+$A$11,IF($C$5,8,0),1,1)) -> 3937500 | D69: =IF(A69>$A$8,"",OFFSET(InputPriceData!C$15,CalculationsAndCharts!$A69+$A$11,IF($C$5,8,0),1,1)) -> 22.790001 | E69: =IF(A69>$A$8,"",OFFSET(InputPriceData!D$15,CalculationsAndCharts!$A69+$A$11,IF($C$5,8,0),1,1)) -> 23.02 | F69: =IF(A69>$A$8,"",OFFSET(InputPriceData!E$15,CalculationsAndCharts!$A69+$A$11,IF($C$5,8,0),1,1)) -> 22.620001 | G69: =IF(A69>$A$8,"",OFFSET(InputPriceData!F$15,CalculationsAndCharts!$A69+$A$11,IF($C$5,8,0),1,1)) -> 22.780001 | H69: 22.3183758 | K69: 21.80384022 | N69: -0.8882564479 | Q69: 0.02634044872 | T69: 22.50145899 | BC69: 3937500
A70: 38 | B70: =IF(A70>$A$8,"",OFFSET(InputPriceData!B$15,$A70+$A$11,0,1,1)) -> 2023-12-21 | C70: =IF(A70>$A$8,"",OFFSET(InputPriceData!G$15,CalculationsAndCharts!$A70+$A$11,IF($C$5,8,0),1,1)) -> 4404600 | D70: =IF(A70>$A$8,"",OFFSET(InputPriceData!C$15,CalculationsAndCharts!$A70+$A$11,IF($C$5,8,0),1,1)) -> 22.01 | E70: =IF(A70>$A$8,"",OFFSET(InputPriceData!D$15,CalculationsAndCharts!$A70+$A$11,IF($C$5,8,0),1,1)) -> 22.77 | F70: =IF(A70>$A$8,"",OFFSET(InputPriceData!E$15,CalculationsAndCharts!$A70+$A$11,IF($C$5,8,0),1,1)) -> 21.950001 | G70: =IF(A70>$A$8,"",OFFSET(InputPriceData!F$15,CalculationsAndCharts!$A70+$A$11,IF($C$5,8,0),1,1)) -> 22.76 | H70: 22.23691252 | K70: 21.63113412 | N70: 1.586789942 | Q70: -0.02314597216 | T70: 22.15213191 | BC70: 4404600
A71: 39 | B71: =IF(A71>$A$8,"",OFFSET(InputPriceData!B$15,$A71+$A$11,0,1,1)) -> 2023-12-20 | C71: =IF(A71>$A$8,"",OFFSET(InputPriceData!G$15,CalculationsAndCharts!$A71+$A$11,IF($C$5,8,0),1,1)) -> 3487800 | D71: =IF(A71>$A$8,"",OFFSET(InputPriceData!C$15,CalculationsAndCharts!$A71+$A$11,IF($C$5,8,0),1,1)) -> 22.530001 | E71: =IF(A71>$A$8,"",OFFSET(InputPriceData!D$15,CalculationsAndCharts!$A71+$A$11,IF($C$5,8,0),1,1)) -> 22.67 | F71: =IF(A71>$A$8,"",OFFSET(InputPriceData!E$15,CalculationsAndCharts!$A71+$A$11,IF($C$5,8,0),1,1)) -> 21.700001 | G71: =IF(A71>$A$8,"",OFFSET(InputPriceData!F$15,CalculationsAndCharts!$A71+$A$11,IF($C$5,8,0),1,1)) -> 21.709999 | H71: 22.14460297 | K71: 21.50215322 | N71: -0.7933941088 | Q71: -0.02478351728 | T71: 21.94981509 | BD71: 3487800
A72: 40 | B72: =IF(A72>$A$8,"",OFFSET(InputPriceData!B$15,$A72+$A$11,0,1,1)) -> 2023-12-19 | C72: =IF(A72>$A$8,"",OFFSET(InputPriceData!G$15,CalculationsAndCharts!$A72+$A$11,IF($C$5,8,0),1,1)) -> 4108200 | D72: =IF(A72>$A$8,"",OFFSET(InputPriceData!C$15,CalculationsAndCharts!$A72+$A$11,IF($C$5,8,0),1,1)) -> 22.33 | E72: =IF(A72>$A$8,"",OFFSET(InputPriceData!D$15,CalculationsAndCharts!$A72+$A$11,IF($C$5,8,0),1,1)) -> 22.51 | F72: =IF(A72>$A$8,"",OFFSET(InputPriceData!E$15,CalculationsAndCharts!$A72+$A$11,IF($C$5,8,0),1,1)) -> 21.809999 | G72: =IF(A72>$A$8,"",OFFSET(InputPriceData!F$15,CalculationsAndCharts!$A72+$A$11,IF($C$5,8,0),1,1)) -> 22.5 | H72: 22.22129779 | K72: 21.39132774 | N72: -0.21559795 | Q72: 0.0716698024 | T72: 21.73418136 | BC72: 4108200
A73: 41 | B73: =IF(A73>$A$8,"",OFFSET(InputPriceData!B$15,$A73+$A$11,0,1,1)) -> 2023-12-18 | C73: =IF(A73>$A$8,"",OFFSET(InputPriceData!G$15,CalculationsAndCharts!$A73+$A$11,IF($C$5,8,0),1,1)) -> 5305500 | D73: =IF(A73>$A$8,"",OFFSET(InputPriceData!C$15,CalculationsAndCharts!$A73+$A$11,IF($C$5,8,0),1,1)) -> 22.459999 | E73: =IF(A73>$A$8,"",OFFSET(InputPriceData!D$15,CalculationsAndCharts!$A73+$A$11,IF($C$5,8,0),1,1)) -> 22.82 | F73: =IF(A73>$A$8,"",OFFSET(InputPriceData!E$15,CalculationsAndCharts!$A73+$A$11,IF($C$5,8,0),1,1)) -> 22.18 | G73: =IF(A73>$A$8,"",OFFSET(InputPriceData!F$15,CalculationsAndCharts!$A73+$A$11,IF($C$5,8,0),1,1)) -> 22.370001 | H73: 22.17211504 | K73: 21.30644913 | N73: 0.224221799 | Q73: 0.1101707616 | T73: 21.27940406 | BC73: 5305500
A74: 42 | B74: =IF(A74>$A$8,"",OFFSET(InputPriceData!B$15,$A74+$A$11,0,1,1)) -> 2023-12-15 | C74: =IF(A74>$A$8,"",OFFSET(InputPriceData!G$15,CalculationsAndCharts!$A74+$A$11,IF($C$5,8,0),1,1)) -> 14949300 | D74: =IF(A74>$A$8,"",OFFSET(InputPriceData!C$15,CalculationsAndCharts!$A74+$A$11,IF($C$5,8,0),1,1)) -> 21.93 | E74: =IF(A74>$A$8,"",OFFSET(InputPriceData!D$15,CalculationsAndCharts!$A74+$A$11,IF($C$5,8,0),1,1)) -> 22.219999 | F74: =IF(A74>$A$8,"",OFFSET(InputPriceData!E$15,CalculationsAndCharts!$A74+$A$11,IF($C$5,8,0),1,1)) -> 21.48 | G74: =IF(A74>$A$8,"",OFFSET(InputPriceData!F$15,CalculationsAndCharts!$A74+$A$11,IF($C$5,8,0),1,1)) -> 21.99 | H74: 22.13719399 | K74: 21.31314454 | N74: -0.6036720178 | Q74: 0.1548168183 | T74: 20.83956419 | BC74: 14949300
A75: 43 | B75: =IF(A75>$A$8,"",OFFSET(InputPriceData!B$15,$A75+$A$11,0,1,1)) -> 2023-12-14 | C75: =IF(A75>$A$8,"",OFFSET(InputPriceData!G$15,CalculationsAndCharts!$A75+$A$11,IF($C$5,8,0),1,1)) -> 7863800 | D75: =IF(A75>$A$8,"",OFFSET(InputPriceData!C$15,CalculationsAndCharts!$A75+$A$11,IF($C$5,8,0),1,1)) -> 21.68 | E75: =IF(A75>$A$8,"",OFFSET(InputPriceData!D$15,CalculationsAndCharts!$A75+$A$11,IF($C$5,8,0),1,1)) -> 22.280001 | F75: =IF(A75>$A$8,"",OFFSET(InputPriceData!E$15,CalculationsAndCharts!$A75+$A$11,IF($C$5,8,0),1,1)) -> 21.290001 | G75: =IF(A75>$A$8,"",OFFSET(InputPriceData!F$15,CalculationsAndCharts!$A75+$A$11,IF($C$5,8,0),1,1)) -> 21.870001 | H75: 22.1631694 | K75: 21.43038654 | N75: 0.1207373357 | Q75: 0.154276188 | T75: 20.44330091 | BC75: 7863800
A76: 44 | B76: =IF(A76>$A$8,"",OFFSET(InputPriceData!B$15,$A76+$A$11,0,1,1)) -> 2023-12-13 | C76: =IF(A76>$A$8,"",OFFSET(InputPriceData!G$15,CalculationsAndCharts!$A76+$A$11,IF($C$5,8,0),1,1)) -> 6708300 | D76: =IF(A76>$A$8,"",OFFSET(InputPriceData!C$15,CalculationsAndCharts!$A76+$A$11,IF($C$5,8,0),1,1)) -> 20.41 | E76: =IF(A76>$A$8,"",OFFSET(InputPriceData!D$15,CalculationsAndCharts!$A76+$A$11,IF($C$5,8,0),1,1)) -> 21.09 | F76: =IF(A76>$A$8,"",OFFSET(InputPriceData!E$15,CalculationsAndCharts!$A76+$A$11,IF($C$5,8,0),1,1)) -> 20.34 | G76: =IF(A76>$A$8,"",OFFSET(InputPriceData!F$15,CalculationsAndCharts!$A76+$A$11,IF($C$5,8,0),1,1)) -> 21.049999 | H76: 22.21490501 | K76: 21.67475455 | N76: 1.293575627 | Q76: 0.05995520166 | T76: 20.24249409 | BC76: 6708300
A77: 45 | B77: =IF(A77>$A$8,"",OFFSET(InputPriceData!B$15,$A77+$A$11,0,1,1)) -> 2023-12-12 | C77: =IF(A77>$A$8,"",OFFSET(InputPriceData!G$15,CalculationsAndCharts!$A77+$A$11,IF($C$5,8,0),1,1)) -> 7138200 | D77: =IF(A77>$A$8,"",OFFSET(InputPriceData!C$15,CalculationsAndCharts!$A77+$A$11,IF($C$5,8,0),1,1)) -> 20.57 | E77: =IF(A77>$A$8,"",OFFSET(InputPriceData!D$15,CalculationsAndCharts!$A77+$A$11,IF($C$5,8,0),1,1)) -> 20.700001 | F77: =IF(A77>$A$8,"",OFFSET(InputPriceData!E$15,CalculationsAndCharts!$A77+$A$11,IF($C$5,8,0),1,1)) -> 20.1 | G77: =IF(A77>$A$8,"",OFFSET(InputPriceData!F$15,CalculationsAndCharts!$A77+$A$11,IF($C$5,8,0),1,1)) -> 20.370001 | H77: 22.42047665 | K77: 22.02933233 | N77: -0.9400004043 | Q77: 0.04206481174 | T77: 20.45263908 | BD77: 7138200
A78: 46 | B78: =IF(A78>$A$8,"",OFFSET(InputPriceData!B$15,$A78+$A$11,0,1,1)) -> 2023-12-11 | C78: =IF(A78>$A$8,"",OFFSET(InputPriceData!G$15,CalculationsAndCharts!$A78+$A$11,IF($C$5,8,0),1,1)) -> 6918200 | D78: =IF(A78>$A$8,"",OFFSET(InputPriceData!C$15,CalculationsAndCharts!$A78+$A$11,IF($C$5,8,0),1,1)) -> 20.15 | E78: =IF(A78>$A$8,"",OFFSET(InputPriceData!D$15,CalculationsAndCharts!$A78+$A$11,IF($C$5,8,0),1,1)) -> 21.280001 | F78: =IF(A78>$A$8,"",OFFSET(InputPriceData!E$15,CalculationsAndCharts!$A78+$A$11,IF($C$5,8,0),1,1)) -> 20.129999 | G78: =IF(A78>$A$8,"",OFFSET(InputPriceData!F$15,CalculationsAndCharts!$A78+$A$11,IF($C$5,8,0),1,1)) -> 21.190001 | H78: 22.7823253 | K78: 22.41966665 | N78: 0.3018355777 | Q78: 0.04149349222 | T78: 20.77718381 | BC78: 6918200
A79: 47 | B79: =IF(A79>$A$8,"",OFFSET(InputPriceData!B$15,$A79+$A$11,0,1,1)) -> 2023-12-08 | C79: =IF(A79>$A$8,"",OFFSET(InputPriceData!G$15,CalculationsAndCharts!$A79+$A$11,IF($C$5,8,0),1,1)) -> 5919500 | D79: =IF(A79>$A$8,"",OFFSET(InputPriceData!C$15,CalculationsAndCharts!$A79+$A$11,IF($C$5,8,0),1,1)) -> 21.1 | E79: =IF(A79>$A$8,"",OFFSET(InputPriceData!D$15,CalculationsAndCharts!$A79+$A$11,IF($C$5,8,0),1,1)) -> 21.18 | F79: =IF(A79>$A$8,"",OFFSET(InputPriceData!E$15,CalculationsAndCharts!$A79+$A$11,IF($C$5,8,0),1,1)) -> 20.700001 | G79: =IF(A79>$A$8,"",OFFSET(InputPriceData!F$15,CalculationsAndCharts!$A79+$A$11,IF($C$5,8,0),1,1)) -> 20.92 | H79: 23.0633237 | K79: 22.82628817 | N79: 0.5950455816 | Q79: -0.0445880478 | T79: 21.14672584 | BD79: 5919500
A80: 48 | B80: =IF(A80>$A$8,"",OFFSET(InputPriceData!B$15,$A80+$A$11,0,1,1)) -> 2023-12-07 | C80: =IF(A80>$A$8,"",OFFSET(InputPriceData!G$15,CalculationsAndCharts!$A80+$A$11,IF($C$5,8,0),1,1)) -> 7922600 | D80: =IF(A80>$A$8,"",OFFSET(InputPriceData!C$15,CalculationsAndCharts!$A80+$A$11,IF($C$5,8,0),1,1)) -> 21.709999 | E80: =IF(A80>$A$8,"",OFFSET(InputPriceData!D$15,CalculationsAndCharts!$A80+$A$11,IF($C$5,8,0),1,1)) -> 21.92 | F80: =IF(A80>$A$8,"",OFFSET(InputPriceData!E$15,CalculationsAndCharts!$A80+$A$11,IF($C$5,8,0),1,1)) -> 20.879999 | G80: =IF(A80>$A$8,"",OFFSET(InputPriceData!F$15,CalculationsAndCharts!$A80+$A$11,IF($C$5,8,0),1,1)) -> 21 | H80: 23.4415573 | K80: 23.24208929 | N80: 8.623849018e-07 | Q80: -0.08394490964 | T80: 21.75892135 | BD80: 7922600
A81: 49 | B81: =IF(A81>$A$8,"",OFFSET(InputPriceData!B$15,$A81+$A$11,0,1,1)) -> 2023-12-06 | C81: =IF(A81>$A$8,"",OFFSET(InputPriceData!G$15,CalculationsAndCharts!$A81+$A$11,IF($C$5,8,0),1,1)) -> 6731100 | D81: =IF(A81>$A$8,"",OFFSET(InputPriceData!C$15,CalculationsAndCharts!$A81+$A$11,IF($C$5,8,0),1,1)) -> 22.370001 | E81: =IF(A81>$A$8,"",OFFSET(InputPriceData!D$15,CalculationsAndCharts!$A81+$A$11,IF($C$5,8,0),1,1)) -> 22.860001 | F81: =IF(A81>$A$8,"",OFFSET(InputPriceData!E$15,CalculationsAndCharts!$A81+$A$11,IF($C$5,8,0),1,1)) -> 21.73 | G81: =IF(A81>$A$8,"",OFFSET(InputPriceData!F$15,CalculationsAndCharts!$A81+$A$11,IF($C$5,8,0),1,1)) -> 21.77 | H81: 23.87242035 | K81: 23.60927 | N81: -0.2414686346 | Q81: -0.06513098483 | T81: 22.40355984 | BD81: 6731100
A82: 50 | B82: =IF(A82>$A$8,"",OFFSET(InputPriceData!B$15,$A82+$A$11,0,1,1)) -> 2023-12-05 | C82: =IF(A82>$A$8,"",OFFSET(InputPriceData!G$15,CalculationsAndCharts!$A82+$A$11,IF($C$5,8,0),1,1)) -> 4788900 | D82: =IF(A82>$A$8,"",OFFSET(InputPriceData!C$15,CalculationsAndCharts!$A82+$A$11,IF($C$5,8,0),1,1)) -> 23.190001 | E82: =IF(A82>$A$8,"",OFFSET(InputPriceData!D$15,CalculationsAndCharts!$A82+$A$11,IF($C$5,8,0),1,1)) -> 23.42 | F82: =IF(A82>$A$8,"",OFFSET(InputPriceData!E$15,CalculationsAndCharts!$A82+$A$11,IF($C$5,8,0),1,1)) -> 22.530001 | G82: =IF(A82>$A$8,"",OFFSET(InputPriceData!F$15,CalculationsAndCharts!$A82+$A$11,IF($C$5,8,0),1,1)) -> 22.540001 | H82: 24.24343571 | K82: 23.90776183 | N82: 0.3104568395 | Q82: -0.04422789581 | T82: 22.90002808 | BD82: 4788900
A83: 51 | B83: =IF(A83>$A$8,"",OFFSET(InputPriceData!B$15,$A83+$A$11,0,1,1)) -> 2023-12-04 | C83: =IF(A83>$A$8,"",OFFSET(InputPriceData!G$15,CalculationsAndCharts!$A83+$A$11,IF($C$5,8,0),1,1)) -> 4889300 | D83: =IF(A83>$A$8,"",OFFSET(InputPriceData!C$15,CalculationsAndCharts!$A83+$A$11,IF($C$5,8,0),1,1)) -> 23.040001 | E83: =IF(A83>$A$8,"",OFFSET(InputPriceData!D$15,CalculationsAndCharts!$A83+$A$11,IF($C$5,8,0),1,1)) -> 23.48 | F83: =IF(A83>$A$8,"",OFFSET(InputPriceData!E$15,CalculationsAndCharts!$A83+$A$11,IF($C$5,8,0),1,1)) -> 22.91 | G83: =IF(A83>$A$8,"",OFFSET(InputPriceData!F$15,CalculationsAndCharts!$A83+$A$11,IF($C$5,8,0),1,1)) -> 23.030001 | H83: 24.54404183 | K83: 24.15724159 | N83: -0.9486216662 | Q83: 0.01213569883 | T83: 23.26883308 | BD83: 4889300
A84: 52 | B84: =IF(A84>$A$8,"",OFFSET(InputPriceData!B$15,$A84+$A$11,0,1,1)) -> 2023-12-01 | C84: =IF(A84>$A$8,"",OFFSET(InputPriceData!G$15,CalculationsAndCharts!$A84+$A$11,IF($C$5,8,0),1,1)) -> 3315400 | D84: =IF(A84>$A$8,"",OFFSET(InputPriceData!C$15,CalculationsAndCharts!$A84+$A$11,IF($C$5,8,0),1,1)) -> 23.52 | E84: =IF(A84>$A$8,"",OFFSET(InputPriceData!D$15,CalculationsAndCharts!$A84+$A$11,IF($C$5,8,0),1,1)) -> 24.48 | F84: =IF(A84>$A$8,"",OFFSET(InputPriceData!E$15,CalculationsAndCharts!$A84+$A$11,IF($C$5,8,0),1,1)) -> 23.370001 | G84: =IF(A84>$A$8,"",OFFSET(InputPriceData!F$15,CalculationsAndCharts!$A84+$A$11,IF($C$5,8,0),1,1)) -> 23.879999 | H84: 24.81122551 | K84: 24.37718058 | N84: 0.2414686346 | Q84: 0.03592459654 | T84: 23.45085077 | BC84: 3315400
A85: 53 | B85: =IF(A85>$A$8,"",OFFSET(InputPriceData!B$15,$A85+$A$11,0,1,1)) -> 2023-11-30 | C85: =IF(A85>$A$8,"",OFFSET(InputPriceData!G$15,CalculationsAndCharts!$A85+$A$11,IF($C$5,8,0),1,1)) -> 6402200 | D85: =IF(A85>$A$8,"",OFFSET(InputPriceData!C$15,CalculationsAndCharts!$A85+$A$11,IF($C$5,8,0),1,1)) -> 24.030001 | E85: =IF(A85>$A$8,"",OFFSET(InputPriceData!D$15,CalculationsAndCharts!$A85+$A$11,IF($C$5,8,0),1,1)) -> 24.530001 | F85: =IF(A85>$A$8,"",OFFSET(InputPriceData!E$15,CalculationsAndCharts!$A85+$A$11,IF($C$5,8,0),1,1)) -> 23.309999 | G85: =IF(A85>$A$8,"",OFFSET(InputPriceData!F$15,CalculationsAndCharts!$A85+$A$11,IF($C$5,8,0),1,1)) -> 23.629999 | H85: 24.9755596 | K85: 24.60650757 | N85: 0.2932108663 | Q85: -0.01293299463 | T85: 23.58587657 | BD85: 6402200
A86: 54 | B86: =IF(A86>$A$8,"",OFFSET(InputPriceData!B$15,$A86+$A$11,0,1,1)) -> 2023-11-29 | C86: =IF(A86>$A$8,"",OFFSET(InputPriceData!G$15,CalculationsAndCharts!$A86+$A$11,IF($C$5,8,0),1,1)) -> 4337900 | D86: =IF(A86>$A$8,"",OFFSET(InputPriceData!C$15,CalculationsAndCharts!$A86+$A$11,IF($C$5,8,0),1,1)) -> 24.15 | E86: =IF(A86>$A$8,"",OFFSET(InputPriceData!D$15,CalculationsAndCharts!$A86+$A$11,IF($C$5,8,0),1,1)) -> 24.27 | F86: =IF(A86>$A$8,"",OFFSET(InputPriceData!E$15,CalculationsAndCharts!$A86+$A$11,IF($C$5,8,0),1,1)) -> 23.639999 | G86: =IF(A86>$A$8,"",OFFSET(InputPriceData!F$15,CalculationsAndCharts!$A86+$A$11,IF($C$5,8,0),1,1)) -> 23.66 | H86: 25.21301147 | K86: 24.85918025 | N86: -0.06899251684 | Q86: -0.03516645527 | T86: 23.87199946 | BD86: 4337900
A87: 55 | B87: =IF(A87>$A$8,"",OFFSET(InputPriceData!B$15,$A87+$A$11,0,1,1)) -> 2023-11-28 | C87: =IF(A87>$A$8,"",OFFSET(InputPriceData!G$15,CalculationsAndCharts!$A87+$A$11,IF($C$5,8,0),1,1)) -> 3239800 | D87: =IF(A87>$A$8,"",OFFSET(InputPriceData!C$15,CalculationsAndCharts!$A87+$A$11,IF($C$5,8,0),1,1)) -> 24.25 | E87: =IF(A87>$A$8,"",OFFSET(InputPriceData!D$15,CalculationsAndCharts!$A87+$A$11,IF($C$5,8,0),1,1)) -> 24.370001 | F87: =IF(A87>$A$8,"",OFFSET(InputPriceData!E$15,CalculationsAndCharts!$A87+$A$11,IF($C$5,8,0),1,1)) -> 23.9 | G87: =IF(A87>$A$8,"",OFFSET(InputPriceData!F$15,CalculationsAndCharts!$A87+$A$11,IF($C$5,8,0),1,1)) -> 24.030001 | H87: 25.48707231 | K87: 25.10357181 | N87: 0.4484401485 | Q87: -0.04062980321 | T87: 24.19064103 | BD87: 3239800
A88: 56 | B88: =IF(A88>$A$8,"",OFFSET(InputPriceData!B$15,$A88+$A$11,0,1,1)) -> 2023-11-27 | C88: =IF(A88>$A$8,"",OFFSET(InputPriceData!G$15,CalculationsAndCharts!$A88+$A$11,IF($C$5,8,0),1,1)) -> 4762500 | D88: =IF(A88>$A$8,"",OFFSET(InputPriceData!C$15,CalculationsAndCharts!$A88+$A$11,IF($C$5,8,0),1,1)) -> 24.799999 | E88: =IF(A88>$A$8,"",OFFSET(InputPriceData!D$15,CalculationsAndCharts!$A88+$A$11,IF($C$5,8,0),1,1)) -> 24.870001 | F88: =IF(A88>$A$8,"",OFFSET(InputPriceData!E$15,CalculationsAndCharts!$A88+$A$11,IF($C$5,8,0),1,1)) -> 24.08 | G88: =IF(A88>$A$8,"",OFFSET(InputPriceData!F$15,CalculationsAndCharts!$A88+$A$11,IF($C$5,8,0),1,1)) -> 24.32 | H88: 25.74420255 | K88: 25.32958167 | N88: -0.750273139 | Q88: 0.003824916765 | T88: 24.48067408 | BD88: 4762500
A89: 57 | B89: =IF(A89>$A$8,"",OFFSET(InputPriceData!B$15,$A89+$A$11,0,1,1)) -> 2023-11-24 | C89: =IF(A89>$A$8,"",OFFSET(InputPriceData!G$15,CalculationsAndCharts!$A89+$A$11,IF($C$5,8,0),1,1)) -> 1320300 | D89: =IF(A89>$A$8,"",OFFSET(InputPriceData!C$15,CalculationsAndCharts!$A89+$A$11,IF($C$5,8,0),1,1)) -> 24.709999 | E89: =IF(A89>$A$8,"",OFFSET(InputPriceData!D$15,CalculationsAndCharts!$A89+$A$11,IF($C$5,8,0),1,1)) -> 25.219999 | F89: =IF(A89>$A$8,"",OFFSET(InputPriceData!E$15,CalculationsAndCharts!$A89+$A$11,IF($C$5,8,0),1,1)) -> 24.66 | G89: =IF(A89>$A$8,"",OFFSET(InputPriceData!F$15,CalculationsAndCharts!$A89+$A$11,IF($C$5,8,0),1,1)) -> 25.129999 | H89: 25.99553241 | K89: 25.53974161 | N89: -0.1379824465 | Q89: 0.04770629823 | T89: 24.62153551 | BC89: 1320300
A90: 58 | B90: =IF(A90>$A$8,"",OFFSET(InputPriceData!B$15,$A90+$A$11,0,1,1)) -> 2023-11-22 | C90: =IF(A90>$A$8,"",OFFSET(InputPriceData!G$15,CalculationsAndCharts!$A90+$A$11,IF($C$5,8,0),1,1)) -> 3028100 | D90: =IF(A90>$A$8,"",OFFSET(InputPriceData!C$15,CalculationsAndCharts!$A90+$A$11,IF($C$5,8,0),1,1)) -> 24.42 | E90: =IF(A90>$A$8,"",OFFSET(InputPriceData!D$15,CalculationsAndCharts!$A90+$A$11,IF($C$5,8,0),1,1)) -> 25.16 | F90: =IF(A90>$A$8,"",OFFSET(InputPriceData!E$15,CalculationsAndCharts!$A90+$A$11,IF($C$5,8,0),1,1)) -> 24.280001 | G90: =IF(A90>$A$8,"",OFFSET(InputPriceData!F$15,CalculationsAndCharts!$A90+$A$11,IF($C$5,8,0),1,1)) -> 25.07 | H90: 26.1482736 | K90: 25.76705745 | N90: 0.5088062291 | Q90: 0.01104144388 | T90: 24.6672977 | BC90: 3028100
A91: 59 | B91: =IF(A91>$A$8,"",OFFSET(InputPriceData!B$15,$A91+$A$11,0,1,1)) -> 2023-11-21 | C91: =IF(A91>$A$8,"",OFFSET(InputPriceData!G$15,CalculationsAndCharts!$A91+$A$11,IF($C$5,8,0),1,1)) -> 3847400 | D91: =IF(A91>$A$8,"",OFFSET(InputPriceData!C$15,CalculationsAndCharts!$A91+$A$11,IF($C$5,8,0),1,1)) -> 25.059999 | E91: =IF(A91>$A$8,"",OFFSET(InputPriceData!D$15,CalculationsAndCharts!$A91+$A$11,IF($C$5,8,0),1,1)) -> 25.17 | F91: =IF(A91>$A$8,"",OFFSET(InputPriceData!E$15,CalculationsAndCharts!$A91+$A$11,IF($C$5,8,0),1,1)) -> 24.719999 | G91: =IF(A91>$A$8,"",OFFSET(InputPriceData!F$15,CalculationsAndCharts!$A91+$A$11,IF($C$5,8,0),1,1)) -> 24.85 | H91: 26.33855717 | K91: 26.03931965 | N91: 0.02587413418 | Q91: -0.01412495768 | T91: 24.86163884 | BD91: 3847400
A92: 60 | B92: =IF(A92>$A$8,"",OFFSET(InputPriceData!B$15,$A92+$A$11,0,1,1)) -> 2023-11-20 | C92: =IF(A92>$A$8,"",OFFSET(InputPriceData!G$15,CalculationsAndCharts!$A92+$A$11,IF($C$5,8,0),1,1)) -> 5013300 | D92: =IF(A92>$A$8,"",OFFSET(InputPriceData!C$15,CalculationsAndCharts!$A92+$A$11,IF($C$5,8,0),1,1)) -> 25.65 | E92: =IF(A92>$A$8,"",OFFSET(InputPriceData!D$15,CalculationsAndCharts!$A92+$A$11,IF($C$5,8,0),1,1)) -> 25.67 | F92: =IF(A92>$A$8,"",OFFSET(InputPriceData!E$15,CalculationsAndCharts!$A92+$A$11,IF($C$5,8,0),1,1)) -> 25.17 | G92: =IF(A92>$A$8,"",OFFSET(InputPriceData!F$15,CalculationsAndCharts!$A92+$A$11,IF($C$5,8,0),1,1)) -> 25.219999 | H92: 26.60124373 | K92: 26.33087239 | N92: -0.4311950376 | Q92: 0.006759635179 | T92: 25.13946365 | BD92: 5013300
A93: 61 | B93: =IF(A93>$A$8,"",OFFSET(InputPriceData!B$15,$A93+$A$11,0,1,1)) -> 2023-11-17 | C93: =IF(A93>$A$8,"",OFFSET(InputPriceData!G$15,CalculationsAndCharts!$A93+$A$11,IF($C$5,8,0),1,1)) -> 3688600 | D93: =IF(A93>$A$8,"",OFFSET(InputPriceData!C$15,CalculationsAndCharts!$A93+$A$11,IF($C$5,8,0),1,1)) -> 25.51 | E93: =IF(A93>$A$8,"",OFFSET(InputPriceData!D$15,CalculationsAndCharts!$A93+$A$11,IF($C$5,8,0),1,1)) -> 25.860001 | F93: =IF(A93>$A$8,"",OFFSET(InputPriceData!E$15,CalculationsAndCharts!$A93+$A$11,IF($C$5,8,0),1,1)) -> 25.26 | G93: =IF(A93>$A$8,"",OFFSET(InputPriceData!F$15,CalculationsAndCharts!$A93+$A$11,IF($C$5,8,0),1,1)) -> 25.620001 | H93: 26.8449928 | K93: 26.62582368 | N93: 1.233211271 | Q93: -0.004873871694 | T93: 25.3681944 | BC93: 3688600
A94: 62 | B94: =IF(A94>$A$8,"",OFFSET(InputPriceData!B$15,$A94+$A$11,0,1,1)) -> 2023-11-16 | C94: =IF(A94>$A$8,"",OFFSET(InputPriceData!G$15,CalculationsAndCharts!$A94+$A$11,IF($C$5,8,0),1,1)) -> 7086700 | D94: =IF(A94>$A$8,"",OFFSET(InputPriceData!C$15,CalculationsAndCharts!$A94+$A$11,IF($C$5,8,0),1,1)) -> 26.559999 | E94: =IF(A94>$A$8,"",OFFSET(InputPriceData!D$15,CalculationsAndCharts!$A94+$A$11,IF($C$5,8,0),1,1)) -> 26.75 | F94: =IF(A94>$A$8,"",OFFSET(InputPriceData!E$15,CalculationsAndCharts!$A94+$A$11,IF($C$5,8,0),1,1)) -> 25.049999 | G94: =IF(A94>$A$8,"",OFFSET(InputPriceData!F$15,CalculationsAndCharts!$A94+$A$11,IF($C$5,8,0),1,1)) -> 25.52 | H94: 27.06116783 | K94: 26.93716887 | N94: -1.526421275 | Q94: 0.06982600786 | T94: 25.65658026 | BD94: 7086700
A95: 63 | B95: =IF(A95>$A$8,"",OFFSET(InputPriceData!B$15,$A95+$A$11,0,1,1)) -> 2023-11-15 | C95: =IF(A95>$A$8,"",OFFSET(InputPriceData!G$15,CalculationsAndCharts!$A95+$A$11,IF($C$5,8,0),1,1)) -> 3383400 | D95: =IF(A95>$A$8,"",OFFSET(InputPriceData!C$15,CalculationsAndCharts!$A95+$A$11,IF($C$5,8,0),1,1)) -> 26.59 | E95: =IF(A95>$A$8,"",OFFSET(InputPriceData!D$15,CalculationsAndCharts!$A95+$A$11,IF($C$5,8,0),1,1)) -> 27.290001 | F95: =IF(A95>$A$8,"",OFFSET(InputPriceData!E$15,CalculationsAndCharts!$A95+$A$11,IF($C$5,8,0),1,1)) -> 26.49 | G95: =IF(A95>$A$8,"",OFFSET(InputPriceData!F$15,CalculationsAndCharts!$A95+$A$11,IF($C$5,8,0),1,1)) -> 26.85 | H95: 27.33313862 | K95: 27.254198 | N95: 0.3018347153 | Q95: 0.1538440029 | T95: 25.78951805 | BC95: 3383400
A96: 64 | B96: =IF(A96>$A$8,"",OFFSET(InputPriceData!B$15,$A96+$A$11,0,1,1)) -> 2023-11-14 | C96: =IF(A96>$A$8,"",OFFSET(InputPriceData!G$15,CalculationsAndCharts!$A96+$A$11,IF($C$5,8,0),1,1)) -> 3532600 | D96: =IF(A96>$A$8,"",OFFSET(InputPriceData!C$15,CalculationsAndCharts!$A96+$A$11,IF($C$5,8,0),1,1)) -> 26.309999 | E96: =IF(A96>$A$8,"",OFFSET(InputPriceData!D$15,CalculationsAndCharts!$A96+$A$11,IF($C$5,8,0),1,1)) -> 26.950001 | F96: =IF(A96>$A$8,"",OFFSET(InputPriceData!E$15,CalculationsAndCharts!$A96+$A$11,IF($C$5,8,0),1,1)) -> 26.23 | G96: =IF(A96>$A$8,"",OFFSET(InputPriceData!F$15,CalculationsAndCharts!$A96+$A$11,IF($C$5,8,0),1,1)) -> 26.41 | H96: 27.41839838 | K96: 27.61680172 | N96: -0.4311924504 | Q96: 0.1250519578 | T96: 25.8240665 | BC96: 3532600
A97: 65 | B97: =IF(A97>$A$8,"",OFFSET(InputPriceData!B$15,$A97+$A$11,0,1,1)) -> 2023-11-13 | C97: =IF(A97>$A$8,"",OFFSET(InputPriceData!G$15,CalculationsAndCharts!$A97+$A$11,IF($C$5,8,0),1,1)) -> 3344800 | D97: =IF(A97>$A$8,"",OFFSET(InputPriceData!C$15,CalculationsAndCharts!$A97+$A$11,IF($C$5,8,0),1,1)) -> 26.07 | E97: =IF(A97>$A$8,"",OFFSET(InputPriceData!D$15,CalculationsAndCharts!$A97+$A$11,IF($C$5,8,0),1,1)) -> 26.67 | F97: =IF(A97>$A$8,"",OFFSET(InputPriceData!E$15,CalculationsAndCharts!$A97+$A$11,IF($C$5,8,0),1,1)) -> 25.74 | G97: =IF(A97>$A$8,"",OFFSET(InputPriceData!F$15,CalculationsAndCharts!$A97+$A$11,IF($C$5,8,0),1,1)) -> 26.32 | H97: 27.59635103 | K97: 28.0606205 | N97: 0.9055050083 | Q97: 0.02824059497 | T97: 26.10911601 | BC97: 3344800
A98: 66 | B98: =IF(A98>$A$8,"",OFFSET(InputPriceData!B$15,$A98+$A$11,0,1,1)) -> 2023-11-10 | C98: =IF(A98>$A$8,"",OFFSET(InputPriceData!G$15,CalculationsAndCharts!$A98+$A$11,IF($C$5,8,0),1,1)) -> 3558400 | D98: =IF(A98>$A$8,"",OFFSET(InputPriceData!C$15,CalculationsAndCharts!$A98+$A$11,IF($C$5,8,0),1,1)) -> 26.450001 | E98: =IF(A98>$A$8,"",OFFSET(InputPriceData!D$15,CalculationsAndCharts!$A98+$A$11,IF($C$5,8,0),1,1)) -> 26.49 | F98: =IF(A98>$A$8,"",OFFSET(InputPriceData!E$15,CalculationsAndCharts!$A98+$A$11,IF($C$5,8,0),1,1)) -> 25.68 | G98: =IF(A98>$A$8,"",OFFSET(InputPriceData!F$15,CalculationsAndCharts!$A98+$A$11,IF($C$5,8,0),1,1)) -> 25.73 | H98: =IF(A98>$H$30,NA(),IF(A98=$H$30,AVERAGE(OFFSET(G98,0,0,$A$17,1)),$D$17*(G98-H99)+H99)) -> 27.82158945 | K98: =IF($A98>$B$30,NA(),IF($A98>$J$30,G98,$J$35*(G98+G99)/2 +$J$36*K99+$J$37*K100)) -> 28.54374502 | N98: =IF($A98>$B$30,NA(),IF($A98>$J$30,0,$M$35*(G98-2*G99+G100)+M101*N99+M102*N100)) -> 0.08623676532 | Q98: =IF($A98>$B$30,NA(),IF($A98>$J$30,N98,$P$35*(N98+N99)/2 +$P$36*Q99+$P$37*Q100)) -> -0.09753051622 | T98: =IF($A98>$B$30,NA(),IF($A98>$J$30,G98,(1-$S$35)*G98+(2*$S$35-$S$36)*G99-($S$35+$S$37)*G100+$S$36*T99+$S$37*T100)) -> 26.75432139 | BA98: =IF(R99,F98*$BA$30,NA()) ->  | BB98: =IF(S99,E98*$BB$30,NA()) ->  | BD98: 3558400
A99: 67 | B99: =IF(A99>$A$8,"",OFFSET(InputPriceData!B$15,$A99+$A$11,0,1,1)) -> 2023-11-09 | C99: =IF(A99>$A$8,"",OFFSET(InputPriceData!G$15,CalculationsAndCharts!$A99+$A$11,IF($C$5,8,0),1,1)) -> 5483100 | D99: =IF(A99>$A$8,"",OFFSET(InputPriceData!C$15,CalculationsAndCharts!$A99+$A$11,IF($C$5,8,0),1,1)) -> 26.9 | E99: =IF(A99>$A$8,"",OFFSET(InputPriceData!D$15,CalculationsAndCharts!$A99+$A$11,IF($C$5,8,0),1,1)) -> 26.969999 | F99: =IF(A99>$A$8,"",OFFSET(InputPriceData!E$15,CalculationsAndCharts!$A99+$A$11,IF($C$5,8,0),1,1)) -> 26.09 | G99: =IF(A99>$A$8,"",OFFSET(InputPriceData!F$15,CalculationsAndCharts!$A99+$A$11,IF($C$5,8,0),1,1)) -> 26.190001 | H99: 28.19069347 | K99: 28.98674397 | N99: 0.3708263698 | Q99: -0.1849765919 | T99: 27.70286537 | BD99: 5483100
A100: 68 | B100: =IF(A100>$A$8,"",OFFSET(InputPriceData!B$15,$A100+$A$11,0,1,1)) -> 2023-11-08 | C100: =IF(A100>$A$8,"",OFFSET(InputPriceData!G$15,CalculationsAndCharts!$A100+$A$11,IF($C$5,8,0),1,1)) -> 3902300 | D100: =IF(A100>$A$8,"",OFFSET(InputPriceData!C$15,CalculationsAndCharts!$A100+$A$11,IF($C$5,8,0),1,1)) -> 27.450001 | E100: =IF(A100>$A$8,"",OFFSET(InputPriceData!D$15,CalculationsAndCharts!$A100+$A$11,IF($C$5,8,0),1,1)) -> 27.700001 | F100: =IF(A100>$A$8,"",OFFSET(InputPriceData!E$15,CalculationsAndCharts!$A100+$A$11,IF($C$5,8,0),1,1)) -> 26.469999 | G100: =IF(A100>$A$8,"",OFFSET(InputPriceData!F$15,CalculationsAndCharts!$A100+$A$11,IF($C$5,8,0),1,1)) -> 26.75 | H100: 28.54375684 | K100: 29.30458758 | N100: 0.1983476648 | Q100: -0.2455570929 | T100: 28.71336181 | BD100: 3902300
A101: 69 | B101: =IF(A101>$A$8,"",OFFSET(InputPriceData!B$15,$A101+$A$11,0,1,1)) -> 2023-11-07 | C101: =IF(A101>$A$8,"",OFFSET(InputPriceData!G$15,CalculationsAndCharts!$A101+$A$11,IF($C$5,8,0),1,1)) -> 4715600 | D101: =IF(A101>$A$8,"",OFFSET(InputPriceData!C$15,CalculationsAndCharts!$A101+$A$11,IF($C$5,8,0),1,1)) -> 28.42 | E101: =IF(A101>$A$8,"",OFFSET(InputPriceData!D$15,CalculationsAndCharts!$A101+$A$11,IF($C$5,8,0),1,1)) -> 28.49 | F101: =IF(A101>$A$8,"",OFFSET(InputPriceData!E$15,CalculationsAndCharts!$A101+$A$11,IF($C$5,8,0),1,1)) -> 27.43 | G101: =IF(A101>$A$8,"",OFFSET(InputPriceData!F$15,CalculationsAndCharts!$A101+$A$11,IF($C$5,8,0),1,1)) -> 27.74 | H101: 28.86030217 | K101: 29.45095448 | N101: 0.267341044 | Q101: -0.2300503269 | T101: 29.62691214 | BD101: 4715600
A102: 70 | B102: =IF(A102>$A$8,"",OFFSET(InputPriceData!B$15,$A102+$A$11,0,1,1)) -> 2023-11-06 | C102: =IF(A102>$A$8,"",OFFSET(InputPriceData!G$15,CalculationsAndCharts!$A102+$A$11,IF($C$5,8,0),1,1)) -> 4911300 | D102: =IF(A102>$A$8,"",OFFSET(InputPriceData!C$15,CalculationsAndCharts!$A102+$A$11,IF($C$5,8,0),1,1)) -> 30.08 | E102: =IF(A102>$A$8,"",OFFSET(InputPriceData!D$15,CalculationsAndCharts!$A102+$A$11,IF($C$5,8,0),1,1)) -> 30.17 | F102: =IF(A102>$A$8,"",OFFSET(InputPriceData!E$15,CalculationsAndCharts!$A102+$A$11,IF($C$5,8,0),1,1)) -> 28.299999 | G102: =IF(A102>$A$8,"",OFFSET(InputPriceData!F$15,CalculationsAndCharts!$A102+$A$11,IF($C$5,8,0),1,1)) -> 28.959999 | H102: 29.05800255 | K102: 29.40739349 | N102: -1.371192855 | Q102: -0.09282974167 | T102: 30.20799489 | BD102: 4911300
A103: 71 | B103: =IF(A103>$A$8,"",OFFSET(InputPriceData!B$15,$A103+$A$11,0,1,1)) -> 2023-11-03 | C103: =IF(A103>$A$8,"",OFFSET(InputPriceData!G$15,CalculationsAndCharts!$A103+$A$11,IF($C$5,8,0),1,1)) -> 3233900 | D103: =IF(A103>$A$8,"",OFFSET(InputPriceData!C$15,CalculationsAndCharts!$A103+$A$11,IF($C$5,8,0),1,1)) -> 30.34 | E103: =IF(A103>$A$8,"",OFFSET(InputPriceData!D$15,CalculationsAndCharts!$A103+$A$11,IF($C$5,8,0),1,1)) -> 30.9 | F103: =IF(A103>$A$8,"",OFFSET(InputPriceData!E$15,CalculationsAndCharts!$A103+$A$11,IF($C$5,8,0),1,1)) -> 30.17 | G103: =IF(A103>$A$8,"",OFFSET(InputPriceData!F$15,CalculationsAndCharts!$A103+$A$11,IF($C$5,8,0),1,1)) -> 30.49 | H103: 29.0752973 | K103: 29.20919248 | N103: -0.5088062291 | Q103: 0.04699688094 | T103: 30.2008475 | BC103: 3233900
A104: 72 | B104: =IF(A104>$A$8,"",OFFSET(InputPriceData!B$15,$A104+$A$11,0,1,1)) -> 2023-11-02 | C104: =IF(A104>$A$8,"",OFFSET(InputPriceData!G$15,CalculationsAndCharts!$A104+$A$11,IF($C$5,8,0),1,1)) -> 3496200 | D104: =IF(A104>$A$8,"",OFFSET(InputPriceData!C$15,CalculationsAndCharts!$A104+$A$11,IF($C$5,8,0),1,1)) -> 29.780001 | E104: =IF(A104>$A$8,"",OFFSET(InputPriceData!D$15,CalculationsAndCharts!$A104+$A$11,IF($C$5,8,0),1,1)) -> 30.440001 | F104: =IF(A104>$A$8,"",OFFSET(InputPriceData!E$15,CalculationsAndCharts!$A104+$A$11,IF($C$5,8,0),1,1)) -> 29.299999 | G104: =IF(A104>$A$8,"",OFFSET(InputPriceData!F$15,CalculationsAndCharts!$A104+$A$11,IF($C$5,8,0),1,1)) -> 30.43 | H104: 28.82564388 | K104: 28.96369325 | N104: 0.2673384569 | Q104: 0.06702049124 | T104: 29.76528639 | BC104: 3496200
A105: 73 | B105: =IF(A105>$A$8,"",OFFSET(InputPriceData!B$15,$A105+$A$11,0,1,1)) -> 2023-11-01 | C105: =IF(A105>$A$8,"",OFFSET(InputPriceData!G$15,CalculationsAndCharts!$A105+$A$11,IF($C$5,8,0),1,1)) -> 4101700 | D105: =IF(A105>$A$8,"",OFFSET(InputPriceData!C$15,CalculationsAndCharts!$A105+$A$11,IF($C$5,8,0),1,1)) -> 28.9 | E105: =IF(A105>$A$8,"",OFFSET(InputPriceData!D$15,CalculationsAndCharts!$A105+$A$11,IF($C$5,8,0),1,1)) -> 30.02 | F105: =IF(A105>$A$8,"",OFFSET(InputPriceData!E$15,CalculationsAndCharts!$A105+$A$11,IF($C$5,8,0),1,1)) -> 28.709999 | G105: =IF(A105>$A$8,"",OFFSET(InputPriceData!F$15,CalculationsAndCharts!$A105+$A$11,IF($C$5,8,0),1,1)) -> 29.780001 | H105: 28.54252221 | K105: 28.76524671 | N105: -0.4915593935 | Q105: 0.05894047364 | T105: 29.34839315 | BC105: 4101700
A106: 74 | B106: =IF(A106>$A$8,"",OFFSET(InputPriceData!B$15,$A106+$A$11,0,1,1)) -> 2023-10-31 | C106: =IF(A106>$A$8,"",OFFSET(InputPriceData!G$15,CalculationsAndCharts!$A106+$A$11,IF($C$5,8,0),1,1)) -> 5390900 | D106: =IF(A106>$A$8,"",OFFSET(InputPriceData!C$15,CalculationsAndCharts!$A106+$A$11,IF($C$5,8,0),1,1)) -> 28.84 | E106: =IF(A106>$A$8,"",OFFSET(InputPriceData!D$15,CalculationsAndCharts!$A106+$A$11,IF($C$5,8,0),1,1)) -> 29.690001 | F106: =IF(A106>$A$8,"",OFFSET(InputPriceData!E$15,CalculationsAndCharts!$A106+$A$11,IF($C$5,8,0),1,1)) -> 28.49 | G106: =IF(A106>$A$8,"",OFFSET(InputPriceData!F$15,CalculationsAndCharts!$A106+$A$11,IF($C$5,8,0),1,1)) -> 29.440001 | H106: 28.3241436 | K106: 28.62087997 | N106: 1.095227099 | Q106: 0.003985193875 | T106: 29.03790797 | BC106: 5390900
A107: 75 | B107: =IF(A107>$A$8,"",OFFSET(InputPriceData!B$15,$A107+$A$11,0,1,1)) -> 2023-10-30 | C107: =IF(A107>$A$8,"",OFFSET(InputPriceData!G$15,CalculationsAndCharts!$A107+$A$11,IF($C$5,8,0),1,1)) -> 5115100 | D107: =IF(A107>$A$8,"",OFFSET(InputPriceData!C$15,CalculationsAndCharts!$A107+$A$11,IF($C$5,8,0),1,1)) -> 28.620001 | E107: =IF(A107>$A$8,"",OFFSET(InputPriceData!D$15,CalculationsAndCharts!$A107+$A$11,IF($C$5,8,0),1,1)) -> 29.08 | F107: =IF(A107>$A$8,"",OFFSET(InputPriceData!E$15,CalculationsAndCharts!$A107+$A$11,IF($C$5,8,0),1,1)) -> 28.26 | G107: =IF(A107>$A$8,"",OFFSET(InputPriceData!F$15,CalculationsAndCharts!$A107+$A$11,IF($C$5,8,0),1,1)) -> 28.530001 | H107: 28.12722759 | K107: 28.51763837 | N107: 0.189726403 | Q107: -0.025128089 | T107: 28.93530646 | BD107: 5115100
A108: 76 | B108: =IF(A108>$A$8,"",OFFSET(InputPriceData!B$15,$A108+$A$11,0,1,1)) -> 2023-10-27 | C108: =IF(A108>$A$8,"",OFFSET(InputPriceData!G$15,CalculationsAndCharts!$A108+$A$11,IF($C$5,8,0),1,1)) -> 7586100 | D108: =IF(A108>$A$8,"",OFFSET(InputPriceData!C$15,CalculationsAndCharts!$A108+$A$11,IF($C$5,8,0),1,1)) -> 29.620001 | E108: =IF(A108>$A$8,"",OFFSET(InputPriceData!D$15,CalculationsAndCharts!$A108+$A$11,IF($C$5,8,0),1,1)) -> 29.74 | F108: =IF(A108>$A$8,"",OFFSET(InputPriceData!E$15,CalculationsAndCharts!$A108+$A$11,IF($C$5,8,0),1,1)) -> 28.51 | G108: =IF(A108>$A$8,"",OFFSET(InputPriceData!F$15,CalculationsAndCharts!$A108+$A$11,IF($C$5,8,0),1,1)) -> 28.889999 | H108: 28.05614993 | K108: 28.4142383 | N108: -1.664401134 | Q108: 0.07969823451 | T108: 28.9183054 | BD108: 7586100
A109: 77 | B109: =IF(A109>$A$8,"",OFFSET(InputPriceData!B$15,$A109+$A$11,0,1,1)) -> 2023-10-26 | C109: =IF(A109>$A$8,"",OFFSET(InputPriceData!G$15,CalculationsAndCharts!$A109+$A$11,IF($C$5,8,0),1,1)) -> 10589400 | D109: =IF(A109>$A$8,"",OFFSET(InputPriceData!C$15,CalculationsAndCharts!$A109+$A$11,IF($C$5,8,0),1,1)) -> 27.459999 | E109: =IF(A109>$A$8,"",OFFSET(InputPriceData!D$15,CalculationsAndCharts!$A109+$A$11,IF($C$5,8,0),1,1)) -> 30.15 | F109: =IF(A109>$A$8,"",OFFSET(InputPriceData!E$15,CalculationsAndCharts!$A109+$A$11,IF($C$5,8,0),1,1)) -> 26.75 | G109: =IF(A109>$A$8,"",OFFSET(InputPriceData!F$15,CalculationsAndCharts!$A109+$A$11,IF($C$5,8,0),1,1)) -> 29.469999 | H109: 27.90900009 | K109: 28.28944885 | N109: 1.08660325 | Q109: 0.07652508761 | T109: 28.63222636 | BC109: =IF(G109>=G110,C109,NA()) -> 10589400 | BD109: =IF(G109<G110,C109,NA()) -> 
A110: 78 | B110: =IF(A110>$A$8,"",OFFSET(InputPriceData!B$15,$A110+$A$11,0,1,1)) -> 2023-10-25 | C110: =IF(A110>$A$8,"",OFFSET(InputPriceData!G$15,CalculationsAndCharts!$A110+$A$11,IF($C$5,8,0),1,1)) -> 4297900 | D110: =IF(A110>$A$8,"",OFFSET(InputPriceData!C$15,CalculationsAndCharts!$A110+$A$11,IF($C$5,8,0),1,1)) -> 28.110001 | E110: =IF(A110>$A$8,"",OFFSET(InputPriceData!D$15,CalculationsAndCharts!$A110+$A$11,IF($C$5,8,0),1,1)) -> 28.280001 | F110: =IF(A110>$A$8,"",OFFSET(InputPriceData!E$15,CalculationsAndCharts!$A110+$A$11,IF($C$5,8,0),1,1)) -> 27.65 | G110: =IF(A110>$A$8,"",OFFSET(InputPriceData!F$15,CalculationsAndCharts!$A110+$A$11,IF($C$5,8,0),1,1)) -> 28.120001 | H110: 27.63352969 | K110: 28.20458909 | N110: -0.06899079207 | Q110: -0.01540442051 | T110: 28.44524261 | BC110: 4297900
A111: 79 | B111: =IF(A111>$A$8,"",OFFSET(InputPriceData!B$15,$A111+$A$11,0,1,1)) -> 2023-10-24 | C111: =IF(A111>$A$8,"",OFFSET(InputPriceData!G$15,CalculationsAndCharts!$A111+$A$11,IF($C$5,8,0),1,1)) -> 4043900 | D111: =IF(A111>$A$8,"",OFFSET(InputPriceData!C$15,CalculationsAndCharts!$A111+$A$11,IF($C$5,8,0),1,1)) -> 28.129999 | E111: =IF(A111>$A$8,"",OFFSET(InputPriceData!D$15,CalculationsAndCharts!$A111+$A$11,IF($C$5,8,0),1,1)) -> 28.42 | F111: =IF(A111>$A$8,"",OFFSET(InputPriceData!E$15,CalculationsAndCharts!$A111+$A$11,IF($C$5,8,0),1,1)) -> 27.950001 | G111: =IF(A111>$A$8,"",OFFSET(InputPriceData!F$15,CalculationsAndCharts!$A111+$A$11,IF($C$5,8,0),1,1)) -> 28.030001 | H111: 27.54768182 | K111: 28.14501166 | N111: 0.2414660475 | Q111: -0.05798032378 | T111: 28.55509895 | BC111: 4043900
A112: 80 | B112: =IF(A112>$A$8,"",OFFSET(InputPriceData!B$15,$A112+$A$11,0,1,1)) -> 2023-10-23 | C112: =IF(A112>$A$8,"",OFFSET(InputPriceData!G$15,CalculationsAndCharts!$A112+$A$11,IF($C$5,8,0),1,1)) -> 4079900 | D112: =IF(A112>$A$8,"",OFFSET(InputPriceData!C$15,CalculationsAndCharts!$A112+$A$11,IF($C$5,8,0),1,1)) -> 27.65 | E112: =IF(A112>$A$8,"",OFFSET(InputPriceData!D$15,CalculationsAndCharts!$A112+$A$11,IF($C$5,8,0),1,1)) -> 28.200001 | F112: =IF(A112>$A$8,"",OFFSET(InputPriceData!E$15,CalculationsAndCharts!$A112+$A$11,IF($C$5,8,0),1,1)) -> 27.370001 | G112: =IF(A112>$A$8,"",OFFSET(InputPriceData!F$15,CalculationsAndCharts!$A112+$A$11,IF($C$5,8,0),1,1)) -> 27.860001 | H112: 27.46256667 | K112: 28.04348834 | N112: 0.2414712218 | Q112: -0.1009467095 | T112: 28.73194146 | BD112: 4079900
A113: 81 | B113: =IF(A113>$A$8,"",OFFSET(InputPriceData!B$15,$A113+$A$11,0,1,1)) -> 2023-10-20 | C113: =IF(A113>$A$8,"",OFFSET(InputPriceData!G$15,CalculationsAndCharts!$A113+$A$11,IF($C$5,8,0),1,1)) -> 5008300 | D113: =IF(A113>$A$8,"",OFFSET(InputPriceData!C$15,CalculationsAndCharts!$A113+$A$11,IF($C$5,8,0),1,1)) -> 28.15 | E113: =IF(A113>$A$8,"",OFFSET(InputPriceData!D$15,CalculationsAndCharts!$A113+$A$11,IF($C$5,8,0),1,1)) -> 28.360001 | F113: =IF(A113>$A$8,"",OFFSET(InputPriceData!E$15,CalculationsAndCharts!$A113+$A$11,IF($C$5,8,0),1,1)) -> 27.809999 | G113: =IF(A113>$A$8,"",OFFSET(InputPriceData!F$15,CalculationsAndCharts!$A113+$A$11,IF($C$5,8,0),1,1)) -> 27.969999 | H113: 27.39243119 | K113: 27.87305133 | N113: -0.2155988124 | Q113: -0.09787060617 | T113: 28.92566225 | BD113: 5008300
A114: 82 | B114: =IF(A114>$A$8,"",OFFSET(InputPriceData!B$15,$A114+$A$11,0,1,1)) -> 2023-10-19 | C114: =IF(A114>$A$8,"",OFFSET(InputPriceData!G$15,CalculationsAndCharts!$A114+$A$11,IF($C$5,8,0),1,1)) -> 4537500 | D114: =IF(A114>$A$8,"",OFFSET(InputPriceData!C$15,CalculationsAndCharts!$A114+$A$11,IF($C$5,8,0),1,1)) -> 28.41 | E114: =IF(A114>$A$8,"",OFFSET(InputPriceData!D$15,CalculationsAndCharts!$A114+$A$11,IF($C$5,8,0),1,1)) -> 29 | F114: =IF(A114>$A$8,"",OFFSET(InputPriceData!E$15,CalculationsAndCharts!$A114+$A$11,IF($C$5,8,0),1,1)) -> 28.209999 | G114: =IF(A114>$A$8,"",OFFSET(InputPriceData!F$15,CalculationsAndCharts!$A114+$A$11,IF($C$5,8,0),1,1)) -> 28.360001 | H114: 27.29050746 | K114: 27.61246154 | N114: 0.06899079207 | Q114: -0.06617276166 | T114: 28.97878845 | BD114: 4537500
A115: 83 | B115: =IF(A115>$A$8,"",OFFSET(InputPriceData!B$15,$A115+$A$11,0,1,1)) -> 2023-10-18 | C115: =IF(A115>$A$8,"",OFFSET(InputPriceData!G$15,CalculationsAndCharts!$A115+$A$11,IF($C$5,8,0),1,1)) -> 3989300 | D115: =IF(A115>$A$8,"",OFFSET(InputPriceData!C$15,CalculationsAndCharts!$A115+$A$11,IF($C$5,8,0),1,1)) -> 28.91 | E115: =IF(A115>$A$8,"",OFFSET(InputPriceData!D$15,CalculationsAndCharts!$A115+$A$11,IF($C$5,8,0),1,1)) -> 29.01 | F115: =IF(A115>$A$8,"",OFFSET(InputPriceData!E$15,CalculationsAndCharts!$A115+$A$11,IF($C$5,8,0),1,1)) -> 28.299999 | G115: =IF(A115>$A$8,"",OFFSET(InputPriceData!F$15,CalculationsAndCharts!$A115+$A$11,IF($C$5,8,0),1,1)) -> 28.5 | H115: 27.10177331 | K115: 27.2742066 | N115: -0.9917400489 | Q115: -0.01054090241 | T115: 28.82947978 | BD115: 3989300
A116: 84 | B116: =IF(A116>$A$8,"",OFFSET(InputPriceData!B$15,$A116+$A$11,0,1,1)) -> 2023-10-17 | C116: =IF(A116>$A$8,"",OFFSET(InputPriceData!G$15,CalculationsAndCharts!$A116+$A$11,IF($C$5,8,0),1,1)) -> 6519900 | D116: =IF(A116>$A$8,"",OFFSET(InputPriceData!C$15,CalculationsAndCharts!$A116+$A$11,IF($C$5,8,0),1,1)) -> 27.780001 | E116: =IF(A116>$A$8,"",OFFSET(InputPriceData!D$15,CalculationsAndCharts!$A116+$A$11,IF($C$5,8,0),1,1)) -> 28.85 | F116: =IF(A116>$A$8,"",OFFSET(InputPriceData!E$15,CalculationsAndCharts!$A116+$A$11,IF($C$5,8,0),1,1)) -> 27.73 | G116: =IF(A116>$A$8,"",OFFSET(InputPriceData!F$15,CalculationsAndCharts!$A116+$A$11,IF($C$5,8,0),1,1)) -> 28.719999 | H116: 26.85502742 | K116: 26.88917514 | N116: 0.8365107667 | Q116: -0.0162886414 | T116: 28.45786782 | BC116: 6519900
A117: 85 | B117: =IF(A117>$A$8,"",OFFSET(InputPriceData!B$15,$A117+$A$11,0,1,1)) -> 2023-10-16 | C117: =IF(A117>$A$8,"",OFFSET(InputPriceData!G$15,CalculationsAndCharts!$A117+$A$11,IF($C$5,8,0),1,1)) -> 2981900 | D117: =IF(A117>$A$8,"",OFFSET(InputPriceData!C$15,CalculationsAndCharts!$A117+$A$11,IF($C$5,8,0),1,1)) -> 27.84 | E117: =IF(A117>$A$8,"",OFFSET(InputPriceData!D$15,CalculationsAndCharts!$A117+$A$11,IF($C$5,8,0),1,1)) -> 27.950001 | F117: =IF(A117>$A$8,"",OFFSET(InputPriceData!E$15,CalculationsAndCharts!$A117+$A$11,IF($C$5,8,0),1,1)) -> 27.190001 | G117: =IF(A117>$A$8,"",OFFSET(InputPriceData!F$15,CalculationsAndCharts!$A117+$A$11,IF($C$5,8,0),1,1)) -> 27.790001 | H117: 26.52591479 | K117: 26.50082149 | N117: -0.4570631351 | Q117: -0.041146189 | T117: 28.07383944 | BD117: 2981900
A118: 86 | B118: =IF(A118>$A$8,"",OFFSET(InputPriceData!B$15,$A118+$A$11,0,1,1)) -> 2023-10-13 | C118: =IF(A118>$A$8,"",OFFSET(InputPriceData!G$15,CalculationsAndCharts!$A118+$A$11,IF($C$5,8,0),1,1)) -> 4252500 | D118: =IF(A118>$A$8,"",OFFSET(InputPriceData!C$15,CalculationsAndCharts!$A118+$A$11,IF($C$5,8,0),1,1)) -> 27.780001 | E118: =IF(A118>$A$8,"",OFFSET(InputPriceData!D$15,CalculationsAndCharts!$A118+$A$11,IF($C$5,8,0),1,1)) -> 27.99 | F118: =IF(A118>$A$8,"",OFFSET(InputPriceData!E$15,CalculationsAndCharts!$A118+$A$11,IF($C$5,8,0),1,1)) -> 27.379999 | G118: =IF(A118>$A$8,"",OFFSET(InputPriceData!F$15,CalculationsAndCharts!$A118+$A$11,IF($C$5,8,0),1,1)) -> 27.83 | H118: 26.30284076 | K118: 26.11139705 | N118: 0.2587154703 | Q118: -0.03163694872 | T118: 27.71881741 | BC118: 4252500
A119: 87 | B119: =IF(A119>$A$8,"",OFFSET(InputPriceData!B$15,$A119+$A$11,0,1,1)) -> 2023-10-12 | C119: =IF(A119>$A$8,"",OFFSET(InputPriceData!G$15,CalculationsAndCharts!$A119+$A$11,IF($C$5,8,0),1,1)) -> 4783700 | D119: =IF(A119>$A$8,"",OFFSET(InputPriceData!C$15,CalculationsAndCharts!$A119+$A$11,IF($C$5,8,0),1,1)) -> 27.33 | E119: =IF(A119>$A$8,"",OFFSET(InputPriceData!D$15,CalculationsAndCharts!$A119+$A$11,IF($C$5,8,0),1,1)) -> 27.6 | F119: =IF(A119>$A$8,"",OFFSET(InputPriceData!E$15,CalculationsAndCharts!$A119+$A$11,IF($C$5,8,0),1,1)) -> 26.969999 | G119: =IF(A119>$A$8,"",OFFSET(InputPriceData!F$15,CalculationsAndCharts!$A119+$A$11,IF($C$5,8,0),1,1)) -> 27.34 | H119: 26.03334207 | K119: 25.71345578 | N119: 0.1466045708 | Q119: -0.03037281156 | T119: 27.28845122 | BC119: 4783700
A120: 88 | B120: =IF(A120>$A$8,"",OFFSET(InputPriceData!B$15,$A120+$A$11,0,1,1)) -> 2023-10-11 | C120: =IF(A120>$A$8,"",OFFSET(InputPriceData!G$15,CalculationsAndCharts!$A120+$A$11,IF($C$5,8,0),1,1)) -> 2601600 | D120: =IF(A120>$A$8,"",OFFSET(InputPriceData!C$15,CalculationsAndCharts!$A120+$A$11,IF($C$5,8,0),1,1)) -> 26.5 | E120: =IF(A120>$A$8,"",OFFSET(InputPriceData!D$15,CalculationsAndCharts!$A120+$A$11,IF($C$5,8,0),1,1)) -> 27.209999 | F120: =IF(A120>$A$8,"",OFFSET(InputPriceData!E$15,CalculationsAndCharts!$A120+$A$11,IF($C$5,8,0),1,1)) -> 26.459999 | G120: =IF(A120>$A$8,"",OFFSET(InputPriceData!F$15,CalculationsAndCharts!$A120+$A$11,IF($C$5,8,0),1,1)) -> 27.15 | H120: 25.80275537 | K120: 25.32354178 | N120: 0.2328447856 | Q120: 0.02687803364 | T120: 26.82313708 | BC120: 2601600
A121: 89 | B121: =IF(A121>$A$8,"",OFFSET(InputPriceData!B$15,$A121+$A$11,0,1,1)) -> 2023-10-10 | C121: =IF(A121>$A$8,"",OFFSET(InputPriceData!G$15,CalculationsAndCharts!$A121+$A$11,IF($C$5,8,0),1,1)) -> 3200400 | D121: =IF(A121>$A$8,"",OFFSET(InputPriceData!C$15,CalculationsAndCharts!$A121+$A$11,IF($C$5,8,0),1,1)) -> 27.41 | E121: =IF(A121>$A$8,"",OFFSET(InputPriceData!D$15,CalculationsAndCharts!$A121+$A$11,IF($C$5,8,0),1,1)) -> 27.530001 | F121: =IF(A121>$A$8,"",OFFSET(InputPriceData!E$15,CalculationsAndCharts!$A121+$A$11,IF($C$5,8,0),1,1)) -> 27.040001 | G121: =IF(A121>$A$8,"",OFFSET(InputPriceData!F$15,CalculationsAndCharts!$A121+$A$11,IF($C$5,8,0),1,1)) -> 27.129999 | H121: 25.56500632 | K121: 24.95229423 | N121: -1.707521241 | Q121: 0.1688055393 | T121: 26.20181638 | BD121: 3200400
A122: 90 | B122: =IF(A122>$A$8,"",OFFSET(InputPriceData!B$15,$A122+$A$11,0,1,1)) -> 2023-10-09 | C122: =IF(A122>$A$8,"",OFFSET(InputPriceData!G$15,CalculationsAndCharts!$A122+$A$11,IF($C$5,8,0),1,1)) -> 6056000 | D122: =IF(A122>$A$8,"",OFFSET(InputPriceData!C$15,CalculationsAndCharts!$A122+$A$11,IF($C$5,8,0),1,1)) -> 26.16 | E122: =IF(A122>$A$8,"",OFFSET(InputPriceData!D$15,CalculationsAndCharts!$A122+$A$11,IF($C$5,8,0),1,1)) -> 27.5 | F122: =IF(A122>$A$8,"",OFFSET(InputPriceData!E$15,CalculationsAndCharts!$A122+$A$11,IF($C$5,8,0),1,1)) -> 26.16 | G122: =IF(A122>$A$8,"",OFFSET(InputPriceData!F$15,CalculationsAndCharts!$A122+$A$11,IF($C$5,8,0),1,1)) -> 27.379999 | H122: 25.28883114 | K122: 24.64295609 | N122: 0.5519246118 | Q122: 0.2116984233 | T122: 25.29136464 | BC122: 6056000
A123: 91 | B123: =IF(A123>$A$8,"",OFFSET(InputPriceData!B$15,$A123+$A$11,0,1,1)) -> 2023-10-06 | C123: =IF(A123>$A$8,"",OFFSET(InputPriceData!G$15,CalculationsAndCharts!$A123+$A$11,IF($C$5,8,0),1,1)) -> 6643400 | D123: =IF(A123>$A$8,"",OFFSET(InputPriceData!C$15,CalculationsAndCharts!$A123+$A$11,IF($C$5,8,0),1,1)) -> 24.82 | E123: =IF(A123>$A$8,"",OFFSET(InputPriceData!D$15,CalculationsAndCharts!$A123+$A$11,IF($C$5,8,0),1,1)) -> 25.99 | F123: =IF(A123>$A$8,"",OFFSET(InputPriceData!E$15,CalculationsAndCharts!$A123+$A$11,IF($C$5,8,0),1,1)) -> 24.67 | G123: =IF(A123>$A$8,"",OFFSET(InputPriceData!F$15,CalculationsAndCharts!$A123+$A$11,IF($C$5,8,0),1,1)) -> 25.65 | H123: 24.91980152 | K123: 24.48243272 | N123: 0.3708272321 | Q123: 0.1030369756 | T123: 24.48192887 | BC123: 6643400
A124: 92 | B124: =IF(A124>$A$8,"",OFFSET(InputPriceData!B$15,$A124+$A$11,0,1,1)) -> 2023-10-05 | C124: =IF(A124>$A$8,"",OFFSET(InputPriceData!G$15,CalculationsAndCharts!$A124+$A$11,IF($C$5,8,0),1,1)) -> 7250300 | D124: =IF(A124>$A$8,"",OFFSET(InputPriceData!C$15,CalculationsAndCharts!$A124+$A$11,IF($C$5,8,0),1,1)) -> 23.799999 | E124: =IF(A124>$A$8,"",OFFSET(InputPriceData!D$15,CalculationsAndCharts!$A124+$A$11,IF($C$5,8,0),1,1)) -> 24.67 | F124: =IF(A124>$A$8,"",OFFSET(InputPriceData!E$15,CalculationsAndCharts!$A124+$A$11,IF($C$5,8,0),1,1)) -> 23.77 | G124: =IF(A124>$A$8,"",OFFSET(InputPriceData!F$15,CalculationsAndCharts!$A124+$A$11,IF($C$5,8,0),1,1)) -> 24.559999 | H124: 24.79094297 | K124: 24.48255746 | N124: 0.8882555855 | Q124: -0.008916407438 | T124: 24.17200003 | BC124: 7250300
A125: 93 | B125: =IF(A125>$A$8,"",OFFSET(InputPriceData!B$15,$A125+$A$11,0,1,1)) -> 2023-10-04 | C125: =IF(A125>$A$8,"",OFFSET(InputPriceData!G$15,CalculationsAndCharts!$A125+$A$11,IF($C$5,8,0),1,1)) -> 4528000 | D125: =IF(A125>$A$8,"",OFFSET(InputPriceData!C$15,CalculationsAndCharts!$A125+$A$11,IF($C$5,8,0),1,1)) -> 24.299999 | E125: =IF(A125>$A$8,"",OFFSET(InputPriceData!D$15,CalculationsAndCharts!$A125+$A$11,IF($C$5,8,0),1,1)) -> 24.299999 | F125: =IF(A125>$A$8,"",OFFSET(InputPriceData!E$15,CalculationsAndCharts!$A125+$A$11,IF($C$5,8,0),1,1)) -> 23.58 | G125: =IF(A125>$A$8,"",OFFSET(InputPriceData!F$15,CalculationsAndCharts!$A125+$A$11,IF($C$5,8,0),1,1)) -> 23.9 | H125: 24.83169778 | K125: 24.55944066 | N125: -0.388072343 | Q125: -0.06075081138 | T125: 24.23914983 | BD125: 4528000
A126: 94 | B126: =IF(A126>$A$8,"",OFFSET(InputPriceData!B$15,$A126+$A$11,0,1,1)) -> 2023-10-03 | C126: =IF(A126>$A$8,"",OFFSET(InputPriceData!G$15,CalculationsAndCharts!$A126+$A$11,IF($C$5,8,0),1,1)) -> 5568600 | D126: =IF(A126>$A$8,"",OFFSET(InputPriceData!C$15,CalculationsAndCharts!$A126+$A$11,IF($C$5,8,0),1,1)) -> 24.209999 | E126: =IF(A126>$A$8,"",OFFSET(InputPriceData!D$15,CalculationsAndCharts!$A126+$A$11,IF($C$5,8,0),1,1)) -> 24.35 | F126: =IF(A126>$A$8,"",OFFSET(InputPriceData!E$15,CalculationsAndCharts!$A126+$A$11,IF($C$5,8,0),1,1)) -> 23.74 | G126: =IF(A126>$A$8,"",OFFSET(InputPriceData!F$15,CalculationsAndCharts!$A126+$A$11,IF($C$5,8,0),1,1)) -> 24.27 | H126: 24.99611504 | K126: 24.6387335 | N126: 1.095226237 | Q126: -0.08115631524 | T126: 24.41488959 | BC126: 5568600
A127: 95 | B127: =IF(A127>$A$8,"",OFFSET(InputPriceData!B$15,$A127+$A$11,0,1,1)) -> 2023-10-02 | C127: =IF(A127>$A$8,"",OFFSET(InputPriceData!G$15,CalculationsAndCharts!$A127+$A$11,IF($C$5,8,0),1,1)) -> 4484800 | D127: =IF(A127>$A$8,"",OFFSET(InputPriceData!C$15,CalculationsAndCharts!$A127+$A$11,IF($C$5,8,0),1,1)) -> 25.290001 | E127: =IF(A127>$A$8,"",OFFSET(InputPriceData!D$15,CalculationsAndCharts!$A127+$A$11,IF($C$5,8,0),1,1)) -> 25.33 | F127: =IF(A127>$A$8,"",OFFSET(InputPriceData!E$15,CalculationsAndCharts!$A127+$A$11,IF($C$5,8,0),1,1)) -> 23.860001 | G127: =IF(A127>$A$8,"",OFFSET(InputPriceData!F$15,CalculationsAndCharts!$A127+$A$11,IF($C$5,8,0),1,1)) -> 24.190001 | H127: 25.12425299 | K127: 24.69414946 | N127: -0.9658676394 | Q127: -0.0155122584 | T127: 24.57610909 | BD127: 4484800
A128: 96 | B128: =IF(A128>$A$8,"",OFFSET(InputPriceData!B$15,$A128+$A$11,0,1,1)) -> 2023-09-29 | C128: =IF(A128>$A$8,"",OFFSET(InputPriceData!G$15,CalculationsAndCharts!$A128+$A$11,IF($C$5,8,0),1,1)) -> 4016800 | D128: =IF(A128>$A$8,"",OFFSET(InputPriceData!C$15,CalculationsAndCharts!$A128+$A$11,IF($C$5,8,0),1,1)) -> 25.459999 | E128: =IF(A128>$A$8,"",OFFSET(InputPriceData!D$15,CalculationsAndCharts!$A128+$A$11,IF($C$5,8,0),1,1)) -> 25.76 | F128: =IF(A128>$A$8,"",OFFSET(InputPriceData!E$15,CalculationsAndCharts!$A128+$A$11,IF($C$5,8,0),1,1)) -> 25.219999 | G128: =IF(A128>$A$8,"",OFFSET(InputPriceData!F$15,CalculationsAndCharts!$A128+$A$11,IF($C$5,8,0),1,1)) -> 25.379999 | H128: 25.28912099 | K128: 24.72337214 | N128: -0.5088096787 | Q128: 0.1220955481 | T128: 24.50864433 | BD128: 4016800
A129: 97 | B129: =IF(A129>$A$8,"",OFFSET(InputPriceData!B$15,$A129+$A$11,0,1,1)) -> 2023-09-28 | C129: =IF(A129>$A$8,"",OFFSET(InputPriceData!G$15,CalculationsAndCharts!$A129+$A$11,IF($C$5,8,0),1,1)) -> 4823300 | D129: =IF(A129>$A$8,"",OFFSET(InputPriceData!C$15,CalculationsAndCharts!$A129+$A$11,IF($C$5,8,0),1,1)) -> 24.879999 | E129: =IF(A129>$A$8,"",OFFSET(InputPriceData!D$15,CalculationsAndCharts!$A129+$A$11,IF($C$5,8,0),1,1)) -> 25.74 | F129: =IF(A129>$A$8,"",OFFSET(InputPriceData!E$15,CalculationsAndCharts!$A129+$A$11,IF($C$5,8,0),1,1)) -> 24.58 | G129: =IF(A129>$A$8,"",OFFSET(InputPriceData!F$15,CalculationsAndCharts!$A129+$A$11,IF($C$5,8,0),1,1)) -> 25.450001 | H129: 25.27308369 | K129: 24.77653127 | N129: -0.1207330237 | Q129: 0.168195161 | T129: 24.12396379 | BC129: 4823300
A130: 98 | B130: =IF(A130>$A$8,"",OFFSET(InputPriceData!B$15,$A130+$A$11,0,1,1)) -> 2023-09-27 | C130: =IF(A130>$A$8,"",OFFSET(InputPriceData!G$15,CalculationsAndCharts!$A130+$A$11,IF($C$5,8,0),1,1)) -> 4847400 | D130: =IF(A130>$A$8,"",OFFSET(InputPriceData!C$15,CalculationsAndCharts!$A130+$A$11,IF($C$5,8,0),1,1)) -> 24.780001 | E130: =IF(A130>$A$8,"",OFFSET(InputPriceData!D$15,CalculationsAndCharts!$A130+$A$11,IF($C$5,8,0),1,1)) -> 25.26 | F130: =IF(A130>$A$8,"",OFFSET(InputPriceData!E$15,CalculationsAndCharts!$A130+$A$11,IF($C$5,8,0),1,1)) -> 24.59 | G130: =IF(A130>$A$8,"",OFFSET(InputPriceData!F$15,CalculationsAndCharts!$A130+$A$11,IF($C$5,8,0),1,1)) -> 24.93 | H130: 25.24186299 | K130: 24.93808424 | N130: 0.4053209034 | Q130: 0.1376327458 | T130: 23.79518064 | BC130: 4847400
A131: 99 | B131: =IF(A131>$A$8,"",OFFSET(InputPriceData!B$15,$A131+$A$11,0,1,1)) -> 2023-09-26 | C131: =IF(A131>$A$8,"",OFFSET(InputPriceData!G$15,CalculationsAndCharts!$A131+$A$11,IF($C$5,8,0),1,1)) -> 5393000 | D131: =IF(A131>$A$8,"",OFFSET(InputPriceData!C$15,CalculationsAndCharts!$A131+$A$11,IF($C$5,8,0),1,1)) -> 23.73 | E131: =IF(A131>$A$8,"",OFFSET(InputPriceData!D$15,CalculationsAndCharts!$A131+$A$11,IF($C$5,8,0),1,1)) -> 24.74 | F131: =IF(A131>$A$8,"",OFFSET(InputPriceData!E$15,CalculationsAndCharts!$A131+$A$11,IF($C$5,8,0),1,1)) -> 23.67 | G131: =IF(A131>$A$8,"",OFFSET(InputPriceData!F$15,CalculationsAndCharts!$A131+$A$11,IF($C$5,8,0),1,1)) -> 24.27 | H131: 25.29689763 | K131: 25.22102735 | N131: -0.06036694306 | Q131: 0.08347128459 | T131: 23.74799433 | BC131: 5393000
A132: 100 | B132: =IF(A132>$A$8,"",OFFSET(InputPriceData!B$15,$A132+$A$11,0,1,1)) -> 2023-09-25 | C132: =IF(A132>$A$8,"",OFFSET(InputPriceData!G$15,CalculationsAndCharts!$A132+$A$11,IF($C$5,8,0),1,1)) -> 4151300 | D132: =IF(A132>$A$8,"",OFFSET(InputPriceData!C$15,CalculationsAndCharts!$A132+$A$11,IF($C$5,8,0),1,1)) -> 23.73 | E132: =IF(A132>$A$8,"",OFFSET(InputPriceData!D$15,CalculationsAndCharts!$A132+$A$11,IF($C$5,8,0),1,1)) -> 24.190001 | F132: =IF(A132>$A$8,"",OFFSET(InputPriceData!E$15,CalculationsAndCharts!$A132+$A$11,IF($C$5,8,0),1,1)) -> 23.65 | G132: =IF(A132>$A$8,"",OFFSET(InputPriceData!F$15,CalculationsAndCharts!$A132+$A$11,IF($C$5,8,0),1,1)) -> 24.08 | H132: 25.47811486 | K132: 25.585699 | N132: 0.422567739 | Q132: 0.006533842224 | T132: 23.99090072 | BC132: 4151300
A133: 101 | B133: =IF(A133>$A$8,"",OFFSET(InputPriceData!B$15,$A133+$A$11,0,1,1)) -> 2023-09-22 | C133: =IF(A133>$A$8,"",OFFSET(InputPriceData!G$15,CalculationsAndCharts!$A133+$A$11,IF($C$5,8,0),1,1)) -> 2651200 | D133: =IF(A133>$A$8,"",OFFSET(InputPriceData!C$15,CalculationsAndCharts!$A133+$A$11,IF($C$5,8,0),1,1)) -> 24.18 | E133: =IF(A133>$A$8,"",OFFSET(InputPriceData!D$15,CalculationsAndCharts!$A133+$A$11,IF($C$5,8,0),1,1)) -> 24.459999 | F133: =IF(A133>$A$8,"",OFFSET(InputPriceData!E$15,CalculationsAndCharts!$A133+$A$11,IF($C$5,8,0),1,1)) -> 23.809999 | G133: =IF(A133>$A$8,"",OFFSET(InputPriceData!F$15,CalculationsAndCharts!$A133+$A$11,IF($C$5,8,0),1,1)) -> 23.82 | H133: 25.72484101 | K133: 25.98051549 | N133: 0.586422595 | Q133: -0.09140447078 | T133: 24.50431684 | BD133: 2651200
A134: 102 | B134: =IF(A134>$A$8,"",OFFSET(InputPriceData!B$15,$A134+$A$11,0,1,1)) -> 2023-09-21 | C134: =IF(A134>$A$8,"",OFFSET(InputPriceData!G$15,CalculationsAndCharts!$A134+$A$11,IF($C$5,8,0),1,1)) -> 4869100 | D134: =IF(A134>$A$8,"",OFFSET(InputPriceData!C$15,CalculationsAndCharts!$A134+$A$11,IF($C$5,8,0),1,1)) -> 25.110001 | E134: =IF(A134>$A$8,"",OFFSET(InputPriceData!D$15,CalculationsAndCharts!$A134+$A$11,IF($C$5,8,0),1,1)) -> 25.110001 | F134: =IF(A134>$A$8,"",OFFSET(InputPriceData!E$15,CalculationsAndCharts!$A134+$A$11,IF($C$5,8,0),1,1)) -> 23.92 | G134: =IF(A134>$A$8,"",OFFSET(InputPriceData!F$15,CalculationsAndCharts!$A134+$A$11,IF($C$5,8,0),1,1)) -> 24.049999 | H134: 26.06098943 | K134: 26.34597085 | N134: 0.04312010743 | Q134: -0.12793591 | T134: 25.24404371 | BD134: 4869100
A135: 103 | B135: =IF(A135>$A$8,"",OFFSET(InputPriceData!B$15,$A135+$A$11,0,1,1)) -> 2023-09-20 | C135: =IF(A135>$A$8,"",OFFSET(InputPriceData!G$15,CalculationsAndCharts!$A135+$A$11,IF($C$5,8,0),1,1)) -> 5368000 | D135: =IF(A135>$A$8,"",OFFSET(InputPriceData!C$15,CalculationsAndCharts!$A135+$A$11,IF($C$5,8,0),1,1)) -> 25.48 | E135: =IF(A135>$A$8,"",OFFSET(InputPriceData!D$15,CalculationsAndCharts!$A135+$A$11,IF($C$5,8,0),1,1)) -> 25.99 | F135: =IF(A135>$A$8,"",OFFSET(InputPriceData!E$15,CalculationsAndCharts!$A135+$A$11,IF($C$5,8,0),1,1)) -> 24.92 | G135: =IF(A135>$A$8,"",OFFSET(InputPriceData!F$15,CalculationsAndCharts!$A135+$A$11,IF($C$5,8,0),1,1)) -> 24.959999 | H135: 26.41587009 | K135: 26.61876961 | N135: -0.5864217326 | Q135: -0.08956886218 | T135: 25.95252622 | BD135: 5368000
A136: 104 | B136: =IF(A136>$A$8,"",OFFSET(InputPriceData!B$15,$A136+$A$11,0,1,1)) -> 2023-09-19 | C136: =IF(A136>$A$8,"",OFFSET(InputPriceData!G$15,CalculationsAndCharts!$A136+$A$11,IF($C$5,8,0),1,1)) -> 3481600 | D136: =IF(A136>$A$8,"",OFFSET(InputPriceData!C$15,CalculationsAndCharts!$A136+$A$11,IF($C$5,8,0),1,1)) -> 26.52 | E136: =IF(A136>$A$8,"",OFFSET(InputPriceData!D$15,CalculationsAndCharts!$A136+$A$11,IF($C$5,8,0),1,1)) -> 26.6 | F136: =IF(A136>$A$8,"",OFFSET(InputPriceData!E$15,CalculationsAndCharts!$A136+$A$11,IF($C$5,8,0),1,1)) -> 25.92 | G136: =IF(A136>$A$8,"",OFFSET(InputPriceData!F$15,CalculationsAndCharts!$A136+$A$11,IF($C$5,8,0),1,1)) -> 25.92 | H136: 26.67278852 | K136: 26.78370827 | N136: 0.01724597325 | Q136: -0.06314357068 | T136: 26.41357756 | BD136: 3481600
A137: 105 | B137: =IF(A137>$A$8,"",OFFSET(InputPriceData!B$15,$A137+$A$11,0,1,1)) -> 2023-09-18 | C137: =IF(A137>$A$8,"",OFFSET(InputPriceData!G$15,CalculationsAndCharts!$A137+$A$11,IF($C$5,8,0),1,1)) -> 3255900 | D137: =IF(A137>$A$8,"",OFFSET(InputPriceData!C$15,CalculationsAndCharts!$A137+$A$11,IF($C$5,8,0),1,1)) -> 26.65 | E137: =IF(A137>$A$8,"",OFFSET(InputPriceData!D$15,CalculationsAndCharts!$A137+$A$11,IF($C$5,8,0),1,1)) -> 26.85 | F137: =IF(A137>$A$8,"",OFFSET(InputPriceData!E$15,CalculationsAndCharts!$A137+$A$11,IF($C$5,8,0),1,1)) -> 26.1 | G137: =IF(A137>$A$8,"",OFFSET(InputPriceData!F$15,CalculationsAndCharts!$A137+$A$11,IF($C$5,8,0),1,1)) -> 26.200001 | H137: 26.80563355 | K137: 26.87533973 | N137: 0.4656887089 | Q137: -0.0675948973 | T137: 26.70397551 | BD137: 3255900
A138: 106 | B138: =IF(A138>$A$8,"",OFFSET(InputPriceData!B$15,$A138+$A$11,0,1,1)) -> 2023-09-15 | C138: =IF(A138>$A$8,"",OFFSET(InputPriceData!G$15,CalculationsAndCharts!$A138+$A$11,IF($C$5,8,0),1,1)) -> 9398300 | D138: =IF(A138>$A$8,"",OFFSET(InputPriceData!C$15,CalculationsAndCharts!$A138+$A$11,IF($C$5,8,0),1,1)) -> 26.940001 | E138: =IF(A138>$A$8,"",OFFSET(InputPriceData!D$15,CalculationsAndCharts!$A138+$A$11,IF($C$5,8,0),1,1)) -> 27.280001 | F138: =IF(A138>$A$8,"",OFFSET(InputPriceData!E$15,CalculationsAndCharts!$A138+$A$11,IF($C$5,8,0),1,1)) -> 26.290001 | G138: =IF(A138>$A$8,"",OFFSET(InputPriceData!F$15,CalculationsAndCharts!$A138+$A$11,IF($C$5,8,0),1,1)) -> 26.5 | H138: 26.91250988 | K138: 26.91776354 | N138: -0.931375693 | Q138: -0.002745420398 | T138: 26.93311923 | BD138: 9398300
A139: 107 | B139: =IF(A139>$A$8,"",OFFSET(InputPriceData!B$15,$A139+$A$11,0,1,1)) -> 2023-09-14 | C139: =IF(A139>$A$8,"",OFFSET(InputPriceData!G$15,CalculationsAndCharts!$A139+$A$11,IF($C$5,8,0),1,1)) -> 3369300 | D139: =IF(A139>$A$8,"",OFFSET(InputPriceData!C$15,CalculationsAndCharts!$A139+$A$11,IF($C$5,8,0),1,1)) -> 27.58 | E139: =IF(A139>$A$8,"",OFFSET(InputPriceData!D$15,CalculationsAndCharts!$A139+$A$11,IF($C$5,8,0),1,1)) -> 27.639999 | F139: =IF(A139>$A$8,"",OFFSET(InputPriceData!E$15,CalculationsAndCharts!$A139+$A$11,IF($C$5,8,0),1,1)) -> 26.799999 | G139: =IF(A139>$A$8,"",OFFSET(InputPriceData!F$15,CalculationsAndCharts!$A139+$A$11,IF($C$5,8,0),1,1)) -> 27.34 | H139: 26.98530574 | K139: 26.91396201 | N139: 0.1638522688 | Q139: 0.06023811325 | T139: 26.93490081 | BC139: 3369300
A140: 108 | B140: =IF(A140>$A$8,"",OFFSET(InputPriceData!B$15,$A140+$A$11,0,1,1)) -> 2023-09-13 | C140: =IF(A140>$A$8,"",OFFSET(InputPriceData!G$15,CalculationsAndCharts!$A140+$A$11,IF($C$5,8,0),1,1)) -> 2785300 | D140: =IF(A140>$A$8,"",OFFSET(InputPriceData!C$15,CalculationsAndCharts!$A140+$A$11,IF($C$5,8,0),1,1)) -> 27.07 | E140: =IF(A140>$A$8,"",OFFSET(InputPriceData!D$15,CalculationsAndCharts!$A140+$A$11,IF($C$5,8,0),1,1)) -> 27.35 | F140: =IF(A140>$A$8,"",OFFSET(InputPriceData!E$15,CalculationsAndCharts!$A140+$A$11,IF($C$5,8,0),1,1)) -> 26.780001 | G140: =IF(A140>$A$8,"",OFFSET(InputPriceData!F$15,CalculationsAndCharts!$A140+$A$11,IF($C$5,8,0),1,1)) -> 27.1 | H140: 26.92271264 | K140: 26.9087783 | N140: -0.784768535 | Q140: 0.06939507651 | T140: 26.7865414 | BC140: 2785300
A141: 109 | B141: =IF(A141>$A$8,"",OFFSET(InputPriceData!B$15,$A141+$A$11,0,1,1)) -> 2023-09-12 | C141: =IF(A141>$A$8,"",OFFSET(InputPriceData!G$15,CalculationsAndCharts!$A141+$A$11,IF($C$5,8,0),1,1)) -> 3493200 | D141: =IF(A141>$A$8,"",OFFSET(InputPriceData!C$15,CalculationsAndCharts!$A141+$A$11,IF($C$5,8,0),1,1)) -> 26.6 | E141: =IF(A141>$A$8,"",OFFSET(InputPriceData!D$15,CalculationsAndCharts!$A141+$A$11,IF($C$5,8,0),1,1)) -> 27.110001 | F141: =IF(A141>$A$8,"",OFFSET(InputPriceData!E$15,CalculationsAndCharts!$A141+$A$11,IF($C$5,8,0),1,1)) -> 26.35 | G141: =IF(A141>$A$8,"",OFFSET(InputPriceData!F$15,CalculationsAndCharts!$A141+$A$11,IF($C$5,8,0),1,1)) -> 27.049999 | H141: 26.89142663 | K141: 26.93903989 | N141: 1.44018106 | Q141: -0.003643351084 | T141: 26.68077573 | BC141: 3493200
A142: 110 | B142: =IF(A142>$A$8,"",OFFSET(InputPriceData!B$15,$A142+$A$11,0,1,1)) -> 2023-09-11 | C142: =IF(A142>$A$8,"",OFFSET(InputPriceData!G$15,CalculationsAndCharts!$A142+$A$11,IF($C$5,8,0),1,1)) -> 4563200 | D142: =IF(A142>$A$8,"",OFFSET(InputPriceData!C$15,CalculationsAndCharts!$A142+$A$11,IF($C$5,8,0),1,1)) -> 27.059999 | E142: =IF(A142>$A$8,"",OFFSET(InputPriceData!D$15,CalculationsAndCharts!$A142+$A$11,IF($C$5,8,0),1,1)) -> 27.219999 | F142: =IF(A142>$A$8,"",OFFSET(InputPriceData!E$15,CalculationsAndCharts!$A142+$A$11,IF($C$5,8,0),1,1)) -> 25.879999 | G142: =IF(A142>$A$8,"",OFFSET(InputPriceData!F$15,CalculationsAndCharts!$A142+$A$11,IF($C$5,8,0),1,1)) -> 26.09 | H142: 26.86344327 | K142: 27.0029771 | N142: -0.724401592 | Q142: -0.05755153587 | T142: 26.81575301 | BD142: 4563200
A143: 111 | B143: =IF(A143>$A$8,"",OFFSET(InputPriceData!B$15,$A143+$A$11,0,1,1)) -> 2023-09-08 | C143: =IF(A143>$A$8,"",OFFSET(InputPriceData!G$15,CalculationsAndCharts!$A143+$A$11,IF($C$5,8,0),1,1)) -> 3891900 | D143: =IF(A143>$A$8,"",OFFSET(InputPriceData!C$15,CalculationsAndCharts!$A143+$A$11,IF($C$5,8,0),1,1)) -> 27.01 | E143: =IF(A143>$A$8,"",OFFSET(InputPriceData!D$15,CalculationsAndCharts!$A143+$A$11,IF($C$5,8,0),1,1)) -> 27.48 | F143: =IF(A143>$A$8,"",OFFSET(InputPriceData!E$15,CalculationsAndCharts!$A143+$A$11,IF($C$5,8,0),1,1)) -> 26.780001 | G143: =IF(A143>$A$8,"",OFFSET(InputPriceData!F$15,CalculationsAndCharts!$A143+$A$11,IF($C$5,8,0),1,1)) -> 26.799999 | H143: 26.99993326 | K143: 27.04932726 | N143: 0.2673384569 | Q143: -0.05703513302 | T143: 27.05815028 | BC143: 3891900
A144: 112 | B144: =IF(A144>$A$8,"",OFFSET(InputPriceData!B$15,$A144+$A$11,0,1,1)) -> 2023-09-07 | C144: =IF(A144>$A$8,"",OFFSET(InputPriceData!G$15,CalculationsAndCharts!$A144+$A$11,IF($C$5,8,0),1,1)) -> 4345200 | D144: =IF(A144>$A$8,"",OFFSET(InputPriceData!C$15,CalculationsAndCharts!$A144+$A$11,IF($C$5,8,0),1,1)) -> 26.860001 | E144: =IF(A144>$A$8,"",OFFSET(InputPriceData!D$15,CalculationsAndCharts!$A144+$A$11,IF($C$5,8,0),1,1)) -> 27.18 | F144: =IF(A144>$A$8,"",OFFSET(InputPriceData!E$15,CalculationsAndCharts!$A144+$A$11,IF($C$5,8,0),1,1)) -> 26.52 | G144: =IF(A144>$A$8,"",OFFSET(InputPriceData!F$15,CalculationsAndCharts!$A144+$A$11,IF($C$5,8,0),1,1)) -> 26.67 | H144: 27.03521578 | K144: 27.04714299 | N144: 0.0862376277 | Q144: -0.09655202499 | T144: 27.21624547 | BD144: 4345200
A145: 113 | B145: =IF(A145>$A$8,"",OFFSET(InputPriceData!B$15,$A145+$A$11,0,1,1)) -> 2023-09-06 | C145: =IF(A145>$A$8,"",OFFSET(InputPriceData!G$15,CalculationsAndCharts!$A145+$A$11,IF($C$5,8,0),1,1)) -> 3527300 | D145: =IF(A145>$A$8,"",OFFSET(InputPriceData!C$15,CalculationsAndCharts!$A145+$A$11,IF($C$5,8,0),1,1)) -> 26.870001 | E145: =IF(A145>$A$8,"",OFFSET(InputPriceData!D$15,CalculationsAndCharts!$A145+$A$11,IF($C$5,8,0),1,1)) -> 27.280001 | F145: =IF(A145>$A$8,"",OFFSET(InputPriceData!E$15,CalculationsAndCharts!$A145+$A$11,IF($C$5,8,0),1,1)) -> 26.559999 | G145: =IF(A145>$A$8,"",OFFSET(InputPriceData!F$15,CalculationsAndCharts!$A145+$A$11,IF($C$5,8,0),1,1)) -> 26.85 | H145: 27.09966562 | K145: 27.00527911 | N145: 0.6726628098 | Q145: -0.1035314664 | T145: 27.39102481 | BD145: 3527300
A146: 114 | B146: =IF(A146>$A$8,"",OFFSET(InputPriceData!B$15,$A146+$A$11,0,1,1)) -> 2023-09-05 | C146: =IF(A146>$A$8,"",OFFSET(InputPriceData!G$15,CalculationsAndCharts!$A146+$A$11,IF($C$5,8,0),1,1)) -> 3943400 | D146: =IF(A146>$A$8,"",OFFSET(InputPriceData!C$15,CalculationsAndCharts!$A146+$A$11,IF($C$5,8,0),1,1)) -> 28 | E146: =IF(A146>$A$8,"",OFFSET(InputPriceData!D$15,CalculationsAndCharts!$A146+$A$11,IF($C$5,8,0),1,1)) -> 28.23 | F146: =IF(A146>$A$8,"",OFFSET(InputPriceData!E$15,CalculationsAndCharts!$A146+$A$11,IF($C$5,8,0),1,1)) -> 27.07 | G146: =IF(A146>$A$8,"",OFFSET(InputPriceData!F$15,CalculationsAndCharts!$A146+$A$11,IF($C$5,8,0),1,1)) -> 27.129999 | H146: 27.14372426 | K146: 26.90978192 | N146: -1.362570731 | Q146: -0.00223102645 | T146: 27.47134344 | BD146: 3943400
A147: 115 | B147: =IF(A147>$A$8,"",OFFSET(InputPriceData!B$15,$A147+$A$11,0,1,1)) -> 2023-09-01 | C147: =IF(A147>$A$8,"",OFFSET(InputPriceData!G$15,CalculationsAndCharts!$A147+$A$11,IF($C$5,8,0),1,1)) -> 3332900 | D147: =IF(A147>$A$8,"",OFFSET(InputPriceData!C$15,CalculationsAndCharts!$A147+$A$11,IF($C$5,8,0),1,1)) -> 28.09 | E147: =IF(A147>$A$8,"",OFFSET(InputPriceData!D$15,CalculationsAndCharts!$A147+$A$11,IF($C$5,8,0),1,1)) -> 28.26 | F147: =IF(A147>$A$8,"",OFFSET(InputPriceData!E$15,CalculationsAndCharts!$A147+$A$11,IF($C$5,8,0),1,1)) -> 27.68 | G147: =IF(A147>$A$8,"",OFFSET(InputPriceData!F$15,CalculationsAndCharts!$A147+$A$11,IF($C$5,8,0),1,1)) -> 28.190001 | H147: 27.14614637 | K147: 26.77075885 | N147: 0.02587240941 | Q147: 0.1000960071 | T147: 27.20383742 | BC147: 3332900
A148: 116 | B148: =IF(A148>$A$8,"",OFFSET(InputPriceData!B$15,$A148+$A$11,0,1,1)) -> 2023-08-31 | C148: =IF(A148>$A$8,"",OFFSET(InputPriceData!G$15,CalculationsAndCharts!$A148+$A$11,IF($C$5,8,0),1,1)) -> 4294900 | D148: =IF(A148>$A$8,"",OFFSET(InputPriceData!C$15,CalculationsAndCharts!$A148+$A$11,IF($C$5,8,0),1,1)) -> 27.190001 | E148: =IF(A148>$A$8,"",OFFSET(InputPriceData!D$15,CalculationsAndCharts!$A148+$A$11,IF($C$5,8,0),1,1)) -> 27.889999 | F148: =IF(A148>$A$8,"",OFFSET(InputPriceData!E$15,CalculationsAndCharts!$A148+$A$11,IF($C$5,8,0),1,1)) -> 26.950001 | G148: =IF(A148>$A$8,"",OFFSET(InputPriceData!F$15,CalculationsAndCharts!$A148+$A$11,IF($C$5,8,0),1,1)) -> 27.67 | H148: 26.96193673 | K148: 26.66354368 | N148: 0.03449539604 | Q148: 0.1038647684 | T148: 26.70855247 | BC148: 4294900
A149: 117 | B149: =IF(A149>$A$8,"",OFFSET(InputPriceData!B$15,$A149+$A$11,0,1,1)) -> 2023-08-30 | C149: =IF(A149>$A$8,"",OFFSET(InputPriceData!G$15,CalculationsAndCharts!$A149+$A$11,IF($C$5,8,0),1,1)) -> 3268400 | D149: =IF(A149>$A$8,"",OFFSET(InputPriceData!C$15,CalculationsAndCharts!$A149+$A$11,IF($C$5,8,0),1,1)) -> 26.74 | E149: =IF(A149>$A$8,"",OFFSET(InputPriceData!D$15,CalculationsAndCharts!$A149+$A$11,IF($C$5,8,0),1,1)) -> 27.459999 | F149: =IF(A149>$A$8,"",OFFSET(InputPriceData!E$15,CalculationsAndCharts!$A149+$A$11,IF($C$5,8,0),1,1)) -> 26.629999 | G149: =IF(A149>$A$8,"",OFFSET(InputPriceData!F$15,CalculationsAndCharts!$A149+$A$11,IF($C$5,8,0),1,1)) -> 27.18 | H149: 26.83698438 | K149: 26.65240108 | N149: 0.1466062955 | Q149: 0.09330018798 | T149: 26.33808153 | BC149: 3268400
A150: 118 | B150: =IF(A150>$A$8,"",OFFSET(InputPriceData!B$15,$A150+$A$11,0,1,1)) -> 2023-08-29 | C150: =IF(A150>$A$8,"",OFFSET(InputPriceData!G$15,CalculationsAndCharts!$A150+$A$11,IF($C$5,8,0),1,1)) -> 3582700 | D150: =IF(A150>$A$8,"",OFFSET(InputPriceData!C$15,CalculationsAndCharts!$A150+$A$11,IF($C$5,8,0),1,1)) -> 26.440001 | E150: =IF(A150>$A$8,"",OFFSET(InputPriceData!D$15,CalculationsAndCharts!$A150+$A$11,IF($C$5,8,0),1,1)) -> 26.75 | F150: =IF(A150>$A$8,"",OFFSET(InputPriceData!E$15,CalculationsAndCharts!$A150+$A$11,IF($C$5,8,0),1,1)) -> 26.129999 | G150: =IF(A150>$A$8,"",OFFSET(InputPriceData!F$15,CalculationsAndCharts!$A150+$A$11,IF($C$5,8,0),1,1)) -> 26.73 | H150: 26.77645222 | K150: 26.73021564 | N150: 0.1638522688 | Q150: 0.0735495455 | T150: 26.12823629 | BC150: 3582700
A151: 119 | B151: =IF(A151>$A$8,"",OFFSET(InputPriceData!B$15,$A151+$A$11,0,1,1)) -> 2023-08-28 | C151: =IF(A151>$A$8,"",OFFSET(InputPriceData!G$15,CalculationsAndCharts!$A151+$A$11,IF($C$5,8,0),1,1)) -> 3080800 | D151: =IF(A151>$A$8,"",OFFSET(InputPriceData!C$15,CalculationsAndCharts!$A151+$A$11,IF($C$5,8,0),1,1)) -> 26.879999 | E151: =IF(A151>$A$8,"",OFFSET(InputPriceData!D$15,CalculationsAndCharts!$A151+$A$11,IF($C$5,8,0),1,1)) -> 27.049999 | F151: =IF(A151>$A$8,"",OFFSET(InputPriceData!E$15,CalculationsAndCharts!$A151+$A$11,IF($C$5,8,0),1,1)) -> 26.209999 | G151: =IF(A151>$A$8,"",OFFSET(InputPriceData!F$15,CalculationsAndCharts!$A151+$A$11,IF($C$5,8,0),1,1)) -> 26.450001 | H151: 26.78464967 | K151: 26.87924476 | N151: -0.1379815841 | Q151: 0.05710345254 | T151: 26.08454222 | BC151: 3080800
A152: 120 | B152: =IF(A152>$A$8,"",OFFSET(InputPriceData!B$15,$A152+$A$11,0,1,1)) -> 2023-08-25 | C152: =IF(A152>$A$8,"",OFFSET(InputPriceData!G$15,CalculationsAndCharts!$A152+$A$11,IF($C$5,8,0),1,1)) -> 3019800 | D152: =IF(A152>$A$8,"",OFFSET(InputPriceData!C$15,CalculationsAndCharts!$A152+$A$11,IF($C$5,8,0),1,1)) -> 26.25 | E152: =IF(A152>$A$8,"",OFFSET(InputPriceData!D$15,CalculationsAndCharts!$A152+$A$11,IF($C$5,8,0),1,1)) -> 26.52 | F152: =IF(A152>$A$8,"",OFFSET(InputPriceData!E$15,CalculationsAndCharts!$A152+$A$11,IF($C$5,8,0),1,1)) -> 25.940001 | G152: =IF(A152>$A$8,"",OFFSET(InputPriceData!F$15,CalculationsAndCharts!$A152+$A$11,IF($C$5,8,0),1,1)) -> 26.360001 | H152: 26.84370531 | K152: 27.07598542 | N152: 0 | Q152: 0.01694887217 | T152: 26.17075574 | BC152: 3019800
A153: 121 | B153: =IF(A153>$A$8,"",OFFSET(InputPriceData!B$15,$A153+$A$11,0,1,1)) -> 2023-08-24 | C153: =IF(A153>$A$8,"",OFFSET(InputPriceData!G$15,CalculationsAndCharts!$A153+$A$11,IF($C$5,8,0),1,1)) -> 3577100 | D153: =IF(A153>$A$8,"",OFFSET(InputPriceData!C$15,CalculationsAndCharts!$A153+$A$11,IF($C$5,8,0),1,1)) -> 25.58 | E153: =IF(A153>$A$8,"",OFFSET(InputPriceData!D$15,CalculationsAndCharts!$A153+$A$11,IF($C$5,8,0),1,1)) -> 26.51 | F153: =IF(A153>$A$8,"",OFFSET(InputPriceData!E$15,CalculationsAndCharts!$A153+$A$11,IF($C$5,8,0),1,1)) -> 25.5 | G153: =IF(A153>$A$8,"",OFFSET(InputPriceData!F$15,CalculationsAndCharts!$A153+$A$11,IF($C$5,8,0),1,1)) -> 26.110001 | H153: 26.9290649 | K153: 27.30008875 | N153: 1.146971918 | Q153: -0.07592638626 | T153: 26.41865097 | BC153: 3577100
A154: 122 | B154: =IF(A154>$A$8,"",OFFSET(InputPriceData!B$15,$A154+$A$11,0,1,1)) -> 2023-08-23 | C154: =IF(A154>$A$8,"",OFFSET(InputPriceData!G$15,CalculationsAndCharts!$A154+$A$11,IF($C$5,8,0),1,1)) -> 5374700 | D154: =IF(A154>$A$8,"",OFFSET(InputPriceData!C$15,CalculationsAndCharts!$A154+$A$11,IF($C$5,8,0),1,1)) -> 26.629999 | E154: =IF(A154>$A$8,"",OFFSET(InputPriceData!D$15,CalculationsAndCharts!$A154+$A$11,IF($C$5,8,0),1,1)) -> 26.690001 | F154: =IF(A154>$A$8,"",OFFSET(InputPriceData!E$15,CalculationsAndCharts!$A154+$A$11,IF($C$5,8,0),1,1)) -> 25.790001 | G154: =IF(A154>$A$8,"",OFFSET(InputPriceData!F$15,CalculationsAndCharts!$A154+$A$11,IF($C$5,8,0),1,1)) -> 25.860001 | H154: 27.07360559 | K154: 27.51830203 | N154: -0.2069723762 | Q154: -0.09068118784 | T154: 26.90697885 | BD154: 5374700
A155: 123 | B155: =IF(A155>$A$8,"",OFFSET(InputPriceData!B$15,$A155+$A$11,0,1,1)) -> 2023-08-22 | C155: =IF(A155>$A$8,"",OFFSET(InputPriceData!G$15,CalculationsAndCharts!$A155+$A$11,IF($C$5,8,0),1,1)) -> 3752500 | D155: =IF(A155>$A$8,"",OFFSET(InputPriceData!C$15,CalculationsAndCharts!$A155+$A$11,IF($C$5,8,0),1,1)) -> 27.790001 | E155: =IF(A155>$A$8,"",OFFSET(InputPriceData!D$15,CalculationsAndCharts!$A155+$A$11,IF($C$5,8,0),1,1)) -> 27.870001 | F155: =IF(A155>$A$8,"",OFFSET(InputPriceData!E$15,CalculationsAndCharts!$A155+$A$11,IF($C$5,8,0),1,1)) -> 26.91 | G155: =IF(A155>$A$8,"",OFFSET(InputPriceData!F$15,CalculationsAndCharts!$A155+$A$11,IF($C$5,8,0),1,1)) -> 26.940001 | H155: 27.2877711 | K155: 27.66964435 | N155: -1.319449761 | Q155: 0.01488718783 | T155: 27.34828909 | BD155: 3752500
A156: 124 | B156: =IF(A156>$A$8,"",OFFSET(InputPriceData!B$15,$A156+$A$11,0,1,1)) -> 2023-08-21 | C156: =IF(A156>$A$8,"",OFFSET(InputPriceData!G$15,CalculationsAndCharts!$A156+$A$11,IF($C$5,8,0),1,1)) -> 3802000 | D156: =IF(A156>$A$8,"",OFFSET(InputPriceData!C$15,CalculationsAndCharts!$A156+$A$11,IF($C$5,8,0),1,1)) -> 27.51 | E156: =IF(A156>$A$8,"",OFFSET(InputPriceData!D$15,CalculationsAndCharts!$A156+$A$11,IF($C$5,8,0),1,1)) -> 27.93 | F156: =IF(A156>$A$8,"",OFFSET(InputPriceData!E$15,CalculationsAndCharts!$A156+$A$11,IF($C$5,8,0),1,1)) -> 27.309999 | G156: =IF(A156>$A$8,"",OFFSET(InputPriceData!F$15,CalculationsAndCharts!$A156+$A$11,IF($C$5,8,0),1,1)) -> 27.780001 | H156: 27.3491423 | K156: 27.74920072 | N156: 1.146972781 | Q156: 0.02223986449 | T156: 27.44181325 | BC156: 3802000
A157: 125 | B157: =IF(A157>$A$8,"",OFFSET(InputPriceData!B$15,$A157+$A$11,0,1,1)) -> 2023-08-18 | C157: =IF(A157>$A$8,"",OFFSET(InputPriceData!G$15,CalculationsAndCharts!$A157+$A$11,IF($C$5,8,0),1,1)) -> 6291500 | D157: =IF(A157>$A$8,"",OFFSET(InputPriceData!C$15,CalculationsAndCharts!$A157+$A$11,IF($C$5,8,0),1,1)) -> 27.35 | E157: =IF(A157>$A$8,"",OFFSET(InputPriceData!D$15,CalculationsAndCharts!$A157+$A$11,IF($C$5,8,0),1,1)) -> 27.52 | F157: =IF(A157>$A$8,"",OFFSET(InputPriceData!E$15,CalculationsAndCharts!$A157+$A$11,IF($C$5,8,0),1,1)) -> 26.5 | G157: =IF(A157>$A$8,"",OFFSET(InputPriceData!F$15,CalculationsAndCharts!$A157+$A$11,IF($C$5,8,0),1,1)) -> 27.09 | H157: 27.27310841 | K157: 27.82529915 | N157: -1.095228824 | Q157: 0.009947843652 | T157: 27.5402382 | BD157: 6291500
A158: 126 | B158: =IF(A158>$A$8,"",OFFSET(InputPriceData!B$15,$A158+$A$11,0,1,1)) -> 2023-08-17 | C158: =IF(A158>$A$8,"",OFFSET(InputPriceData!G$15,CalculationsAndCharts!$A158+$A$11,IF($C$5,8,0),1,1)) -> 5015200 | D158: =IF(A158>$A$8,"",OFFSET(InputPriceData!C$15,CalculationsAndCharts!$A158+$A$11,IF($C$5,8,0),1,1)) -> 27.74 | E158: =IF(A158>$A$8,"",OFFSET(InputPriceData!D$15,CalculationsAndCharts!$A158+$A$11,IF($C$5,8,0),1,1)) -> 28.16 | F158: =IF(A158>$A$8,"",OFFSET(InputPriceData!E$15,CalculationsAndCharts!$A158+$A$11,IF($C$5,8,0),1,1)) -> 27.440001 | G158: =IF(A158>$A$8,"",OFFSET(InputPriceData!F$15,CalculationsAndCharts!$A158+$A$11,IF($C$5,8,0),1,1)) -> 27.73 | H158: 27.30542166 | K158: 27.8958703 | N158: 0.7847693974 | Q158: -0.008521753626 | T158: 27.69318586 | BC158: 5015200
A159: 127 | B159: =IF(A159>$A$8,"",OFFSET(InputPriceData!B$15,$A159+$A$11,0,1,1)) -> 2023-08-16 | C159: =IF(A159>$A$8,"",OFFSET(InputPriceData!G$15,CalculationsAndCharts!$A159+$A$11,IF($C$5,8,0),1,1)) -> 4110000 | D159: =IF(A159>$A$8,"",OFFSET(InputPriceData!C$15,CalculationsAndCharts!$A159+$A$11,IF($C$5,8,0),1,1)) -> 27.35 | E159: =IF(A159>$A$8,"",OFFSET(InputPriceData!D$15,CalculationsAndCharts!$A159+$A$11,IF($C$5,8,0),1,1)) -> 27.58 | F159: =IF(A159>$A$8,"",OFFSET(InputPriceData!E$15,CalculationsAndCharts!$A159+$A$11,IF($C$5,8,0),1,1)) -> 26.85 | G159: =IF(A159>$A$8,"",OFFSET(InputPriceData!F$15,CalculationsAndCharts!$A159+$A$11,IF($C$5,8,0),1,1)) -> 27.1 | H159: 27.23049607 | K159: 27.94604791 | N159: 0.1207347485 | Q159: -0.0765210239 | T159: 27.89429468 | BD159: 4110000
A160: 128 | B160: =IF(A160>$A$8,"",OFFSET(InputPriceData!B$15,$A160+$A$11,0,1,1)) -> 2023-08-15 | C160: =IF(A160>$A$8,"",OFFSET(InputPriceData!G$15,CalculationsAndCharts!$A160+$A$11,IF($C$5,8,0),1,1)) -> 4889900 | D160: =IF(A160>$A$8,"",OFFSET(InputPriceData!C$15,CalculationsAndCharts!$A160+$A$11,IF($C$5,8,0),1,1)) -> 27.370001 | E160: =IF(A160>$A$8,"",OFFSET(InputPriceData!D$15,CalculationsAndCharts!$A160+$A$11,IF($C$5,8,0),1,1)) -> 27.48 | F160: =IF(A160>$A$8,"",OFFSET(InputPriceData!E$15,CalculationsAndCharts!$A160+$A$11,IF($C$5,8,0),1,1)) -> 26.93 | G160: =IF(A160>$A$8,"",OFFSET(InputPriceData!F$15,CalculationsAndCharts!$A160+$A$11,IF($C$5,8,0),1,1)) -> 27.379999 | H160: 27.25352479 | K160: 27.9588602 | N160: -0.3794476316 | Q160: -0.07463381901 | T160: 28.23591933 | BD160: 4889900
A161: 129 | B161: =IF(A161>$A$8,"",OFFSET(InputPriceData!B$15,$A161+$A$11,0,1,1)) -> 2023-08-14 | C161: =IF(A161>$A$8,"",OFFSET(InputPriceData!G$15,CalculationsAndCharts!$A161+$A$11,IF($C$5,8,0),1,1)) -> 3671300 | D161: =IF(A161>$A$8,"",OFFSET(InputPriceData!C$15,CalculationsAndCharts!$A161+$A$11,IF($C$5,8,0),1,1)) -> 27.719999 | E161: =IF(A161>$A$8,"",OFFSET(InputPriceData!D$15,CalculationsAndCharts!$A161+$A$11,IF($C$5,8,0),1,1)) -> 27.91 | F161: =IF(A161>$A$8,"",OFFSET(InputPriceData!E$15,CalculationsAndCharts!$A161+$A$11,IF($C$5,8,0),1,1)) -> 27.459999 | G161: =IF(A161>$A$8,"",OFFSET(InputPriceData!F$15,CalculationsAndCharts!$A161+$A$11,IF($C$5,8,0),1,1)) -> 27.799999 | H161: 27.23120581 | K161: 27.89027002 | N161: 0.129355148 | Q161: -0.08412884894 | T161: 28.4717177 | BC161: 3671300
A162: 130 | B162: =IF(A162>$A$8,"",OFFSET(InputPriceData!B$15,$A162+$A$11,0,1,1)) -> 2023-08-11 | C162: =IF(A162>$A$8,"",OFFSET(InputPriceData!G$15,CalculationsAndCharts!$A162+$A$11,IF($C$5,8,0),1,1)) -> 4116700 | D162: =IF(A162>$A$8,"",OFFSET(InputPriceData!C$15,CalculationsAndCharts!$A162+$A$11,IF($C$5,8,0),1,1)) -> 27.719999 | E162: =IF(A162>$A$8,"",OFFSET(InputPriceData!D$15,CalculationsAndCharts!$A162+$A$11,IF($C$5,8,0),1,1)) -> 28.360001 | F162: =IF(A162>$A$8,"",OFFSET(InputPriceData!E$15,CalculationsAndCharts!$A162+$A$11,IF($C$5,8,0),1,1)) -> 27.67 | G162: =IF(A162>$A$8,"",OFFSET(InputPriceData!F$15,CalculationsAndCharts!$A162+$A$11,IF($C$5,8,0),1,1)) -> 27.780001 | H162: =IF(A162>$H$30,NA(),IF(A162=$H$30,AVERAGE(OFFSET(G162,0,0,$A$17,1)),$D$17*(G162-H163)+H163)) -> 27.13083054 | K162: =IF($A162>$B$30,NA(),IF($A162>$J$30,G162,$J$35*(G162+G163)/2 +$J$36*K163+$J$37*K164)) -> 27.74632383 | N162: =IF($A162>$B$30,NA(),IF($A162>$J$30,0,$M$35*(G162-2*G163+G164)+M165*N163+M166*N164)) -> 0.6554125247 | Q162: =IF($A162>$B$30,NA(),IF($A162>$J$30,N162,$P$35*(N162+N163)/2 +$P$36*Q163+$P$37*Q164)) -> -0.1109482457 | T162: =IF($A162>$B$30,NA(),IF($A162>$J$30,G162,(1-$S$35)*G162+(2*$S$35-$S$36)*G163-($S$35+$S$37)*G164+$S$36*T163+$S$37*T164)) -> 28.63122415 | BA162: =IF(R163,F162*$BA$30,NA()) ->  | BB162: =IF(S163,E162*$BB$30,NA()) ->  | BD162: 4116700
A163: 131 | B163: =IF(A163>$A$8,"",OFFSET(InputPriceData!B$15,$A163+$A$11,0,1,1)) -> 2023-08-10 | C163: =IF(A163>$A$8,"",OFFSET(InputPriceData!G$15,CalculationsAndCharts!$A163+$A$11,IF($C$5,8,0),1,1)) -> 6565200 | D163: =IF(A163>$A$8,"",OFFSET(InputPriceData!C$15,CalculationsAndCharts!$A163+$A$11,IF($C$5,8,0),1,1)) -> 28.75 | E163: =IF(A163>$A$8,"",OFFSET(InputPriceData!D$15,CalculationsAndCharts!$A163+$A$11,IF($C$5,8,0),1,1)) -> 28.959999 | F163: =IF(A163>$A$8,"",OFFSET(InputPriceData!E$15,CalculationsAndCharts!$A163+$A$11,IF($C$5,8,0),1,1)) -> 27.4 | G163: =IF(A163>$A$8,"",OFFSET(InputPriceData!F$15,CalculationsAndCharts!$A163+$A$11,IF($C$5,8,0),1,1)) -> 27.91 | H163: 27.01627104 | K163: 27.52725334 | N163: -1.250456382 | Q163: -0.04072105109 | T163: 28.74892232 | BD163: 6565200
A164: 132 | B164: =IF(A164>$A$8,"",OFFSET(InputPriceData!B$15,$A164+$A$11,0,1,1)) -> 2023-08-09 | C164: =IF(A164>$A$8,"",OFFSET(InputPriceData!G$15,CalculationsAndCharts!$A164+$A$11,IF($C$5,8,0),1,1)) -> 6235900 | D164: =IF(A164>$A$8,"",OFFSET(InputPriceData!C$15,CalculationsAndCharts!$A164+$A$11,IF($C$5,8,0),1,1)) -> 29.5 | E164: =IF(A164>$A$8,"",OFFSET(InputPriceData!D$15,CalculationsAndCharts!$A164+$A$11,IF($C$5,8,0),1,1)) -> 29.620001 | F164: =IF(A164>$A$8,"",OFFSET(InputPriceData!E$15,CalculationsAndCharts!$A164+$A$11,IF($C$5,8,0),1,1)) -> 28.549999 | G164: =IF(A164>$A$8,"",OFFSET(InputPriceData!F$15,CalculationsAndCharts!$A164+$A$11,IF($C$5,8,0),1,1)) -> 28.799999 | H164: 26.85855417 | K164: 27.22481067 | N164: -0.008624711394 | Q164: 0.02568775535 | T164: 28.5672653 | BC164: 6235900
A165: 133 | B165: =IF(A165>$A$8,"",OFFSET(InputPriceData!B$15,$A165+$A$11,0,1,1)) -> 2023-08-08 | C165: =IF(A165>$A$8,"",OFFSET(InputPriceData!G$15,CalculationsAndCharts!$A165+$A$11,IF($C$5,8,0),1,1)) -> 4169200 | D165: =IF(A165>$A$8,"",OFFSET(InputPriceData!C$15,CalculationsAndCharts!$A165+$A$11,IF($C$5,8,0),1,1)) -> 27.049999 | E165: =IF(A165>$A$8,"",OFFSET(InputPriceData!D$15,CalculationsAndCharts!$A165+$A$11,IF($C$5,8,0),1,1)) -> 28.360001 | F165: =IF(A165>$A$8,"",OFFSET(InputPriceData!E$15,CalculationsAndCharts!$A165+$A$11,IF($C$5,8,0),1,1)) -> 26.93 | G165: =IF(A165>$A$8,"",OFFSET(InputPriceData!F$15,CalculationsAndCharts!$A165+$A$11,IF($C$5,8,0),1,1)) -> 28.24 | H165: 26.51594626 | K165: 26.89246567 | N165: 0.3622016584 | Q165: -0.00878409106 | T165: 28.17574381 | BC165: 4169200
A166: 134 | B166: =IF(A166>$A$8,"",OFFSET(InputPriceData!B$15,$A166+$A$11,0,1,1)) -> 2023-08-07 | C166: =IF(A166>$A$8,"",OFFSET(InputPriceData!G$15,CalculationsAndCharts!$A166+$A$11,IF($C$5,8,0),1,1)) -> 4479300 | D166: =IF(A166>$A$8,"",OFFSET(InputPriceData!C$15,CalculationsAndCharts!$A166+$A$11,IF($C$5,8,0),1,1)) -> 27.85 | E166: =IF(A166>$A$8,"",OFFSET(InputPriceData!D$15,CalculationsAndCharts!$A166+$A$11,IF($C$5,8,0),1,1)) -> 28.110001 | F166: =IF(A166>$A$8,"",OFFSET(InputPriceData!E$15,CalculationsAndCharts!$A166+$A$11,IF($C$5,8,0),1,1)) -> 27.48 | G166: =IF(A166>$A$8,"",OFFSET(InputPriceData!F$15,CalculationsAndCharts!$A166+$A$11,IF($C$5,8,0),1,1)) -> 27.67 | H166: 26.21170148 | K166: 26.57477071 | N166: 0.1638522688 | Q166: -0.02734301691 | T166: 27.88885291 | BC166: 4479300
A167: 135 | B167: =IF(A167>$A$8,"",OFFSET(InputPriceData!B$15,$A167+$A$11,0,1,1)) -> 2023-08-04 | C167: =IF(A167>$A$8,"",OFFSET(InputPriceData!G$15,CalculationsAndCharts!$A167+$A$11,IF($C$5,8,0),1,1)) -> 4993400 | D167: =IF(A167>$A$8,"",OFFSET(InputPriceData!C$15,CalculationsAndCharts!$A167+$A$11,IF($C$5,8,0),1,1)) -> 27.700001 | E167: =IF(A167>$A$8,"",OFFSET(InputPriceData!D$15,CalculationsAndCharts!$A167+$A$11,IF($C$5,8,0),1,1)) -> 28.299999 | F167: =IF(A167>$A$8,"",OFFSET(InputPriceData!E$15,CalculationsAndCharts!$A167+$A$11,IF($C$5,8,0),1,1)) -> 27.290001 | G167: =IF(A167>$A$8,"",OFFSET(InputPriceData!F$15,CalculationsAndCharts!$A167+$A$11,IF($C$5,8,0),1,1)) -> 27.52 | H167: 25.95435468 | K167: 26.24944975 | N167: -1.19871415 | Q167: 0.007589138247 | T167: 27.62882269 | BD167: 4993400
A168: 136 | B168: =IF(A168>$A$8,"",OFFSET(InputPriceData!B$15,$A168+$A$11,0,1,1)) -> 2023-08-03 | C168: =IF(A168>$A$8,"",OFFSET(InputPriceData!G$15,CalculationsAndCharts!$A168+$A$11,IF($C$5,8,0),1,1)) -> 5447600 | D168: =IF(A168>$A$8,"",OFFSET(InputPriceData!C$15,CalculationsAndCharts!$A168+$A$11,IF($C$5,8,0),1,1)) -> 26.57 | E168: =IF(A168>$A$8,"",OFFSET(InputPriceData!D$15,CalculationsAndCharts!$A168+$A$11,IF($C$5,8,0),1,1)) -> 27.77 | F168: =IF(A168>$A$8,"",OFFSET(InputPriceData!E$15,CalculationsAndCharts!$A168+$A$11,IF($C$5,8,0),1,1)) -> 26.440001 | G168: =IF(A168>$A$8,"",OFFSET(InputPriceData!F$15,CalculationsAndCharts!$A168+$A$11,IF($C$5,8,0),1,1)) -> 27.559999 | H168: 25.67806433 | K168: 25.90796506 | N168: 1.948991601 | Q168: -0.05308463234 | T168: 27.24656917 | BC168: 5447600
A169: 137 | B169: =IF(A169>$A$8,"",OFFSET(InputPriceData!B$15,$A169+$A$11,0,1,1)) -> 2023-08-02 | C169: =IF(A169>$A$8,"",OFFSET(InputPriceData!G$15,CalculationsAndCharts!$A169+$A$11,IF($C$5,8,0),1,1)) -> 5460500 | D169: =IF(A169>$A$8,"",OFFSET(InputPriceData!C$15,CalculationsAndCharts!$A169+$A$11,IF($C$5,8,0),1,1)) -> 26.719999 | E169: =IF(A169>$A$8,"",OFFSET(InputPriceData!D$15,CalculationsAndCharts!$A169+$A$11,IF($C$5,8,0),1,1)) -> 26.780001 | F169: =IF(A169>$A$8,"",OFFSET(InputPriceData!E$15,CalculationsAndCharts!$A169+$A$11,IF($C$5,8,0),1,1)) -> 26.08 | G169: =IF(A169>$A$8,"",OFFSET(InputPriceData!F$15,CalculationsAndCharts!$A169+$A$11,IF($C$5,8,0),1,1)) -> 26.209999 | H169: 25.34595821 | K169: 25.57657333 | N169: -1.10385526 | Q169: -0.06178641105 | T169: 27.01265852 | BD169: 5460500
A170: 138 | B170: =IF(A170>$A$8,"",OFFSET(InputPriceData!B$15,$A170+$A$11,0,1,1)) -> 2023-08-01 | C170: =IF(A170>$A$8,"",OFFSET(InputPriceData!G$15,CalculationsAndCharts!$A170+$A$11,IF($C$5,8,0),1,1)) -> 6691000 | D170: =IF(A170>$A$8,"",OFFSET(InputPriceData!C$15,CalculationsAndCharts!$A170+$A$11,IF($C$5,8,0),1,1)) -> 26.360001 | E170: =IF(A170>$A$8,"",OFFSET(InputPriceData!D$15,CalculationsAndCharts!$A170+$A$11,IF($C$5,8,0),1,1)) -> 27.280001 | F170: =IF(A170>$A$8,"",OFFSET(InputPriceData!E$15,CalculationsAndCharts!$A170+$A$11,IF($C$5,8,0),1,1)) -> 26.16 | G170: =IF(A170>$A$8,"",OFFSET(InputPriceData!F$15,CalculationsAndCharts!$A170+$A$11,IF($C$5,8,0),1,1)) -> 27.120001 | H170: 25.19348043 | K170: 25.22104866 | N170: 0.2587163326 | Q170: 0.03672363822 | T170: 26.74168639 | BC170: 6691000
A171: 139 | B171: =IF(A171>$A$8,"",OFFSET(InputPriceData!B$15,$A171+$A$11,0,1,1)) -> 2023-07-31 | C171: =IF(A171>$A$8,"",OFFSET(InputPriceData!G$15,CalculationsAndCharts!$A171+$A$11,IF($C$5,8,0),1,1)) -> 6340000 | D171: =IF(A171>$A$8,"",OFFSET(InputPriceData!C$15,CalculationsAndCharts!$A171+$A$11,IF($C$5,8,0),1,1)) -> 26.719999 | E171: =IF(A171>$A$8,"",OFFSET(InputPriceData!D$15,CalculationsAndCharts!$A171+$A$11,IF($C$5,8,0),1,1)) -> 26.940001 | F171: =IF(A171>$A$8,"",OFFSET(InputPriceData!E$15,CalculationsAndCharts!$A171+$A$11,IF($C$5,8,0),1,1)) -> 26.35 | G171: =IF(A171>$A$8,"",OFFSET(InputPriceData!F$15,CalculationsAndCharts!$A171+$A$11,IF($C$5,8,0),1,1)) -> 26.75 | H171: 24.85350621 | K171: 24.84459174 | N171: -1.04348573 | Q171: 0.1065100388 | T171: 26.17534653 | BC171: 6340000
A172: 140 | B172: =IF(A172>$A$8,"",OFFSET(InputPriceData!B$15,$A172+$A$11,0,1,1)) -> 2023-07-28 | C172: =IF(A172>$A$8,"",OFFSET(InputPriceData!G$15,CalculationsAndCharts!$A172+$A$11,IF($C$5,8,0),1,1)) -> 6691200 | D172: =IF(A172>$A$8,"",OFFSET(InputPriceData!C$15,CalculationsAndCharts!$A172+$A$11,IF($C$5,8,0),1,1)) -> 25.959999 | E172: =IF(A172>$A$8,"",OFFSET(InputPriceData!D$15,CalculationsAndCharts!$A172+$A$11,IF($C$5,8,0),1,1)) -> 27.049999 | F172: =IF(A172>$A$8,"",OFFSET(InputPriceData!E$15,CalculationsAndCharts!$A172+$A$11,IF($C$5,8,0),1,1)) -> 25.790001 | G172: =IF(A172>$A$8,"",OFFSET(InputPriceData!F$15,CalculationsAndCharts!$A172+$A$11,IF($C$5,8,0),1,1)) -> 26.68 | H172: 24.51883083 | K172: 24.51514322 | N172: 0.3535786717 | Q172: 0.1150195018 | T172: 25.49534916 | BC172: 6691200
A173: 141 | B173: =IF(A173>$A$8,"",OFFSET(InputPriceData!B$15,$A173+$A$11,0,1,1)) -> 2023-07-27 | C173: =IF(A173>$A$8,"",OFFSET(InputPriceData!G$15,CalculationsAndCharts!$A173+$A$11,IF($C$5,8,0),1,1)) -> 11082800 | D173: =IF(A173>$A$8,"",OFFSET(InputPriceData!C$15,CalculationsAndCharts!$A173+$A$11,IF($C$5,8,0),1,1)) -> 25.379999 | E173: =IF(A173>$A$8,"",OFFSET(InputPriceData!D$15,CalculationsAndCharts!$A173+$A$11,IF($C$5,8,0),1,1)) -> 26.15 | F173: =IF(A173>$A$8,"",OFFSET(InputPriceData!E$15,CalculationsAndCharts!$A173+$A$11,IF($C$5,8,0),1,1)) -> 24.9 | G173: =IF(A173>$A$8,"",OFFSET(InputPriceData!F$15,CalculationsAndCharts!$A173+$A$11,IF($C$5,8,0),1,1)) -> 25.4 | H173: 24.13744804 | K173: 24.27247839 | N173: 0.707153894 | Q173: 0.02191256135 | T173: 24.9212433 | BC173: =IF(G173>=G174,C173,NA()) -> 11082800 | BD173: =IF(G173<G174,C173,NA()) -> 
A174: 142 | B174: =IF(A174>$A$8,"",OFFSET(InputPriceData!B$15,$A174+$A$11,0,1,1)) -> 2023-07-26 | C174: =IF(A174>$A$8,"",OFFSET(InputPriceData!G$15,CalculationsAndCharts!$A174+$A$11,IF($C$5,8,0),1,1)) -> 6838400 | D174: =IF(A174>$A$8,"",OFFSET(InputPriceData!C$15,CalculationsAndCharts!$A174+$A$11,IF($C$5,8,0),1,1)) -> 24.09 | E174: =IF(A174>$A$8,"",OFFSET(InputPriceData!D$15,CalculationsAndCharts!$A174+$A$11,IF($C$5,8,0),1,1)) -> 24.65 | F174: =IF(A174>$A$8,"",OFFSET(InputPriceData!E$15,CalculationsAndCharts!$A174+$A$11,IF($C$5,8,0),1,1)) -> 23.82 | G174: =IF(A174>$A$8,"",OFFSET(InputPriceData!F$15,CalculationsAndCharts!$A174+$A$11,IF($C$5,8,0),1,1)) -> 24.530001 | H174: 23.91464475 | K174: 24.1118668 | N174: -0.008622986624 | Q174: -0.02650885926 | T174: 24.69888908 | BC174: 6838400
A175: 143 | B175: =IF(A175>$A$8,"",OFFSET(InputPriceData!B$15,$A175+$A$11,0,1,1)) -> 2023-07-25 | C175: =IF(A175>$A$8,"",OFFSET(InputPriceData!G$15,CalculationsAndCharts!$A175+$A$11,IF($C$5,8,0),1,1)) -> 4690200 | D175: =IF(A175>$A$8,"",OFFSET(InputPriceData!C$15,CalculationsAndCharts!$A175+$A$11,IF($C$5,8,0),1,1)) -> 24.4 | E175: =IF(A175>$A$8,"",OFFSET(InputPriceData!D$15,CalculationsAndCharts!$A175+$A$11,IF($C$5,8,0),1,1)) -> 24.82 | F175: =IF(A175>$A$8,"",OFFSET(InputPriceData!E$15,CalculationsAndCharts!$A175+$A$11,IF($C$5,8,0),1,1)) -> 24.120001 | G175: =IF(A175>$A$8,"",OFFSET(InputPriceData!F$15,CalculationsAndCharts!$A175+$A$11,IF($C$5,8,0),1,1)) -> 24.48 | H175: 23.80605247 | K175: 23.96654053 | N175: -0.1034861881 | Q175: -0.02542784876 | T175: 24.61389328 | BC175: 4690200
A176: 144 | B176: =IF(A176>$A$8,"",OFFSET(InputPriceData!B$15,$A176+$A$11,0,1,1)) -> 2023-07-24 | C176: =IF(A176>$A$8,"",OFFSET(InputPriceData!G$15,CalculationsAndCharts!$A176+$A$11,IF($C$5,8,0),1,1)) -> 5083800 | D176: =IF(A176>$A$8,"",OFFSET(InputPriceData!C$15,CalculationsAndCharts!$A176+$A$11,IF($C$5,8,0),1,1)) -> 24.299999 | E176: =IF(A176>$A$8,"",OFFSET(InputPriceData!D$15,CalculationsAndCharts!$A176+$A$11,IF($C$5,8,0),1,1)) -> 24.75 | F176: =IF(A176>$A$8,"",OFFSET(InputPriceData!E$15,CalculationsAndCharts!$A176+$A$11,IF($C$5,8,0),1,1)) -> 24.24 | G176: =IF(A176>$A$8,"",OFFSET(InputPriceData!F$15,CalculationsAndCharts!$A176+$A$11,IF($C$5,8,0),1,1)) -> 24.42 | H176: 23.68712056 | K176: 23.80627854 | N176: 0.6122932796 | Q176: -0.03069712342 | T176: 24.49531742 | BC176: 5083800
A177: 145 | B177: =IF(A177>$A$8,"",OFFSET(InputPriceData!B$15,$A177+$A$11,0,1,1)) -> 2023-07-21 | C177: =IF(A177>$A$8,"",OFFSET(InputPriceData!G$15,CalculationsAndCharts!$A177+$A$11,IF($C$5,8,0),1,1)) -> 4938400 | D177: =IF(A177>$A$8,"",OFFSET(InputPriceData!C$15,CalculationsAndCharts!$A177+$A$11,IF($C$5,8,0),1,1)) -> 24.77 | E177: =IF(A177>$A$8,"",OFFSET(InputPriceData!D$15,CalculationsAndCharts!$A177+$A$11,IF($C$5,8,0),1,1)) -> 24.889999 | F177: =IF(A177>$A$8,"",OFFSET(InputPriceData!E$15,CalculationsAndCharts!$A177+$A$11,IF($C$5,8,0),1,1)) -> 24.17 | G177: =IF(A177>$A$8,"",OFFSET(InputPriceData!F$15,CalculationsAndCharts!$A177+$A$11,IF($C$5,8,0),1,1)) -> 24.24 | H177: 23.55778889 | K177: 23.63569653 | N177: -1.112476522 | Q177: 0.02702161445 | T177: 24.36456228 | BD177: 4938400
A178: 146 | B178: =IF(A178>$A$8,"",OFFSET(InputPriceData!B$15,$A178+$A$11,0,1,1)) -> 2023-07-20 | C178: =IF(A178>$A$8,"",OFFSET(InputPriceData!G$15,CalculationsAndCharts!$A178+$A$11,IF($C$5,8,0),1,1)) -> 4861600 | D178: =IF(A178>$A$8,"",OFFSET(InputPriceData!C$15,CalculationsAndCharts!$A178+$A$11,IF($C$5,8,0),1,1)) -> 24.42 | E178: =IF(A178>$A$8,"",OFFSET(InputPriceData!D$15,CalculationsAndCharts!$A178+$A$11,IF($C$5,8,0),1,1)) -> 24.82 | F178: =IF(A178>$A$8,"",OFFSET(InputPriceData!E$15,CalculationsAndCharts!$A178+$A$11,IF($C$5,8,0),1,1)) -> 24.26 | G178: =IF(A178>$A$8,"",OFFSET(InputPriceData!F$15,CalculationsAndCharts!$A178+$A$11,IF($C$5,8,0),1,1)) -> 24.77 | H178: 23.43739869 | K178: 23.45525476 | N178: 0.7933941088 | Q178: 0.0660224296 | T178: 24.06932825 | BC178: 4861600
A179: 147 | B179: =IF(A179>$A$8,"",OFFSET(InputPriceData!B$15,$A179+$A$11,0,1,1)) -> 2023-07-19 | C179: =IF(A179>$A$8,"",OFFSET(InputPriceData!G$15,CalculationsAndCharts!$A179+$A$11,IF($C$5,8,0),1,1)) -> 4903900 | D179: =IF(A179>$A$8,"",OFFSET(InputPriceData!C$15,CalculationsAndCharts!$A179+$A$11,IF($C$5,8,0),1,1)) -> 24.34 | E179: =IF(A179>$A$8,"",OFFSET(InputPriceData!D$15,CalculationsAndCharts!$A179+$A$11,IF($C$5,8,0),1,1)) -> 24.719999 | F179: =IF(A179>$A$8,"",OFFSET(InputPriceData!E$15,CalculationsAndCharts!$A179+$A$11,IF($C$5,8,0),1,1)) -> 23.950001 | G179: =IF(A179>$A$8,"",OFFSET(InputPriceData!F$15,CalculationsAndCharts!$A179+$A$11,IF($C$5,8,0),1,1)) -> 24.01 | H179: 23.20223376 | K179: 23.30323156 | N179: -1.293577351 | Q179: 0.08333769371 | T179: 23.71988698 | BD179: 4903900
A180: 148 | B180: =IF(A180>$A$8,"",OFFSET(InputPriceData!B$15,$A180+$A$11,0,1,1)) -> 2023-07-18 | C180: =IF(A180>$A$8,"",OFFSET(InputPriceData!G$15,CalculationsAndCharts!$A180+$A$11,IF($C$5,8,0),1,1)) -> 6066700 | D180: =IF(A180>$A$8,"",OFFSET(InputPriceData!C$15,CalculationsAndCharts!$A180+$A$11,IF($C$5,8,0),1,1)) -> 22.950001 | E180: =IF(A180>$A$8,"",OFFSET(InputPriceData!D$15,CalculationsAndCharts!$A180+$A$11,IF($C$5,8,0),1,1)) -> 24.370001 | F180: =IF(A180>$A$8,"",OFFSET(InputPriceData!E$15,CalculationsAndCharts!$A180+$A$11,IF($C$5,8,0),1,1)) -> 22.73 | G180: =IF(A180>$A$8,"",OFFSET(InputPriceData!F$15,CalculationsAndCharts!$A180+$A$11,IF($C$5,8,0),1,1)) -> 24.17 | H180: 23.05968677 | K180: 23.20008219 | N180: 0.948623391 | Q180: 0.03600049048 | T180: 23.40687558 | BC180: 6066700
A181: 149 | B181: =IF(A181>$A$8,"",OFFSET(InputPriceData!B$15,$A181+$A$11,0,1,1)) -> 2023-07-17 | C181: =IF(A181>$A$8,"",OFFSET(InputPriceData!G$15,CalculationsAndCharts!$A181+$A$11,IF($C$5,8,0),1,1)) -> 3847900 | D181: =IF(A181>$A$8,"",OFFSET(InputPriceData!C$15,CalculationsAndCharts!$A181+$A$11,IF($C$5,8,0),1,1)) -> 22.459999 | E181: =IF(A181>$A$8,"",OFFSET(InputPriceData!D$15,CalculationsAndCharts!$A181+$A$11,IF($C$5,8,0),1,1)) -> 22.950001 | F181: =IF(A181>$A$8,"",OFFSET(InputPriceData!E$15,CalculationsAndCharts!$A181+$A$11,IF($C$5,8,0),1,1)) -> 22.209999 | G181: =IF(A181>$A$8,"",OFFSET(InputPriceData!F$15,CalculationsAndCharts!$A181+$A$11,IF($C$5,8,0),1,1)) -> 22.83 | H181: 22.86374914 | K181: 23.14888736 | N181: 1.026238894 | Q181: -0.09876471601 | T181: 23.29659624 | BC181: 3847900
A182: 150 | B182: =IF(A182>$A$8,"",OFFSET(InputPriceData!B$15,$A182+$A$11,0,1,1)) -> 2023-07-14 | C182: =IF(A182>$A$8,"",OFFSET(InputPriceData!G$15,CalculationsAndCharts!$A182+$A$11,IF($C$5,8,0),1,1)) -> 4180900 | D182: =IF(A182>$A$8,"",OFFSET(InputPriceData!C$15,CalculationsAndCharts!$A182+$A$11,IF($C$5,8,0),1,1)) -> 23.379999 | E182: =IF(A182>$A$8,"",OFFSET(InputPriceData!D$15,CalculationsAndCharts!$A182+$A$11,IF($C$5,8,0),1,1)) -> 23.440001 | F182: =IF(A182>$A$8,"",OFFSET(InputPriceData!E$15,CalculationsAndCharts!$A182+$A$11,IF($C$5,8,0),1,1)) -> 22.51 | G182: =IF(A182>$A$8,"",OFFSET(InputPriceData!F$15,CalculationsAndCharts!$A182+$A$11,IF($C$5,8,0),1,1)) -> 22.59 | H182: 22.86970487 | K182: 23.11231978 | N182: -0.5519280613 | Q182: -0.08623858851 | T182: 23.54286169 | BD182: 4180900
A183: 151 | B183: =IF(A183>$A$8,"",OFFSET(InputPriceData!B$15,$A183+$A$11,0,1,1)) -> 2023-07-13 | C183: =IF(A183>$A$8,"",OFFSET(InputPriceData!G$15,CalculationsAndCharts!$A183+$A$11,IF($C$5,8,0),1,1)) -> 5250800 | D183: =IF(A183>$A$8,"",OFFSET(InputPriceData!C$15,CalculationsAndCharts!$A183+$A$11,IF($C$5,8,0),1,1)) -> 23.969999 | E183: =IF(A183>$A$8,"",OFFSET(InputPriceData!D$15,CalculationsAndCharts!$A183+$A$11,IF($C$5,8,0),1,1)) -> 24.469999 | F183: =IF(A183>$A$8,"",OFFSET(InputPriceData!E$15,CalculationsAndCharts!$A183+$A$11,IF($C$5,8,0),1,1)) -> 23.51 | G183: =IF(A183>$A$8,"",OFFSET(InputPriceData!F$15,CalculationsAndCharts!$A183+$A$11,IF($C$5,8,0),1,1)) -> 23.540001 | H183: 22.91906456 | K183: 23.00573261 | N183: -0.3190806886 | Q183: 0.01268878474 | T183: 23.64756979 | BD183: 5250800
A184: 152 | B184: =IF(A184>$A$8,"",OFFSET(InputPriceData!B$15,$A184+$A$11,0,1,1)) -> 2023-07-12 | C184: =IF(A184>$A$8,"",OFFSET(InputPriceData!G$15,CalculationsAndCharts!$A184+$A$11,IF($C$5,8,0),1,1)) -> 4441900 | D184: =IF(A184>$A$8,"",OFFSET(InputPriceData!C$15,CalculationsAndCharts!$A184+$A$11,IF($C$5,8,0),1,1)) -> 23.76 | E184: =IF(A184>$A$8,"",OFFSET(InputPriceData!D$15,CalculationsAndCharts!$A184+$A$11,IF($C$5,8,0),1,1)) -> 24.129999 | F184: =IF(A184>$A$8,"",OFFSET(InputPriceData!E$15,CalculationsAndCharts!$A184+$A$11,IF($C$5,8,0),1,1)) -> 23.66 | G184: =IF(A184>$A$8,"",OFFSET(InputPriceData!F$15,CalculationsAndCharts!$A184+$A$11,IF($C$5,8,0),1,1)) -> 23.85 | H184: 22.80948754 | K184: 22.84683608 | N184: -0.6554151118 | Q184: 0.08584788969 | T184: 23.4255292 | BC184: 4441900
A185: 153 | B185: =IF(A185>$A$8,"",OFFSET(InputPriceData!B$15,$A185+$A$11,0,1,1)) -> 2023-07-11 | C185: =IF(A185>$A$8,"",OFFSET(InputPriceData!G$15,CalculationsAndCharts!$A185+$A$11,IF($C$5,8,0),1,1)) -> 5382600 | D185: =IF(A185>$A$8,"",OFFSET(InputPriceData!C$15,CalculationsAndCharts!$A185+$A$11,IF($C$5,8,0),1,1)) -> 23.190001 | E185: =IF(A185>$A$8,"",OFFSET(InputPriceData!D$15,CalculationsAndCharts!$A185+$A$11,IF($C$5,8,0),1,1)) -> 24.07 | F185: =IF(A185>$A$8,"",OFFSET(InputPriceData!E$15,CalculationsAndCharts!$A185+$A$11,IF($C$5,8,0),1,1)) -> 22.92 | G185: =IF(A185>$A$8,"",OFFSET(InputPriceData!F$15,CalculationsAndCharts!$A185+$A$11,IF($C$5,8,0),1,1)) -> 23.790001 | H185: 22.62586769 | K185: 22.70357183 | N185: 0.2587189198 | Q185: 0.08295395315 | T185: 23.05029846 | BC185: 5382600
A186: 154 | B186: =IF(A186>$A$8,"",OFFSET(InputPriceData!B$15,$A186+$A$11,0,1,1)) -> 2023-07-10 | C186: =IF(A186>$A$8,"",OFFSET(InputPriceData!G$15,CalculationsAndCharts!$A186+$A$11,IF($C$5,8,0),1,1)) -> 5164700 | D186: =IF(A186>$A$8,"",OFFSET(InputPriceData!C$15,CalculationsAndCharts!$A186+$A$11,IF($C$5,8,0),1,1)) -> 22.34 | E186: =IF(A186>$A$8,"",OFFSET(InputPriceData!D$15,CalculationsAndCharts!$A186+$A$11,IF($C$5,8,0),1,1)) -> 22.99 | F186: =IF(A186>$A$8,"",OFFSET(InputPriceData!E$15,CalculationsAndCharts!$A186+$A$11,IF($C$5,8,0),1,1)) -> 22.280001 | G186: =IF(A186>$A$8,"",OFFSET(InputPriceData!F$15,CalculationsAndCharts!$A186+$A$11,IF($C$5,8,0),1,1)) -> 22.969999 | H186: 22.4204324 | K186: 22.61773439 | N186: -0.02587413418 | Q186: 0.01137102445 | T186: 22.77901847 | BC186: 5164700
A187: 155 | B187: =IF(A187>$A$8,"",OFFSET(InputPriceData!B$15,$A187+$A$11,0,1,1)) -> 2023-07-07 | C187: =IF(A187>$A$8,"",OFFSET(InputPriceData!G$15,CalculationsAndCharts!$A187+$A$11,IF($C$5,8,0),1,1)) -> 6667900 | D187: =IF(A187>$A$8,"",OFFSET(InputPriceData!C$15,CalculationsAndCharts!$A187+$A$11,IF($C$5,8,0),1,1)) -> 21.77 | E187: =IF(A187>$A$8,"",OFFSET(InputPriceData!D$15,CalculationsAndCharts!$A187+$A$11,IF($C$5,8,0),1,1)) -> 22.99 | F187: =IF(A187>$A$8,"",OFFSET(InputPriceData!E$15,CalculationsAndCharts!$A187+$A$11,IF($C$5,8,0),1,1)) -> 21.77 | G187: =IF(A187>$A$8,"",OFFSET(InputPriceData!F$15,CalculationsAndCharts!$A187+$A$11,IF($C$5,8,0),1,1)) -> 22.450001 | H187: 22.32345006 | K187: 22.57780608 | N187: 1.379817566 | Q187: -0.09328206641 | T187: 22.7635031 | BC187: 6667900
A188: 156 | B188: =IF(A188>$A$8,"",OFFSET(InputPriceData!B$15,$A188+$A$11,0,1,1)) -> 2023-07-06 | C188: =IF(A188>$A$8,"",OFFSET(InputPriceData!G$15,CalculationsAndCharts!$A188+$A$11,IF($C$5,8,0),1,1)) -> 4729800 | D188: =IF(A188>$A$8,"",OFFSET(InputPriceData!C$15,CalculationsAndCharts!$A188+$A$11,IF($C$5,8,0),1,1)) -> 22.65 | E188: =IF(A188>$A$8,"",OFFSET(InputPriceData!D$15,CalculationsAndCharts!$A188+$A$11,IF($C$5,8,0),1,1)) -> 22.85 | F188: =IF(A188>$A$8,"",OFFSET(InputPriceData!E$15,CalculationsAndCharts!$A188+$A$11,IF($C$5,8,0),1,1)) -> 21.5 | G188: =IF(A188>$A$8,"",OFFSET(InputPriceData!F$15,CalculationsAndCharts!$A188+$A$11,IF($C$5,8,0),1,1)) -> 21.9 | H188: 22.30111754 | K188: 22.53183396 | N188: -0.7588995752 | Q188: -0.1008300518 | T188: 22.99897256 | BD188: 4729800
A189: 157 | B189: =IF(A189>$A$8,"",OFFSET(InputPriceData!B$15,$A189+$A$11,0,1,1)) -> 2023-07-05 | C189: =IF(A189>$A$8,"",OFFSET(InputPriceData!G$15,CalculationsAndCharts!$A189+$A$11,IF($C$5,8,0),1,1)) -> 3586000 | D189: =IF(A189>$A$8,"",OFFSET(InputPriceData!C$15,CalculationsAndCharts!$A189+$A$11,IF($C$5,8,0),1,1)) -> 23.299999 | E189: =IF(A189>$A$8,"",OFFSET(InputPriceData!D$15,CalculationsAndCharts!$A189+$A$11,IF($C$5,8,0),1,1)) -> 23.360001 | F189: =IF(A189>$A$8,"",OFFSET(InputPriceData!E$15,CalculationsAndCharts!$A189+$A$11,IF($C$5,8,0),1,1)) -> 22.91 | G189: =IF(A189>$A$8,"",OFFSET(InputPriceData!F$15,CalculationsAndCharts!$A189+$A$11,IF($C$5,8,0),1,1)) -> 22.950001 | H189: 22.37190299 | K189: 22.41618672 | N189: -0.2242200742 | Q189: -0.01746765365 | T189: 23.14019779 | BD189: 3586000
A190: 158 | B190: =IF(A190>$A$8,"",OFFSET(InputPriceData!B$15,$A190+$A$11,0,1,1)) -> 2023-07-03 | C190: =IF(A190>$A$8,"",OFFSET(InputPriceData!G$15,CalculationsAndCharts!$A190+$A$11,IF($C$5,8,0),1,1)) -> 2384200 | D190: =IF(A190>$A$8,"",OFFSET(InputPriceData!C$15,CalculationsAndCharts!$A190+$A$11,IF($C$5,8,0),1,1)) -> 22.92 | E190: =IF(A190>$A$8,"",OFFSET(InputPriceData!D$15,CalculationsAndCharts!$A190+$A$11,IF($C$5,8,0),1,1)) -> 23.41 | F190: =IF(A190>$A$8,"",OFFSET(InputPriceData!E$15,CalculationsAndCharts!$A190+$A$11,IF($C$5,8,0),1,1)) -> 22.85 | G190: =IF(A190>$A$8,"",OFFSET(InputPriceData!F$15,CalculationsAndCharts!$A190+$A$11,IF($C$5,8,0),1,1)) -> 23.120001 | H190: 22.2698857 | K190: 22.23694681 | N190: -0.06036694306 | Q190: 0.0214391546 | T190: 22.96871002 | BC190: 2384200
A191: 159 | B191: =IF(A191>$A$8,"",OFFSET(InputPriceData!B$15,$A191+$A$11,0,1,1)) -> 2023-06-30 | C191: =IF(A191>$A$8,"",OFFSET(InputPriceData!G$15,CalculationsAndCharts!$A191+$A$11,IF($C$5,8,0),1,1)) -> 5054800 | D191: =IF(A191>$A$8,"",OFFSET(InputPriceData!C$15,CalculationsAndCharts!$A191+$A$11,IF($C$5,8,0),1,1)) -> 23.01 | E191: =IF(A191>$A$8,"",OFFSET(InputPriceData!D$15,CalculationsAndCharts!$A191+$A$11,IF($C$5,8,0),1,1)) -> 23.34 | F191: =IF(A191>$A$8,"",OFFSET(InputPriceData!E$15,CalculationsAndCharts!$A191+$A$11,IF($C$5,8,0),1,1)) -> 22.58 | G191: =IF(A191>$A$8,"",OFFSET(InputPriceData!F$15,CalculationsAndCharts!$A191+$A$11,IF($C$5,8,0),1,1)) -> 23.030001 | H191: 22.11986535 | K191: 22.05578773 | N191: -0.5088070915 | Q191: 0.05316842423 | T191: 22.68957406 | BC191: 5054800
A192: 160 | B192: =IF(A192>$A$8,"",OFFSET(InputPriceData!B$15,$A192+$A$11,0,1,1)) -> 2023-06-29 | C192: =IF(A192>$A$8,"",OFFSET(InputPriceData!G$15,CalculationsAndCharts!$A192+$A$11,IF($C$5,8,0),1,1)) -> 5341400 | D192: =IF(A192>$A$8,"",OFFSET(InputPriceData!C$15,CalculationsAndCharts!$A192+$A$11,IF($C$5,8,0),1,1)) -> 22.23 | E192: =IF(A192>$A$8,"",OFFSET(InputPriceData!D$15,CalculationsAndCharts!$A192+$A$11,IF($C$5,8,0),1,1)) -> 22.91 | F192: =IF(A192>$A$8,"",OFFSET(InputPriceData!E$15,CalculationsAndCharts!$A192+$A$11,IF($C$5,8,0),1,1)) -> 21.99 | G192: =IF(A192>$A$8,"",OFFSET(InputPriceData!F$15,CalculationsAndCharts!$A192+$A$11,IF($C$5,8,0),1,1)) -> 22.870001 | H192: 21.95925318 | K192: 21.89888432 | N192: 0.8278886425 | Q192: 0.03087325272 | T192: 22.36402034 | BC192: 5341400
A193: 161 | B193: =IF(A193>$A$8,"",OFFSET(InputPriceData!B$15,$A193+$A$11,0,1,1)) -> 2023-06-28 | C193: =IF(A193>$A$8,"",OFFSET(InputPriceData!G$15,CalculationsAndCharts!$A193+$A$11,IF($C$5,8,0),1,1)) -> 5438400 | D193: =IF(A193>$A$8,"",OFFSET(InputPriceData!C$15,CalculationsAndCharts!$A193+$A$11,IF($C$5,8,0),1,1)) -> 22.620001 | E193: =IF(A193>$A$8,"",OFFSET(InputPriceData!D$15,CalculationsAndCharts!$A193+$A$11,IF($C$5,8,0),1,1)) -> 22.620001 | F193: =IF(A193>$A$8,"",OFFSET(InputPriceData!E$15,CalculationsAndCharts!$A193+$A$11,IF($C$5,8,0),1,1)) -> 21.870001 | G193: =IF(A193>$A$8,"",OFFSET(InputPriceData!F$15,CalculationsAndCharts!$A193+$A$11,IF($C$5,8,0),1,1)) -> 22.120001 | H193: 21.79853297 | K193: 21.78373285 | N193: -0.379448494 | Q193: 0.02090925597 | T193: 22.15502968 | BD193: 5438400
A194: 162 | B194: =IF(A194>$A$8,"",OFFSET(InputPriceData!B$15,$A194+$A$11,0,1,1)) -> 2023-06-27 | C194: =IF(A194>$A$8,"",OFFSET(InputPriceData!G$15,CalculationsAndCharts!$A194+$A$11,IF($C$5,8,0),1,1)) -> 9554900 | D194: =IF(A194>$A$8,"",OFFSET(InputPriceData!C$15,CalculationsAndCharts!$A194+$A$11,IF($C$5,8,0),1,1)) -> 21.629999 | E194: =IF(A194>$A$8,"",OFFSET(InputPriceData!D$15,CalculationsAndCharts!$A194+$A$11,IF($C$5,8,0),1,1)) -> 22.360001 | F194: =IF(A194>$A$8,"",OFFSET(InputPriceData!E$15,CalculationsAndCharts!$A194+$A$11,IF($C$5,8,0),1,1)) -> 21.209999 | G194: =IF(A194>$A$8,"",OFFSET(InputPriceData!F$15,CalculationsAndCharts!$A194+$A$11,IF($C$5,8,0),1,1)) -> 22.33 | H194: 21.74180332 | K194: 21.69181269 | N194: -0.5260547895 | Q194: 0.05084766103 | T194: 22.00541399 | BC194: 9554900
A195: 163 | B195: =IF(A195>$A$8,"",OFFSET(InputPriceData!B$15,$A195+$A$11,0,1,1)) -> 2023-06-26 | C195: =IF(A195>$A$8,"",OFFSET(InputPriceData!G$15,CalculationsAndCharts!$A195+$A$11,IF($C$5,8,0),1,1)) -> 6120800 | D195: =IF(A195>$A$8,"",OFFSET(InputPriceData!C$15,CalculationsAndCharts!$A195+$A$11,IF($C$5,8,0),1,1)) -> 21.49 | E195: =IF(A195>$A$8,"",OFFSET(InputPriceData!D$15,CalculationsAndCharts!$A195+$A$11,IF($C$5,8,0),1,1)) -> 22.59 | F195: =IF(A195>$A$8,"",OFFSET(InputPriceData!E$15,CalculationsAndCharts!$A195+$A$11,IF($C$5,8,0),1,1)) -> 21.42 | G195: =IF(A195>$A$8,"",OFFSET(InputPriceData!F$15,CalculationsAndCharts!$A195+$A$11,IF($C$5,8,0),1,1)) -> 22.1 | H195: 21.63800391 | K195: 21.61417593 | N195: 1.172844328 | Q195: -0.01380298289 | T195: 21.80415341 | BC195: 6120800
A196: 164 | B196: =IF(A196>$A$8,"",OFFSET(InputPriceData!B$15,$A196+$A$11,0,1,1)) -> 2023-06-23 | C196: =IF(A196>$A$8,"",OFFSET(InputPriceData!G$15,CalculationsAndCharts!$A196+$A$11,IF($C$5,8,0),1,1)) -> 9543900 | D196: =IF(A196>$A$8,"",OFFSET(InputPriceData!C$15,CalculationsAndCharts!$A196+$A$11,IF($C$5,8,0),1,1)) -> 21.25 | E196: =IF(A196>$A$8,"",OFFSET(InputPriceData!D$15,CalculationsAndCharts!$A196+$A$11,IF($C$5,8,0),1,1)) -> 21.620001 | F196: =IF(A196>$A$8,"",OFFSET(InputPriceData!E$15,CalculationsAndCharts!$A196+$A$11,IF($C$5,8,0),1,1)) -> 20.99 | G196: =IF(A196>$A$8,"",OFFSET(InputPriceData!F$15,CalculationsAndCharts!$A196+$A$11,IF($C$5,8,0),1,1)) -> 21.26 | H196: 21.55647519 | K196: 21.56714412 | N196: -0.4225711886 | Q196: -0.05116555307 | T196: 21.80720604 | BD196: 9543900
A197: 165 | B197: =IF(A197>$A$8,"",OFFSET(InputPriceData!B$15,$A197+$A$11,0,1,1)) -> 2023-06-22 | C197: =IF(A197>$A$8,"",OFFSET(InputPriceData!G$15,CalculationsAndCharts!$A197+$A$11,IF($C$5,8,0),1,1)) -> 4433400 | D197: =IF(A197>$A$8,"",OFFSET(InputPriceData!C$15,CalculationsAndCharts!$A197+$A$11,IF($C$5,8,0),1,1)) -> 21.68 | E197: =IF(A197>$A$8,"",OFFSET(InputPriceData!D$15,CalculationsAndCharts!$A197+$A$11,IF($C$5,8,0),1,1)) -> 22.040001 | F197: =IF(A197>$A$8,"",OFFSET(InputPriceData!E$15,CalculationsAndCharts!$A197+$A$11,IF($C$5,8,0),1,1)) -> 21.469999 | G197: =IF(A197>$A$8,"",OFFSET(InputPriceData!F$15,CalculationsAndCharts!$A197+$A$11,IF($C$5,8,0),1,1)) -> 21.780001 | H197: 21.60879434 | K197: 21.50771316 | N197: -0.2500898965 | Q197: -0.01817075634 | T197: 21.87592058 | BD197: 4433400
A198: 166 | B198: =IF(A198>$A$8,"",OFFSET(InputPriceData!B$15,$A198+$A$11,0,1,1)) -> 2023-06-21 | C198: =IF(A198>$A$8,"",OFFSET(InputPriceData!G$15,CalculationsAndCharts!$A198+$A$11,IF($C$5,8,0),1,1)) -> 3444800 | D198: =IF(A198>$A$8,"",OFFSET(InputPriceData!C$15,CalculationsAndCharts!$A198+$A$11,IF($C$5,8,0),1,1)) -> 21.530001 | E198: =IF(A198>$A$8,"",OFFSET(InputPriceData!D$15,CalculationsAndCharts!$A198+$A$11,IF($C$5,8,0),1,1)) -> 21.950001 | F198: =IF(A198>$A$8,"",OFFSET(InputPriceData!E$15,CalculationsAndCharts!$A198+$A$11,IF($C$5,8,0),1,1)) -> 21.43 | G198: =IF(A198>$A$8,"",OFFSET(InputPriceData!F$15,CalculationsAndCharts!$A198+$A$11,IF($C$5,8,0),1,1)) -> 21.809999 | H198: 21.5785814 | K198: 21.41655783 | N198: 1.008990334 | Q198: -0.03355568844 | T198: 21.80235442 | BC198: 3444800
A199: 167 | B199: =IF(A199>$A$8,"",OFFSET(InputPriceData!B$15,$A199+$A$11,0,1,1)) -> 2023-06-20 | C199: =IF(A199>$A$8,"",OFFSET(InputPriceData!G$15,CalculationsAndCharts!$A199+$A$11,IF($C$5,8,0),1,1)) -> 4889100 | D199: =IF(A199>$A$8,"",OFFSET(InputPriceData!C$15,CalculationsAndCharts!$A199+$A$11,IF($C$5,8,0),1,1)) -> 22.35 | E199: =IF(A199>$A$8,"",OFFSET(InputPriceData!D$15,CalculationsAndCharts!$A199+$A$11,IF($C$5,8,0),1,1)) -> 22.41 | F199: =IF(A199>$A$8,"",OFFSET(InputPriceData!E$15,CalculationsAndCharts!$A199+$A$11,IF($C$5,8,0),1,1)) -> 21.440001 | G199: =IF(A199>$A$8,"",OFFSET(InputPriceData!F$15,CalculationsAndCharts!$A199+$A$11,IF($C$5,8,0),1,1)) -> 21.549999 | H199: 21.537743 | K199: 21.32104803 | N199: -1.388438828 | Q199: 0.03604142647 | T199: 21.7439712 | BD199: 4889100
A200: 168 | B200: =IF(A200>$A$8,"",OFFSET(InputPriceData!B$15,$A200+$A$11,0,1,1)) -> 2023-06-16 | C200: =IF(A200>$A$8,"",OFFSET(InputPriceData!G$15,CalculationsAndCharts!$A200+$A$11,IF($C$5,8,0),1,1)) -> 12427700 | D200: =IF(A200>$A$8,"",OFFSET(InputPriceData!C$15,CalculationsAndCharts!$A200+$A$11,IF($C$5,8,0),1,1)) -> 21.969999 | E200: =IF(A200>$A$8,"",OFFSET(InputPriceData!D$15,CalculationsAndCharts!$A200+$A$11,IF($C$5,8,0),1,1)) -> 22.780001 | F200: =IF(A200>$A$8,"",OFFSET(InputPriceData!E$15,CalculationsAndCharts!$A200+$A$11,IF($C$5,8,0),1,1)) -> 21.77 | G200: =IF(A200>$A$8,"",OFFSET(InputPriceData!F$15,CalculationsAndCharts!$A200+$A$11,IF($C$5,8,0),1,1)) -> 22.459999 | H200: 21.53558017 | K200: 21.21634699 | N200: -0.3363309737 | Q200: 0.1086311943 | T200: 21.48331064 | BC200: 12427700
A201: 169 | B201: =IF(A201>$A$8,"",OFFSET(InputPriceData!B$15,$A201+$A$11,0,1,1)) -> 2023-06-15 | C201: =IF(A201>$A$8,"",OFFSET(InputPriceData!G$15,CalculationsAndCharts!$A201+$A$11,IF($C$5,8,0),1,1)) -> 7358600 | D201: =IF(A201>$A$8,"",OFFSET(InputPriceData!C$15,CalculationsAndCharts!$A201+$A$11,IF($C$5,8,0),1,1)) -> 20.75 | E201: =IF(A201>$A$8,"",OFFSET(InputPriceData!D$15,CalculationsAndCharts!$A201+$A$11,IF($C$5,8,0),1,1)) -> 22.370001 | F201: =IF(A201>$A$8,"",OFFSET(InputPriceData!E$15,CalculationsAndCharts!$A201+$A$11,IF($C$5,8,0),1,1)) -> 20.75 | G201: =IF(A201>$A$8,"",OFFSET(InputPriceData!F$15,CalculationsAndCharts!$A201+$A$11,IF($C$5,8,0),1,1)) -> 21.76 | H201: 21.37244744 | K201: 21.1502561 | N201: 1.509173577 | Q201: 0.01085093239 | T201: 21.08888865 | BC201: 7358600
A202: 170 | B202: =IF(A202>$A$8,"",OFFSET(InputPriceData!B$15,$A202+$A$11,0,1,1)) -> 2023-06-14 | C202: =IF(A202>$A$8,"",OFFSET(InputPriceData!G$15,CalculationsAndCharts!$A202+$A$11,IF($C$5,8,0),1,1)) -> 6282300 | D202: =IF(A202>$A$8,"",OFFSET(InputPriceData!C$15,CalculationsAndCharts!$A202+$A$11,IF($C$5,8,0),1,1)) -> 21.58 | E202: =IF(A202>$A$8,"",OFFSET(InputPriceData!D$15,CalculationsAndCharts!$A202+$A$11,IF($C$5,8,0),1,1)) -> 21.67 | F202: =IF(A202>$A$8,"",OFFSET(InputPriceData!E$15,CalculationsAndCharts!$A202+$A$11,IF($C$5,8,0),1,1)) -> 20.51 | G202: =IF(A202>$A$8,"",OFFSET(InputPriceData!F$15,CalculationsAndCharts!$A202+$A$11,IF($C$5,8,0),1,1)) -> 20.67 | H202: 21.30405581 | K202: 21.16544854 | N202: -1.103853536 | Q202: -0.03018976478 | T202: 21.04509947 | BD202: 6282300
A203: 171 | B203: =IF(A203>$A$8,"",OFFSET(InputPriceData!B$15,$A203+$A$11,0,1,1)) -> 2023-06-13 | C203: =IF(A203>$A$8,"",OFFSET(InputPriceData!G$15,CalculationsAndCharts!$A203+$A$11,IF($C$5,8,0),1,1)) -> 5462000 | D203: =IF(A203>$A$8,"",OFFSET(InputPriceData!C$15,CalculationsAndCharts!$A203+$A$11,IF($C$5,8,0),1,1)) -> 21.129999 | E203: =IF(A203>$A$8,"",OFFSET(InputPriceData!D$15,CalculationsAndCharts!$A203+$A$11,IF($C$5,8,0),1,1)) -> 21.690001 | F203: =IF(A203>$A$8,"",OFFSET(InputPriceData!E$15,CalculationsAndCharts!$A203+$A$11,IF($C$5,8,0),1,1)) -> 21.030001 | G203: =IF(A203>$A$8,"",OFFSET(InputPriceData!F$15,CalculationsAndCharts!$A203+$A$11,IF($C$5,8,0),1,1)) -> 21.33 | H203: 21.41594801 | K203: 21.19524277 | N203: 1.052110441 | Q203: -0.04947483202 | T203: 21.10475231 | BC203: 5462000
A204: 172 | B204: =IF(A204>$A$8,"",OFFSET(InputPriceData!B$15,$A204+$A$11,0,1,1)) -> 2023-06-12 | C204: =IF(A204>$A$8,"",OFFSET(InputPriceData!G$15,CalculationsAndCharts!$A204+$A$11,IF($C$5,8,0),1,1)) -> 4961100 | D204: =IF(A204>$A$8,"",OFFSET(InputPriceData!C$15,CalculationsAndCharts!$A204+$A$11,IF($C$5,8,0),1,1)) -> 21.040001 | E204: =IF(A204>$A$8,"",OFFSET(InputPriceData!D$15,CalculationsAndCharts!$A204+$A$11,IF($C$5,8,0),1,1)) -> 21.25 | F204: =IF(A204>$A$8,"",OFFSET(InputPriceData!E$15,CalculationsAndCharts!$A204+$A$11,IF($C$5,8,0),1,1)) -> 20.549999 | G204: =IF(A204>$A$8,"",OFFSET(InputPriceData!F$15,CalculationsAndCharts!$A204+$A$11,IF($C$5,8,0),1,1)) -> 20.709999 | H204: 21.4311153 | K204: 21.21764506 | N204: -0.008622986624 | Q204: -0.07877751223 | T204: 21.17490816 | BD204: 4961100
... 1078 more rows

Sheet Follow
A1: Stocks and Indexes I wish to follow
A3: To ease following a stock, enter a Yahoo Finance acceptable symbol in column "A" anywhere below cell "A9".
A4: Thereafter you may doubleclick the cell containing a symbol of interest to initiate data retrieval and charting for that symbol.
A6: =COUNTA(A10:A108) -> 97
A7: Symbol
A8: To | B8: Description | C8: Last Trade as of most recent check
A9: Follow | C9: Date | D9: Time | E9: Open | F9: High | G9: Low | H9: Close | I9: Volume | J9: Change | K9: Retrieved @
A10: A | B10: Agilent Technologies, Inc. (A) -NYSE (Daily) | C10: 2022-10-07 | D10: 16:03:00 | E10: 130.449997 | F10: 130.929993 | G10: 126.959999 | H10: 127.440002 | I10: 1154700 | J10: -4.739991 | K10: 2022-10-08T20:06:52.050
A11: AA | B11: Alcoa Corporation (AA) -NYSE (Daily) | C11: 2023-06-16 | D11: 16:00:00 | E11: 35.970001 | F11: 36.040001 | G11: 34.790001 | H11: 35.619999 | I11: 5811700 | J11: -0.350002 | K11: 2023-06-17T11:43:27
A12: AAL | B12: American Airlines Group Inc. (AAL) -NasdaqGS (Daily) | C12: 2023-06-16 | D12: 16:00:00 | E12: 16.67 | F12: 16.719999 | G12: 16.43 | H12: 16.48 | I12: 22635600 | J12: -0.17 | K12: 2023-06-17T10:36:27.890
A13: AAPL | B13: Apple Inc. (AAPL) -NasdaqGS (Daily) | C13: 2022-10-07 | D13: 16:00:00 | E13: 142.539993 | F13: 143.100006 | G13: 139.449997 | H13: 140.089996 | I13: 85859100 | J13: -5.339997 | K13: 2022-10-08T20:07:45.780
A14: ADM | B14: Archer-Daniels-Midland Company (ADM) -NYSE (Daily) | C14: 2023-06-16 | D14: 16:00:00 | E14: 74.900002 | F14: 76 | G14: 74.470001 | H14: 75.480003 | I14: 5529600 | J14: 0.920005 | K14: 2023-06-17T11:43:58.380
A15: ADBE | B15: Adobe Inc. (ADBE) -NasdaqGS (Daily) | C15: 2023-06-16 | D15: 16:00:00 | E15: 518.22998 | F15: 518.73999 | G15: 494.619995 | H15: 495.179993 | I15: 13335800 | J15: 4.269989 | K15: 2023-06-17T11:42:39.820 | L15: [X]
A16: ALGN | B16: Align Technology, Inc. (ALGN) -NasdaqGS (Daily) | C16: 2023-06-16 | D16: 16:00:00 | E16: 334.950012 | F16: 335.869995 | G16: 326.519989 | H16: 330.290009 | I16: 1258300 | J16: -2.899993 | K16: 2023-06-17T10:47:06.620
A17: AMC | B17: AMC Entertainment Holdings, Inc. (AMC) -NYSE (Daily) | C17: 2023-06-16 | D17: 16:00:00 | E17: 4.82 | F17: 4.83 | G17: 4.67 | H17: 4.7 | I17: 18483600 | J17: -0.06 | K17: 2023-06-17T10:46:36.020
A18: AMD | B18: Advanced Micro Devices, Inc. (AMD) -NasdaqGS (Daily) | C18: 2023-06-16 | D18: 16:00:00 | E18: 125.82 | F18: 125.849998 | G18: 119.900002 | H18: 120.080002 | I18: 81846900 | J18: -4.159996 | K18: 2023-06-17T10:42:05.850
A19: AR | B19: Antero Resources Corporation (AR) -NYSE (Daily) | C19: 2024-02-15 | D19: 16:01:00 | E19: 22.68 | F19: 23.780001 | G19: 22.01 | H19: 23.52 | I19: 13104147 | J19: 2.310001 | K19: 2024-02-15T19:01:56.140 | L19: [X]
A20: BA | B20: The Boeing Company (BA) -NYSE (Daily) | C20: 2023-06-16 | D20: 16:00:00 | E20: 220.720001 | F20: 223.869995 | G20: 218.979996 | H20: 219.990005 | I20: 7799500 | J20: 0.580001 | K20: 2023-06-17T10:43:22.080
A21: BSX | B21: Boston Scientific Corporation (BSX) -NYSE (Daily) | C21: 2023-06-16 | D21: 16:00:00 | E21: 54.509998 | F21: 54.689999 | G21: 54.049999 | H21: 54.32 | I21: 13022800 | J21: 0.34 | K21: 2023-06-17T10:45:23.450
A22: CASY | B22: Casey's General Stores, Inc. (CASY) -NasdaqGS (Daily) | C22: 2023-06-16 | D22: 16:00:00 | E22: 223.339996 | F22: 223.449997 | G22: 219.070007 | H22: 219.619995 | I22: 388500 | J22: -2.960007 | K22: 2023-06-17T10:46:01.080
A23: CAT | B23: Caterpillar Inc. (CAT) -NYSE (Daily) | C23: 2023-09-15 | D23: 11:10:00 | E23: 281.869995 | F23: 281.869995 | G23: 277.769989 | H23: 278.117493 | I23: 1524594 | J23: -4.442505 | K23: 2023-09-15T11:10:38.830
A24: COST | B24: Costco Wholesale Corporation (COST) -NasdaqGS (Daily) | C24: 2023-03-06 | D24: 16:00:00 | E24: 476.519989 | F24: 488.817413 | G24: 475.609985 | H24: 483.079987 | I24: 3005250 | J24: 7.819977 | K24: 2023-03-06T21:04:51.590
A25: CSCO | B25: Cisco Systems, Inc. (CSCO) -NasdaqGS (Daily) | C25: 2023-06-16 | D25: 16:00:00 | E25: 52.200001 | F25: 52.41 | G25: 51.93 | H25: 52.07 | I25: 37133300 | J25: 0.14 | K25: 2023-06-17T10:48:11.650
A26: CVS | B26: CVS Health Corporation (CVS) -NYSE (Daily) | C26: 2023-06-16 | D26: 16:00:00 | E26: 69.290001 | F26: 69.589996 | G26: 67.489998 | H26: 67.720001 | I26: 18202800 | J26: -1.779999 | K26: 2023-06-17T11:41:13.330
A27: DELL | B27: Dell Technologies Inc. (DELL) -NYSE (Daily) | C27: 2023-06-16 | D27: 16:00:00 | E27: 50.200001 | F27: 50.299999 | G27: 49.529999 | H27: 49.669998 | I27: 9352100 | J27: -0.530003 | K27: 2023-06-17T10:48:49.940
A28: DG | B28: Dollar General Corporation (DG) -NYSE (Daily) | C28: 2023-06-16 | D28: 16:03:00 | E28: 163.210007 | F28: 164.649994 | G28: 161.759995 | H28: 164.320007 | I28: 4781100 | J28: 0.640014 | K28: 2023-06-17T10:49:14.920
A29: DIS | B29: The Walt Disney Company (DIS) -NYSE (Daily) | C29: 2023-06-16 | D29: 16:03:00 | E29: 92.879997 | F29: 92.970001 | G29: 90.860001 | H29: 91.32 | I29: 22665000 | J29: -1.620002 | K29: 2023-06-17T10:49:55.860
A30: DLTR | B30: Dollar Tree, Inc. (DLTR) -NasdaqGS (Daily) | C30: 2023-06-16 | D30: 16:00:00 | E30: 139.070007 | F30: 139.070007 | G30: 136.089996 | H30: 136.220001 | I30: 2592600 | J30: -2.220001 | K30: 2023-06-17T10:50:23.460
A31: EPD | B31: Enterprise Products Partners L.P. (EPD) -NYSE (Daily) | C31: 2023-06-16 | D31: 16:00:00 | E31: 26.389999 | F31: 26.48 | G31: 26.23 | H31: 26.389999 | I31: 3749200 | J31: 0.069999 | K31: 2023-06-17T10:51:07.130
A32: F | B32: Ford Motor Company (F) -NYSE (Daily) | C32: 2023-06-16 | D32: 16:00:00 | E32: 14.52 | F32: 14.61 | G32: 14.32 | H32: 14.42 | I32: 75366700 | J32: -0.03 | K32: 2023-06-17T11:35:12.500 | L32: [X]
A33: FAS | B33: Direxion Daily Financial Bull 3X Shares (FAS) -NYSEArca (Daily) | C33: 2022-10-07 | D33: 16:00:00 | E33: 59.529999 | F33: 59.849998 | G33: 55.689999 | H33: 56.790001 | I33: 1488400 | J33: -4.290001 | K33: 2022-10-08T20:13:13.080
A34: GSK | B34: GSK plc (GSK) -NYSE (Daily) | C34: 2022-10-07 | D34: 16:00:00 | E34: 30.190001 | F34: 30.42 | G34: 30.040001 | H34: 30.110001 | I34: 5486300 | J34: 0.110001 | K34: 2022-10-08T20:13:33.450
A35: GDX | B35: VanEck Gold Miners ETF (GDX) -NYSEArca (Daily) | C35: 2023-06-16 | D35: 16:00:00 | E35: 31.200001 | F35: 31.74 | G35: 30.9 | H35: 31.389999 | I35: 19283100 | J35: 0.389999 | K35: 2023-06-17T10:52:54.260
A36: GILD | B36: Gilead Sciences, Inc. (GILD) -NasdaqGS (Daily) | C36: 2022-10-07 | D36: 16:00:00 | E36: 64.639999 | F36: 65.099998 | G36: 63.959999 | H36: 64.290001 | I36: 6722600 | J36: -0.659996 | K36: 2022-10-08T20:14:12.060
A37: GOOG | B37: Alphabet Inc. (GOOG) -NasdaqGS (Daily) | C37: 2023-06-05 | D37: 14:47:00 | E37: 124.610001 | F37: 127.987701 | G37: 124.389999 | H37: 126.32 | I37: 17012908 | J37: 1.089997 | K37: 2023-06-05T14:47:20.460
A38: HD | B38: The Home Depot, Inc. (HD) -NYSE (Daily) | C38: 2023-06-16 | D38: 16:00:00 | E38: 304.339996 | F38: 305.980011 | G38: 300.140015 | H38: 300.380005 | I38: 10808400 | J38: -1.639984 | K38: 2023-06-17T11:36:54.610
A39: HSY | B39: The Hershey Company (HSY) -NYSE (Daily) | C39: 2023-06-16 | D39: 16:00:00 | E39: 262 | F39: 263.290009 | G39: 260.269989 | H39: 260.720001 | I39: 1577100 | J39: -0.139984 | K39: 2023-06-17T10:54:48.190
A40: HTLD | B40: Heartland Express, Inc. (HTLD) -NasdaqGS (Daily) | C40: 2023-06-16 | D40: 16:00:00 | E40: 16.440001 | F40: 16.440001 | G40: 16.139999 | H40: 16.290001 | I40: 738100 | J40: -0.039999 | K40: 2023-06-17T11:04:51.680
A41: IBM | B41: International Business Machines Corporation (IBM) -NYSE (Daily) | C41: 2023-06-16 | D41: 16:00:00 | E41: 139.229996 | F41: 139.470001 | G41: 137.470001 | H41: 137.479996 | I41: 7473100 | J41: -0.919998 | K41: 2023-06-17T11:05:53.630 | L41: [X]
A42: ILMN | B42: Illumina, Inc. (ILMN) -NasdaqGS (Daily) | C42: 2023-06-16 | D42: 16:00:00 | E42: 212.100006 | F42: 212.490005 | G42: 205 | H42: 205.869995 | I42: 2443300 | J42: -4.070007 | K42: 2023-06-17T10:19:57.970
A43: INTC | B43: Intel Corporation (INTC) -NasdaqGS (Daily) | C43: 2023-06-16 | D43: 16:00:00 | E43: 36.360001 | F43: 36.799999 | G43: 35.599998 | H43: 36.369999 | I43: 110188500 | J43: 0.549999 | K43: 2023-06-17T11:35:58.390 | L43: [X]
A44: JNJ | B44: Johnson & Johnson (JNJ) -NYSE (Daily) | C44: 2022-10-07 | D44: 16:00:00 | E44: 161.770004 | F44: 162.220001 | G44: 159.169998 | H44: 160.199997 | I44: 6363000 | J44: -1.710007 | K44: 2022-10-08T20:16:52.840
A45: KO | B45: The Coca-Cola Company (KO) -NYSE (Daily) | C45: 2023-06-16 | D45: 16:00:00 | E45: 61.599998 | F45: 62.169998 | G45: 61.48 | H45: 61.669998 | I45: 26735800 | J45: 0.439998 | K45: 2023-06-17T11:20:04.690
A46: LOW | B46: Lowe's Companies, Inc. (LOW) -NYSE (Daily) | C46: 2023-06-16 | D46: 16:02:00 | E46: 219.339996 | F46: 219.490005 | G46: 216.850006 | H46: 217.080002 | I46: 6874300 | J46: -1.849991 | K46: 2023-06-17T11:20:37.350 | L46: [X]
A47: LMT | B47: Lockheed Martin Corporation (LMT) -NYSE (Daily) | C47: 2023-06-16 | D47: 16:01:00 | E47: 457.730011 | F47: 461.769989 | G47: 456.600006 | H47: 459.170013 | I47: 1642800 | J47: 3.220001 | K47: 2023-06-17T11:23:13.320
A48: M | B48: Macy's, Inc. (M) -NYSE (Daily) | C48: 2023-06-16 | D48: 16:00:00 | E48: 16.17 | F48: 16.34 | G48: 15.8 | H48: 15.85 | I48: 17840800 | J48: -0.14 | K48: 2023-06-17T11:24:02.180
A49: MCD | B49: McDonald's Corporation (MCD) -NYSE (Daily) | C49: 2023-06-16 | D49: 16:00:00 | E49: 294.51001 | F49: 296.570007 | G49: 293.140015 | H49: 293.700012 | I49: 4890400 | J49: 1.090027 | K49: 2023-06-17T10:18:27.960
A50: MDT | B50: Medtronic plc (MDT) -NYSE (Daily) | C50: 2023-06-16 | D50: 16:00:00 | E50: 88.279999 | F50: 89.720001 | G50: 88.279999 | H50: 89.150002 | I50: 9108400 | J50: 0.900002 | K50: 2023-06-17T11:37:39.300
A51: META | B51: Meta Platforms, Inc. (META) -NasdaqGS (Daily) | C51: 2022-10-07 | D51: 16:00:00 | E51: 136.759995 | F51: 138.289993 | G51: 132.440002 | H51: 133.449997 | I51: 33179700 | J51: -5.62001 | K51: 2022-10-08T20:19:13.140
A52: MGM | B52: MGM Resorts International (MGM) -NYSE (Daily) | C52: 2023-06-16 | D52: 16:00:00 | E52: 43.68 | F52: 43.75 | G52: 42.43 | H52: 42.639999 | I52: 7929700 | J52: -1.080002 | K52: 2023-06-17T11:24:42.990
A53: MO | B53: Altria Group, Inc. (MO) -NYSE (Daily) | C53: 2023-06-16 | D53: 16:03:00 | E53: 44.220001 | F53: 44.27 | G53: 43.919998 | H53: 44.07 | I53: 13661200 | J53: -0.080002 | K53: 2023-06-17T11:25:41.960
A54: MRNA | B54: Moderna, Inc. (MRNA) -NasdaqGS (Daily) | C54: 2022-10-07 | D54: 16:00:00 | E54: 121.5 | F54: 123.360001 | G54: 118.459999 | H54: 119.32 | I54: 3149000 | J54: -5.830002 | K54: 2022-10-08T20:20:13.090
A55: MSFT | B55: Microsoft Corporation (MSFT) -NasdaqGS (Daily) | C55: 2023-06-16 | D55: 16:00:00 | E55: 351.320007 | F55: 351.470001 | G55: 341.950012 | H55: 342.329987 | I55: 46533600 | J55: -5.770019 | K55: 2023-06-17T11:26:05.540 | L55: [X]
A56: MU | B56: Micron Technology, Inc. (MU) -NasdaqGS (Daily) | C56: 2023-06-16 | D56: 16:00:00 | E56: 70.150002 | F56: 70.5 | G56: 66.059998 | H56: 67.660004 | I56: 32252600 | J56: -1.159996 | K56: 2023-06-17T10:17:34.780
A57: NFLX | B57: Netflix, Inc. (NFLX) -NasdaqGS (Daily) | C57: 2022-10-07 | D57: 16:00:00 | E57: 235.770004 | F57: 237.330002 | G57: 224.279999 | H57: 224.75 | I57: 9784800 | J57: -15.270004 | K57: 2022-10-08T20:20:51.730
A58: NUGT | B58: Direxion Daily Gold Miners Index Bull 2X Shares (NUGT) -NYSEArca (Daily) | C58: 2023-04-18 | D58: 11:15:00 | E58: 47.110001 | F58: 49.1688 | G58: 47 | H58: 48.517601 | I58: 939091 | J58: 1.647602 | K58: 2023-04-18T11:16:03.120
A59: NVS | B59: Novartis AG (NVS) -NYSE (Daily) | C59: 2023-06-16 | D59: 16:00:00 | E59: 102.43 | F59: 102.730003 | G59: 101.540001 | H59: 101.830002 | I59: 2683400 | J59: 0.440003 | K59: 2023-06-17T11:40:12.900
A60: NVDA | B60: NVIDIA Corporation (NVDA) -NasdaqGS (Daily) | C60: 2024-02-02 | D60: 16:00:00 | E60: 639.73999 | F60: 666 | G60: 636.900024 | H60: 661.599976 | I60: 47578000 | J60: 31.329956 | K60: 2024-02-04T17:57:32.090
A61: NWL | B61: Newell Brands Inc. (NWL) -NasdaqGS (Daily) | C61: 2022-10-07 | D61: 16:00:00 | E61: 14.18 | F61: 14.25 | G61: 13.89 | H61: 13.96 | I61: 2832700 | J61: -0.42 | K61: 2022-10-08T20:22:10.460
A62: PEP | B62: PepsiCo, Inc. (PEP) -NasdaqGS (Daily) | C62: 2023-09-15 | D62: 11:05:00 | E62: 181.410004 | F62: 181.820007 | G62: 180.210007 | H62: 180.289993 | I62: 2715164 | J62: -0.940003 | K62: 2023-09-15T11:06:06.970
A63: PFE | B63: Pfizer Inc. (PFE) -NYSE (Daily) | C63: 2022-10-07 | D63: 16:03:00 | E63: 43.049999 | F63: 43.049999 | G63: 41.919998 | H63: 42.32 | I63: 20093100 | J63: -0.77 | K63: 2022-10-08T20:22:31.070
A64: PRU | B64: Prudential Financial, Inc. (PRU) -NYSE (Daily) | C64: 2023-06-16 | D64: 16:00:00 | E64: 86.809998 | F64: 87.470001 | G64: 86.309998 | H64: 87.029999 | I64: 3976700 | J64: 0.269997 | K64: 2023-06-17T11:27:17.570
A65: PSA | B65: Public Storage (PSA) -NYSE (Daily) | C65: 2023-03-08 | D65: 13:52:00 | E65: 301.850006 | F65: 305.119995 | G65: 300.910004 | H65: 302.279999 | I65: 329019 | J65: -0.070007 | K65: 2023-03-08T13:53:27.260
A66: PSEC | B66: Prospect Capital Corporation (PSEC) -NasdaqGS (Daily) | C66: 2023-06-16 | D66: 16:00:00 | E66: 6.28 | F66: 6.3 | G66: 6.22 | H66: 6.23 | I66: 1790300 | J66: -0.05 | K66: 2023-06-17T11:34:40.180
A67: RPM | B67: RPM International Inc. (RPM) -NYSE (Daily) | C67: 2023-05-19 | D67: 16:00:00 | E67: 81.349998 | F67: 81.449997 | G67: 79.650002 | H67: 80.080002 | I67: 569600 | J67: -0.720001 | K67: 2023-05-19T21:39:10.650
A68: RY | B68: Royal Bank of Canada (RY) -NYSE (Daily) | C68: 2023-09-15 | D68: 11:02:00 | E68: 91.07 | F68: 91.474098 | G68: 91.059998 | H68: 91.140999 | I68: 62690 | J68: -0.168999 | K68: 2023-09-15T11:03:52.640 | L68: [X]
A69: SCHW | B69: The Charles Schwab Corporation (SCHW) -NYSE (Daily) | C69: 2023-06-16 | D69: 16:00:00 | E69: 55.889999 | F69: 55.889999 | G69: 54.27 | H69: 54.400002 | I69: 19691000 | J69: -1.109996 | K69: 2023-06-17T11:34:11.580
A70: SPR | B70: Spirit AeroSystems Holdings, Inc. (SPR) -NYSE (Daily) | C70: 2022-10-07 | D70: 16:00:00 | E70: 24.26 | F70: 24.700001 | G70: 23.559999 | H70: 24.68 | I70: 1823200 | J70: -0.06 | K70: 2022-10-08T20:24:37.430
A71: SQ | B71: Block, Inc. (SQ) -NYSE (Daily) | C71: 2024-02-02 | D71: 16:00:00 | E71: 66.419998 | F71: 68.43 | G71: 65.290001 | H71: 67.879997 | I71: 9372100 | J71: 1.209999 | K71: 2024-02-04T17:44:52.090
A72: SWKS | B72: Skyworks Solutions, Inc. (SWKS) -NasdaqGS (Daily) | C72: 2022-10-07 | D72: 16:00:00 | E72: 90.18 | F72: 90.400002 | G72: 86.949997 | H72: 87.199997 | I72: 2592400 | J72: -5.410004 | K72: 2022-10-08T20:25:16.990
A73: TOL | B73: Toll Brothers, Inc. (TOL) -NYSE (Daily) | C73: 2023-06-08 | D73: 14:21:00 | E73: 73.739998 | F73: 74.809998 | G73: 73.379997 | H73: 74.334999 | I73: 1031567 | J73: 0.394997 | K73: 2023-06-08T14:22:29.470
A74: TSLA | B74: Tesla, Inc. (TSLA) -NasdaqGS (Daily) | C74: 2022-10-07 | D74: 16:00:00 | E74: 233.940002 | F74: 234.570007 | G74: 222.020004 | H74: 223.070007 | I74: 83592300 | J74: -15.059998 | K74: 2022-10-08T20:25:55.990
A75: TSN | B75: Tyson Foods, Inc. (TSN) -NYSE (Daily) | C75: 2023-06-16 | D75: 16:00:00 | E75: 50.360001 | F75: 50.490002 | G75: 49.959999 | H75: 50.389999 | I75: 4116300 | J75: 0.18 | K75: 2023-06-17T11:30:51.590
A76: TXN | B76: Texas Instruments Incorporated (TXN) -NasdaqGS (Daily) | C76: 2023-06-16 | D76: 16:00:00 | E76: 179.449997 | F76: 179.830002 | G76: 176.259995 | H76: 176.759995 | I76: 10374500 | J76: -1.330001 | K76: 2023-06-17T11:30:24.380
A77: UNP | B77: Union Pacific Corporation (UNP) -NYSE (Daily) | C77: 2023-06-16 | D77: 16:00:00 | E77: 206.369995 | F77: 206.899994 | G77: 204.479996 | H77: 204.669998 | I77: 4139800 | J77: -1.25 | K77: 2023-06-17T11:30:02.020
A78: VZ | B78: Verizon Communications Inc. (VZ) -NYSE (Daily) | C78: 2024-02-02 | D78: 16:00:00 | E78: 42.200001 | F78: 42.470001 | G78: 41.830002 | H78: 42.130001 | I78: 21546500 | J78: -0.360001 | K78: 2024-02-04T17:45:25.020
A79: WBA | B79: Walgreens Boots Alliance, Inc. (WBA) -NasdaqGS (Daily) | C79: 2023-06-16 | D79: 16:00:00 | E79: 31.83 | F79: 32.810001 | G79: 31.73 | H79: 32.669998 | I79: 16018300 | J79: 0.649998 | K79: 2023-06-17T11:29:06.980
A80: WMT | B80: Walmart Inc. (WMT) -NYSE (Daily) | C80: 2023-06-16 | D80: 16:00:00 | E80: 158.080002 | F80: 158.149994 | G80: 155.279999 | H80: 155.529999 | I80: 11556700 | J80: -2.199997 | K80: 2023-06-17T11:28:37.380
A82: ^AEX | B82: AEX-Index (^AEX) -Amsterdam (Daily) | C82: 2022-10-07 | D82: 18:05:00 | E82: 655.869995 | F82: 660.320007 | G82: 646.809998 | H82: 647.109985 | I82: 68900 | J82: -14.27002 | K82: 2022-10-08T20:27:56.300
A83: ^AORD | B83: ALL ORDINARIES (^AORD) -ASX (Daily) | C83: 2023-03-03 | D83: 16:46:00 | E83: 7460 | F83: 7493.299805 | G83: 7460 | H83: 7484 | I83: 915646200 | J83: 24 | K83: 2023-03-05T16:26:16.030
A84: ^AXJO | B84: S&P/ASX 200 (^AXJO) -ASX (Daily) | C84: 2023-03-15 | D84: 16:44:00 | E84: 7008.899902 | F84: 7068.899902 | G84: 7008.899902 | H84: 7068.899902 | I84: 0 | J84: 60 | K84: 2023-03-15T11:43:59.040
A85: DIA | B85: SPDR Dow Jones Industrial Average ETF Trust (DIA) -NYSEArca (Daily) | C85: 2022-10-07 | D85: 16:00:00 | E85: 296.730011 | F85: 296.890015 | G85: 291.440002 | H85: 292.970001 | I85: 3026900 | J85: -6.26001 | K85: 2022-10-08T20:28:35.330
A86: ^DJI | B86: Dow Jones Industrial Average (^DJI) -DJI (Daily) | C86: 2022-10-07 | D86: 17:28:00 | E86: 29685.26953 | F86: 29685.26953 | G86: 29142.66016 | H86: 29296.78906 | I86: 367950000 | J86: -630.15039 | K86: 2022-10-08T20:28:54.910
A87: ^FTSE | B87: FTSE 100 (^FTSE) -FTSE Index (Daily) | C87: 2022-10-07 | D87: 16:35:00 | E87: 6997.299805 | F87: 7022.399902 | G87: 6960.399902 | H87: 6991.100098 | I87: 807923600 | J87: -6.199707 | K87: 2022-10-08T20:29:14.340
A88: ^GSPC | B88: S&P 500 (^GSPC) -SNP (Daily) | C88: 2023-02-10 | D88: 17:04:00 | E88: 4068.919922 | F88: 4094.360107 | G88: 4060.790039 | H88: 4090.459961 | I88: 3891520000 | J88: 8.959961 | K88: 2023-02-12T10:01:40.360
A89: ^HSI | B89: HANG SENG INDEX (^HSI) -HKSE (Daily) | C89: 2023-04-18 | D89: 16:09:00 | E89: 20643.41016 | F89: 20742.39062 | G89: 20559.08008 | H89: 20650.50977 | I89: 0 | J89: -131.939453 | K89: 2023-04-18T11:21:48.850
A90: ^MID | B90: S&P MID CAP 400 INDEX (^MID) -NYSE (Daily) | C90: 2022-10-07 | D90: 16:04:00 | E90: 2325.449951 | F90: 2325.449951 | G90: 2255.810059 | H90: 2266.889893 | I90: 0 | J90: -58.560058 | K90: 2022-10-08T20:30:12.560
A91: ^NDX | B91: NASDAQ 100 (^NDX) -Nasdaq GIDS (Daily) | C91: 2023-09-15 | D91: 12:10:00 | E91: 15425.90039 | F91: 15435.45019 | G91: 15227.21777 | H91: 15258.62207 | I91: 507836217 | J91: -215.267578 | K91: 2023-09-15T12:11:00.300
A92: ^NYA | B92: NYSE COMPOSITE (DJ) (^NYA) -NYSE (Daily) | C92: 2022-10-07 | D92: 16:20:00 | E92: 14087.37988 | F92: 14087.37988 | G92: 13727.79004 | H92: 13798.25977 | I92: 4449660000 | J92: -289.120117 | K92: 2022-10-08T20:30:51.020
A93: ^OEX | B93: S&P 100 INDEX (^OEX) -Chicago Options (Daily) | C93: 2022-10-07 | D93: 17:28:00 | E93: 1674.359985 | F93: 1674.359985 | G93: 1634.599976 | H93: 1642.890015 | I93: 4449660000 | J93: -51.380005 | K93: 2022-10-08T20:31:10.140
A94: RSP | B94: Invesco S&P 500 Equal Weight ETF (RSP) -NYSEArca (Daily) | C94: 2022-10-07 | D94: 16:00:00 | E94: 132.009995 | F94: 132.199997 | G94: 129.389999 | H94: 130.149994 | I94: 3197700 | J94: -3.160004 | K94: 2022-10-08T20:31:31.900
A95: ^RUT | B95: Russell 2000 (^RUT) -Chicago Options (Daily) | C95: 2022-10-07 | D95: 16:30:00 | E95: 1734.650024 | F95: 1734.920044 | G95: 1694.959961 | H95: 1702.150024 | I95: 4449660000 | J95: -50.359986 | K95: 2022-10-08T20:31:50.530
A96: ^VIX | B96: CBOE Volatility Index (^VIX) -Chicago Options (Daily) | C96: 2022-10-07 | D96: 16:15:00 | E96: 30.370001 | F96: 32.02 | G96: 29.879999 | H96: 31.360001 | I96: 0 | J96: 0.840001 | K96: 2022-10-08T20:32:09.750
A97: IWM | B97: iShares Russell 2000 ETF (IWM) -NYSEArca (Daily) | C97: 2022-10-07 | D97: 16:00:00 | E97: 171.929993 | F97: 172.470001 | G97: 167.919998 | H97: 168.610001 | I97: 26504500 | J97: -5.11 | K97: 2022-10-08T20:32:29.720
A98: QQQ | B98: Invesco QQQ Trust (QQQ) -NasdaqGM (Daily) | C98: 2024-02-02 | D98: 16:00:00 | E98: 423.799988 | F98: 430.23999 | G98: 422.790009 | H98: 429.01001 | I98: 59582300 | J98: 7.130005 | K98: 2024-02-04T13:47:12.870
A99: XLE | B99: Energy Select Sector SPDR Fund (XLE) -NYSEArca (Daily) | C99: 2022-10-07 | D99: 16:00:00 | E99: 82.610001 | F99: 83.540001 | G99: 81.209999 | H99: 81.800003 | I99: 28449900 | J99: -0.639999 | K99: 2022-10-08T20:33:10.770
A100: SOXL | B100: Direxion Daily Semiconductor Bull 3X Shares (SOXL) -NYSEArca (Daily) | C100: 2022-10-07 | D100: 16:00:00 | E100: 10.18 | F100: 10.28 | G100: 9 | H100: 9.21 | I100: 134291600 | J100: -1.98 | K100: 2022-10-08T20:33:31.210
A101: SPY | B101: SPDR S&P 500 ETF Trust (SPY) -NYSEArca (Daily) | C101: 2022-10-07 | D101: 16:00:00 | E101: 368.970001 | F101: 373.290009 | G101: 360.940002 | H101: 362.790009 | I101: 107680800 | J101: -10.410003 | K101: 2022-10-08T20:33:50.980
A103: ACAD | B103: ACADIA Pharmaceuticals Inc. (ACAD) -NasdaqGS (Daily) | C103: 2022-10-07 | D103: 16:00:00 | E103: 18.219999 | F103: 18.27 | G103: 16.030001 | H103: 16.290001 | I103: 2891100 | J103: -2.339998 | K103: 2022-10-08T20:34:10.690
A104: CLDX | B104: Celldex Therapeutics, Inc. (CLDX) -NasdaqCM (Daily) | C104: 2022-10-07 | D104: 16:00:00 | E104: 28.530001 | F104: 29.16 | G104: 28.01 | H104: 28.07 | I104: 426400 | J104: -0.91 | K104: 2022-10-08T20:34:27.670
A105: ICPT | B105: Intercept Pharmaceuticals, Inc. (ICPT) -NasdaqGS (Daily) | C105: 2022-10-07 | D105: 16:00:00 | E105: 13.97 | F105: 14.06 | G105: 13.64 | H105: 13.66 | I105: 691500 | J105: -0.28 | K105: 2022-10-08T20:34:46.490
A106: INO | B106: Inovio Pharmaceuticals, Inc. (INO) -NasdaqGS (Daily) | C106: 2022-10-07 | D106: 16:00:00 | E106: 1.69 | F106: 1.7 | G106: 1.6 | H106: 1.61 | I106: 4513100 | J106: -0.13 | K106: 2022-10-08T20:35:05.980
A107: LCI | B107: Lannett Company, Inc. (LCI) -NYSE (Daily) | C107: 2022-10-07 | D107: 16:00:00 | E107: 0.48 | F107: 0.493 | G107: 0.471 | H107: 0.471 | I107: 105400 | J107: -0.011 | K107: 2022-10-08T20:35:25.780
A108: PBYI | B108: Puma Biotechnology, Inc. (PBYI) -NasdaqGS (Daily) | C108: 2022-10-07 | D108: 16:00:00 | E108: 2.47 | F108: 2.5 | G108: 2.32 | H108: 2.37 | I108: 123700 | J108: -0.15 | K108: 2022-10-08T20:35:44.300
